Workbook

Sheet BemVindos
G2: Eficiência Hídrica
G14: Simulador de Consumo de Água
V20: (Versão EH 2014.01.01)
N30: Poupe Água… Seja Eficiente!!!
G31: Projeto Co-Financiado pela União Europeia

Sheet Início
H2: A Comunidade Intermunicipal (CI) da Região de Aveiro lidera o projeto "Eficiência Hídrica em Edifícios e Espaços Públicos - O Caminho para a Gestão Sustentável da Água…". Como complemento do projeto decidiu-se desenvolver um Simulador de Consumo de Água que pretende ser uma ferramenta didática, permitindo aos cidadãos terem noção de que forma estão a gastar a água, sensibilizando-os para a temática e contribuindo para se tornarem mais eficientes no seu uso!!!
H5: Poderá consultar igualmente o Guia de Boas Práticas "Uso Sustentável da Água" na página da CI Região de Aveiro!!!
H8: O preenchimento dos dados do Simulador de Consumo de Água deverá ser representativo de todos os moradores/utilizadores.
H9: Nas questões com o símbolo , o valor que inserir será multiplicado pelo n.º de residentes, em média. As respostas deverão ser representativas de todos os residentes.
H11: Também tem notas informativas em algumas questões .
R14: 4 | T14: 30 | U14: dias
H15: N.º Total de Residentes
H16: N.º Médio de Residentes que não estão em casa todos os dias
H17: N.º Médio de Dias numa Semana em que o(s) residente(s) não esteja(m) em casa | Q17: 5 | R17: 1
H18: N.º de Residentes em Média por Semana | Q18: =IF(AND(Q16=1,R17=1),Q15,(((Q15*7)-((Q16)*(R17-1)))/7)) -> 0
H19: Qual o calibre do seu contador/totalizador? | R19: 1
H20: É cobrada a Tarifa RSU Variável? | R20: 2
H24: A informação resultante do Simulador pretende mostrar o consumo de Água e o custo associado para o período de um mês!!!
G31: Poupe Água… Seja Eficiente!!!
D38: 0 | F38: Sim
A39: Águeda | D39: 1 | E39: 5 | F39: Não
A40: Albergaria-a-Velha | D40: 2 | E40: 10
A41: Aveiro | D41: 3 | E41: 15
A42: Estarreja | D42: 4 | E42: 20
A43: Ílhavo | D43: 5 | E43: 25
A44: Murtosa | D44: 6 | E44: 30
A45: Oliveira do Bairro | E45: 35
A46: Ovar | E46: 40
A47: Sever do Vouga | E47: 45
A48: Vagos | E48: 50
A49: Outro | E49: 60
E50: 70
E51: 80
E52: 90
E53: 100
E54: 150
E55: 200
E56: 250
E57: 300
E58: 400
E59: 500

Sheet Quarto-de-Banho
H2: Quarto de Banho / Balneário
G5: Local / Atividade | H5: Onde Gasta? | I5: Questões | K5: Dados | N5: Consumo por Utilização (litros por mês) | O5: Consumo por Local (Litros por Mês)
G6: Quarto de Banho / Balneário | H6: Autoclismo | I6: Que tipo de Autoclismo tem? | K6: =IF(H65=1,"Dupla Descarga",IF(H65=2,"C/ Interrupção de Descarga","Descarga Completa")) -> Descarga Completa | N6: =(((K10*K9))*Apoio!H3+((K9/2*(K11)))*Apoio!H3)*Início!Q18 -> 0 | O6: =SUM(N6,N12,N16,N24,N33,N40,N46,N55,N56) -> 0
I9: Qual a capacidade/quantidade de água por descarga (em litros)?
I10: Qual o n.º de descargas completas que fazem por dia?
I11: =IF(OR(K6="Dupla Descarga",K6="C/ Interrupção de Descarga"),"Qual o n.º de meias descargas que fazem por dia?","") -> 
H12: Fluxómetro / Mictório | I12: Tem Fluxómetro ou Mictório? | K12: =IF(H71=1,"Sim","Não") -> Não | N12: =IF(K12="Sim",(K14*K15*Apoio!H3)*Início!Q18,0) -> 0
I14: =IF(K12="Sim","Quantas vezes se utiliza por dia?","") -> 
I15: =IF(K12="Sim","Qual a quantidade de água por descarga (em litros)?","") -> 
H16: Chuveiro / Duche | I16: Quantos duches se tomam por semana? | N16: =IF(K16>0,MAX(K19,K20,K21,K22,K23),0) -> 0
I17: Quanto tempo se demoram, em média, por cada duche (em minutos)?
I18: Qual o caudal médio do chuveiro (litros por minuto)?
I19: Fecha-se a água enquanto se ensaboam? | K19: =IF(H66=1,K16*K17*K18*(1)*Apoio!H2*Apoio!H5*Início!Q18,0) -> 0
K20: =IF(H66=2,K16*K17*K18*(1.25)*Apoio!H2*Apoio!H5*Início!Q18,0) -> 0
A21: Vamos Juntos... Valorizar a Água! | K21: =IF(H66=3,K16*K17*K18*(1.5)*Apoio!H2*Apoio!H5*Início!Q18,0) -> 0
K22: =IF(H66=4,K16*K17*K18*(1.75)*Apoio!H2*Apoio!H5*Início!Q18,0) -> 0
K23: =IF(H66=5,K16*K17*K18*1*Apoio!H2*Início!Q18,0) -> 0
H24: Banho de Imersão | I24: Toma-se banhos de imersão? | K24: =IF(H72=1,"Sim","Não") -> Não | N24: =IF(K24="Sim",MAX(K28,K29,K30,K31)*K26,0) -> 0
I26: =IF(K24="Sim","Quantos banhos de imersão se tomam no total, por mês?","") -> 
I27: =IF(K24="Sim","Qual o volume aproximado da banheira?","") ->  | K27: 200
I28: =IF(K24="Sim","Toma-se com a banheira, em média, …","") -> 
K29: =IF(H67=2,K27*0.75,0) -> 0
K30: =IF(H67=3,K27*0.5,0) -> 0
K31: =IF(H67=4,K27*0.25,0) -> 0
H32: Lavatório | I32: Qual o caudal médio da torneira (litros por minuto)? | N32: NA
I33: Quantas vezes se lavam os dentes, por dia? | N33: =IF(K33>0,MAX(K35,K36,K37,K38,K39),0) -> 0
I34: Quanto tempo se demoram, em média, a lavar os dentes (em minutos)?
I35: Fecha-se a água enquanto se lavam os dentes? | K35: =IF(H69=1,K32*K33*K34*(1)*Apoio!H3*Apoio!H5*Início!Q18,0) -> 0
K36: =IF(H69=2,K32*K33*K34*(1.25)*Apoio!H3*Apoio!H5*Início!Q18,0) -> 0
K37: =IF(H69=3,K32*K33*K34*(1.5)*Apoio!H3*Apoio!H5*Início!Q18,0) -> 0
K38: =IF(H69=4,K32*K33*K34*(1.75)*Apoio!H3*Apoio!H5*Início!Q18,0) -> 0
K39: =IF(H69=5,K32*K33*K34*1*Apoio!H3*Início!Q18,0) -> 0
I40: Quantas vezes se lavam as mãos, por dia? | N40: =IF(K40>0,MAX(K41,K42,K43,K44,K45)*Início!Q18,0) -> 0
I41: Fecha-se a água enquanto ensaboa as mãos? | K41: =IF(H70=1,K32*K40*(1)*Apoio!H3*Apoio!H5*(1/2.5),0) -> 0 | S41: e
K42: =IF(H70=2,K32*K40*(1.25)*Apoio!H3*Apoio!H5*(1/2.5),0) -> 0
K43: =IF(H70=3,K32*K40*(1.5)*Apoio!H3*Apoio!H5*(1/2.5),0) -> 0
K44: =IF(H70=4,K32*K40*(1.75)*Apoio!H3*Apoio!H5*(1/2.5),0) -> 0
K45: =IF(H70=5,K32*K40*1*Apoio!H3*(1/2.5),0) -> 0
I46: Faz-se a barba? (assinale "Não" caso todos façam com máquina de barbear) | K46: =IF(H73=1,"Sim","Não") -> Não | N46: =IF(K46="Sim",MAX(K50,K51,K52,K53,K54)*Início!Q18,0) -> 0
I48: =IF(K46="Sim","Quantas vezes a fazem por semana? ","") -> 
I49: =IF(AND(K46="Sim",K48<>0),"Quanto tempo se demoram, em média, a fazer a barba (em minutos)?","") -> 
I50: =IF(K46="Sim","Se sim, como?","") ->  | K50: =IF(H68=1,K32*K48*K49*(1)*Apoio!H2,0) -> 0
K51: =IF(H68=2,K32*K48*K49*(0.75)*Apoio!H2,0) -> 0
K52: =IF(H68=3,K32*K48*K49*(0.5)*Apoio!H2,0) -> 0
K53: =IF(H68=4,K32*K48*K49*(0.25)*Apoio!H2,0) -> 0
K54: =IF(H68=5,20*K48,0) -> 0
I55: Quantas vezes se utiliza o lavatório para outros usos (p. ex., lavar os óculos), além das já referidas, por dia? | N55: =(K55*Apoio!H6*Apoio!H3)*Início!Q18 -> 0
H56: Bidés | I56: Utiliza o bidé? | K56: =IF(H74=1,"Sim","Não") -> Não | N56: =IF(K56="Sim",(K58*K59*K60*Apoio!H2)*Início!Q18,0) -> 0
I58: =IF(K56="Sim","Quantas vezes se utiliza por semana?","") -> 
I59: =IF(K56="Sim","Qual o caudal médio da torneira (litros por minuto)?","") -> 
I60: =IF(K56="Sim","Quanto tempo se demoram, em média, por cada vez que se utiliza o bidé (em minutos)?","") -> 
C65: Que tipo de Autoclismo tem? | G65: Que tipo de Autoclismo tem? | H65: 3
C66: Fecha a água enquanto se ensaboa? | G66: Fecha a água enquanto se ensaboa? | H66: 5
C67: Toma com a banheira… | G67: Toma com a banheira… | H67: 1
C68: Se sim, como? | G68: Se sim, como? | H68: 3
C69: Fecha a água enquanto lava os dentes? | G69: Fecha a água enquanto lava os dentes? | H69: 3
C70: Fecha a água enquanto esfrega as mãos? | G70: Fecha a água enquanto esfrega as mãos? | H70: 5
C71: Tem Fluxómetro ou Mictório? | G71: Tem Fluxómetro ou Mictório? | H71: 2
C72: Toma banho de imersão? | G72: Toma banho de imersão? | H72: 2
C73: Faz a barba? | G73: Faz a barba? | H73: 2
C74: Utiliza o bidé? | G74: Utiliza o bidé? | H74: 2

Sheet Cozinha
H2: Cozinha
G5: ='Quarto-de-Banho'!G5 -> Local / Atividade | H5: Onde Gasta? | I5: Questões | K5: Dados | N5: Consumo por Utilização (litros por mês) | O5: Consumo por Local (Litros por Mês)
G6: Cozinha | H6: Lava-louça | I6: Qual o caudal médio da torneira (litros por minuto)? | N6: NA | O6: =SUM(N7,N16,N18) -> 0
I7: Lava-se a Louça à mão? | K7: =IF(I26=1,"Sim","Não") -> Sim | N7: =IF(K7="Sim",MAX(K11,K12,K13,K14,K15)*Apoio!H2,0) -> 0
I9: =IF(K7="Sim","Quantas vezes se lava a louça à mão por semana?","") -> Quantas vezes se lava a louça à mão por semana?
I10: =IF(K7="Sim","Quanto tempo se demoram, em média, por lavagem (em minutos)?","") -> Quanto tempo se demoram, em média, por lavagem (em minutos)?
I11: =IF(K7="Sim","Lava-se a louça…","") -> Lava-se a louça… | K11: =IF(I25=1,K6*K9*K10,0) -> 0
K12: =IF(I25=2,K9*K10*K6*(0.75),0) -> 0
K13: =IF(I25=3,K6*K9*K10*(0.5),0) -> 0
K14: =IF(I25=4,K6*K9*K10*(0.25),0) -> 0
K15: =IF(I25=5,K9*20,0) -> 0
I16: Qual o n.º de outros usos diários (p. ex., lavar vegetais)? | N16: =(K16*K17*K6*Apoio!H3)*Início!Q18 -> 0
I17: Quanto tempo se demoram, em média por dia, com esses outros usos (em minutos)?
H18: Beber e Cozinhar | I18: Qual a quantidade de água da rede pública que se utiliza, por dia, para cozinhar e beber (em litros)? | N18: =(K18*Apoio!H3)*Início!Q18 -> 0
H25: Lava a louça… | I25: 3
H26: Lava a Louça à mão? | I26: 1

Sheet Equipamento
H2: Equipamento
G5: Local | H5: Onde Gasta? | I5: Questões | K5: Dados | N5: Consumo por Utilização (litros por mês) | O5: Consumo por Local (Litros por Mês)
G6: Equipamento | H6: Máquina Lavar Roupa | I6: Usa-se Máquina de Lavar-Roupa? | K6: =IF(I27=1,"Sim","Não") -> Não | N6: =IF(K6="Não",0,K8*K10*Apoio!H2) -> 0 | O6: =SUM(N6,N11) -> 0
I8: =IF(K6="Sim","Quantas máquinas de lavar-roupa se colocam a lavar durante a semana em sua casa?","") -> 
I9: =IF(K6="Sim","Qual a capacidade de carga (Kg)? (ver Ficha Técnica)","") -> 
I10: =IF(K6="Sim","Qual o consumo de Água (Litros por ciclo de lavagem)? (ver Ficha Técnica)","") -> 
H11: Máquina Lavar Loiça | I11: Usa-se Máquina de Lavar-Loiça? | K11: =IF(I28=1,"Sim","Não") -> Não | N11: =IF(K11="Não",0,K13*K14*Apoio!H2) -> 0
I13: =IF(K11="Não","","Quantas máquinas de lavar loiça se colocam a lavar durante a semana em sua casa?") -> 
I14: =IF(K11="Não","","Qual o consumo da máquina de lavar loiça (Litros por Ciclo de Lavagem)? (ver Ficha Técnica)") -> 
H27: Usa Máquina de Lavar-Roupa? | I27: 2
H28: Usa Máquina de Lavar-Loiça? | I28: 2

Sheet Limpeza
H2: Limpeza
G5: Local | H5: Onde Gasta? | I5: Questões | K5: Dados | N5: Consumo por Utilização (litros por mês) | O5: Consumo por Local (Litros por Mês)
G6: Limpeza | H6: Casa | I6: Qual o volume de água que se gasta por semana para lavar a sua casa (em litros)? | N6: =K6*Apoio!H2 -> 0 | O6: =SUM(N6,N7) -> 0
H7: Carro | I7: Lava-se o carro em casa? | K7: =IF(I28=1,"Sim","Não") -> Não | N7: =IF(K7="Não",0,MAX(K10,K11,K12)) -> 0
I9: =IF(K7="Sim","Quantas vezes, por mês, se lava o carro em sua casa?","") -> 
I10: =IF(K7="Sim","Lava-se o carro com…","") ->  | K10: =IF(I27=1,K9*K13*K14,0) -> 0 | L10: =IF(K10>0,"Com mangueira e água sempre a correr","") ->  | M10: =CONCATENATE(L10) -> 
K11: =IF(I27=2,(K9*K13*K14)/2,0) -> 0 | L11: =IF(K11>0,"Com mangueira e água a correr metade do tempo médio de lavagem","") ->  | M11: =CONCATENATE(L11) -> 
K12: =IF(I27=3,K9*10+(K14*K13),0) -> 0 | L12: =IF(K12>0,"Usa um balde e esponja","") -> 
I13: =IF(K7="Sim","Caso se utilize a mangueira, quantos minutos, em média, demora?","") -> 
I14: =IF(AND(K7="Sim",K13=0),"","Qual o caudal médio da mangueira que se usa (litros por minuto)?") -> Qual o caudal médio da mangueira que se usa (litros por minuto)?
H27: Lava o carro com… | I27: 3
H28: Lava o seu carro em casa? | I28: 2

Sheet Espaços Verdes
H2: Jardins / Espaços Verdes
G5: Local | H5: Onde Gasta? | I5: Questões | K5: Dados | N5: Consumo por Utilização (litros por mês) | O5: Consumo por Local (Litros por Mês)
G6: Jardins / Espaços Verdes | H6: Rega | I6: Consome-se água da rede pública no Jardim/Espaços Verdes/Vasos? | K6: =IF(I26=1,"Sim","Não") -> Não | N6: =IF(K6="Não",0,IF(K10="Mangueira",((K8/12)*K9*K13*K15*Apoio!H2),IF(K10="Rega Automática",((K8/12)*K9*K14*K15*Apoio!H2),((K8/12)*K9*K16*Apoio!H2)))) -> 0 | O6: =SUM(N6) -> 0
I8: =IF(K6="Sim","Quantos meses, em média, se rega por ano?","") -> 
I9: =IF(K6="Sim","Durante esse período, quantas vezes, em média, se rega por semana?","") -> 
I10: =IF(K6="Sim","Qual o método de rega?","") ->  | K10: =IF(K6="Não","",IF(I25=1,"Mangueira",IF(I25=2,"Rega Automática",IF(I25=3,"Regador","")))) -> 
I13: =IF(K6="Não","",IF(K10="Mangueira","Caso, se regue o jardim com Mangueira, qual o caudal médio da mangueira que se usa (litros por minuto)?","")) -> 
I14: =IF(K6="Não","",IF(K10="Rega Automática","Caso, se regue o jardim através da Rega Automática,qual o caudal médio (litros por minuto)?","")) -> 
I15: =IF(K6="Não","",IF(OR(K10="Mangueira",K10="Rega Automática"),"Caso se regue por Mangueira ou Rega Automática, quanto tempo, em média, se demora por cada rega (em minutos)?","")) -> 
I16: =IF(K6="Não","",IF(K10="Regador","Caso, se regue o jardim com Regador, quanto se gasta por cada vez que se rega (em litros)?","")) -> 
I17: =IF(K6="Sim","Qual a área de espaços verdes do jardim que necessita de rega (m2)?","") -> 
H25: Qual o método de rega? | I25: 0
H26: Consome água no Jardim/Espaços Verdes/Vasos? | I26: 2

Sheet Piscina
H2: Piscina
G5: Local | H5: Onde Gasta? | I5: Questões | K5: Dados | N5: Consumo por Utilização (litros por mês) | O5: Consumo por Local (Litros por Mês)
G6: Piscina | H6: Tanque | I6: Tem Piscina? | K6: =IF(I25=1,"Sim","Não") -> Não | N6: =IF(K8="Pública",L9,L8) -> 0 | O6: =SUM(N6) -> 0
I8: =IF(K6="Sim","Se sim, é…","") ->  | K8: =IF(I26=1,"Particular","Pública") -> Pública | L8: =IF(K6="Não",0,IF(AND(K8="Particular",K10="Aquecida Interior",K12="Sim"),((K14*K15*Apoio!H14*Apoio!H3)+(((K14*K15*K16*K17)/12)*1000)),IF(AND(K8="Particular",K10="Aquecida Interior",K12="Não"),(K14*K15*Apoio!H13*Apoio!H3)+(((K14*K15*K16*K17)/12)*1000),IF(AND(K8="Particular",K10="Não Aquecida Exterior",K12="Sim"),(K14*K15*Apoio!H12*Apoio!H3)+(((K14*K15*K16*K17)/12)*1000),IF(AND(K8="Particular",K10="Não Aquecida Exterior",K12="Não"),(K14*K15*Apoio!H11*Apoio!H3)+(((K14*K15*K16*K17)/12)*1000)))))) -> 0
L9: =IF(K6="Não",0,IF(AND(K8="Pública",K10="Aquecida Interior",K12="Sim"),(K14*K15*Apoio!H14*Apoio!H3)+(((K14*K15*K16*K17)/12)*1000)+((Piscina!K14*Piscina!K15*Piscina!K16*1000)*K18*Apoio!H3),IF(AND(K8="Pública",K10="Aquecida Interior",K12="Não"),(K14*K15*Apoio!H13*Apoio!H3)+(((K14*K15*K16*K17)/12)*1000)+((Piscina!K14*Piscina!K15*Piscina!K16*1000)*K18*Apoio!H3),IF(AND(K8="Pública",K10="Não Aquecida Exterior",K12="Sim"),(K14*K15*Apoio!H12*Apoio!H3)+(((K14*K15*K16*K17)/12)*1000)+((Piscina!K14*Piscina!K15*Piscina!K16*1000)*K18*Apoio!H3),IF(AND(K8="Pública",K10="Não Aquecida Exterior",K12="Não"),(K14*K15*Apoio!H11*Apoio!H3)+(((K14*K15*K16*K17)/12)*1000)+((Piscina!K14*Piscina!K15*Piscina!K16*1000)*K18*Apoio!H3)))))) -> 0
I10: =IF(K6="Sim","A Piscina é...?","") ->  | K10: =IF(I27=1,"Aquecida Interior","Não Aquecida Exterior") -> Não Aquecida Exterior
I12: =IF(K6="Sim","Tem cobertura isotérmica (para cobrir o plano de água)?","") ->  | K12: =IF(I28=1,"Sim","Não") -> Não
I14: =IF(K6="Sim","Qual o comprimento da piscina (m)?","") -> 
I15: =IF(K6="Sim","Qual a largura da piscina (m)?","") -> 
I16: =IF(K6="Sim","Diga também a profundidade média da piscina (m)?","") -> 
I17: =IF(K6="Sim","Quantas vezes se muda a água da piscina por ano?","") -> 
I18: =IF(OR(K6="Não",K8="Particular"),"","Se é Pública, qual a taxa de renovação diária? (em percentagem)") -> 
H25: Tem Piscina? | I25: 2
H26: Se sim, é… | I26: 0
H27: A Piscina é aquecida? | I27: 0
H28: Tem cobertura isotérmica (cobrir a superfície da água)? | I28: 0

Sheet Outros
H2: Outros Consumos
G5: Local | H5: Onde Gasta? | I5: Questões | K5: Dados | N5: Consumo por Utilização (litros por mês) | O5: Consumo por Local (Litros por Mês)
G6: Outros | H6: Lago | I6: Tem lago? | K6: =IF(I27=1,"Sim","Não") -> Não | N6: =IF(K6="Não",0,IF(K9=0,(((K8-(K8*K12)))/12)*1000,(((K8*K9-(K8*K9*K12)))/12)*1000)) -> 0 | O6: =SUM(N6,N13) -> 0
I8: =IF(K6="Sim","Qual o volume de água necessário para o encher (m3)?","") -> 
I9: =IF(K6="Sim","Quantas vezes se muda a água do lago por ano?","") -> 
I10: =IF(K6="Sim","Aproveita-se a água da chuva (p.ex.), em vez de só utilizar a água da rede?","") ->  | K10: =IF(I29=1,"Sim","Não") -> Não
I12: =IF(AND(K10="Sim",K6="Sim"),"Qual a percentagem que aproveita (%)? ","") -> 
H13: Sistemas de Aquecimento / Arrefecimento (AVAC) | I13: Tem este equipamento? | K13: =IF(I28=1,"Sim","Não") -> Não | N13: =IF(K13="Não",0,((K15*Apoio!H3)*1000)-(K15*Apoio!H3*K18*1000)) -> 0
I15: =IF(K13="Sim","Qual o volume médio diário gasto (m3)?","") -> 
I16: =IF(K13="Sim","Aproveita-se a água da chuva ou reutiliza águas cinzentas, p.ex., em vez de só utilizar a água da rede?","") ->  | K16: =IF(I30=1,"Sim","Não") -> Não
I18: =IF(AND(K16="Sim",K13="Sim"),"Qual a percentagem que aproveita (%)? ","") -> 
H27: Tem lago? | I27: 2
H28: Tem este equipamento? | I28: 2
H29: Aproveita a água da chuva (p.ex.), em vez de só utilizar a água da rede? | I29: 0
H30: Aproveita a água da chuva ou reutiliza águas cinzentas, p.ex., em vez de só utilizar a água da rede? | I30: 0

Sheet Fugas
H2: Fugas
G5: Local | H5: Onde Gasta? | I5: Questões | K5: Dados | N5: Consumo por Utilização (litros por mês) | O5: Consumo por Local (Litros por Mês)
G6: Fugas | H6: Fugas | I6: Tem fugas nas torneiras, autoclismos, etc.? | K6: =IF(I29=1,"Sim","Não") -> Não | N6: =IF(K6="Não",0,(K8*2)*(((0.000173611+0.000125+0.000378472+0.000532407+0.000270967636+0.000234742+0.000204082)/7)*60*24)*Apoio!H3*K9) -> 0 | O6: =SUM(N6) -> 0
I8: =IF(K6="Sim","Se vê a pingar… toca a arranjar!!!","") ->  | J8: =IF(K6="Sim","Quantos dispositivos pingam?","") -> 
J9: =IF(K6="Sim","Quantos pingos são, em média, por dispositivo, a cada 30 segundos?","") -> 
H29: Tem fugas nas suas torneiras, autoclismos, etc.? | I29: 2

Sheet Síntese
B2: CONSUMO DE ÁGUA - Resultados
B4: ='Quarto-de-Banho'!G5 -> Local / Atividade | C4: ='Quarto-de-Banho'!H5 -> Onde Gasta? | D4: Consumo Atual
D5: Por Utilização (litros/mês) | E5: Por Utilização (m3/mês) | F5: Por Utilização (%) | G5: Por Tipo de Utilização (%) | H5: Por Local (%)
B6: ='Quarto-de-Banho'!G6 -> Quarto de Banho / Balneário | C6: ='Quarto-de-Banho'!H6 -> Autoclismo | D6: ='Quarto-de-Banho'!N6 -> 0 | E6: =D6/1000 -> 0 | F6: =IF(D6=0,0,E6/$E$24) -> 0 | G6: =SUM(F6:F7) -> 0 | H6: =SUM(F6:F12) -> 0
C7: ='Quarto-de-Banho'!H12 -> Fluxómetro / Mictório | D7: ='Quarto-de-Banho'!N12 -> 0 | E7: 0 | F7: =IF(D7=0,0,E7/$E$24) -> 0
C8: ='Quarto-de-Banho'!H16 -> Chuveiro / Duche | D8: ='Quarto-de-Banho'!N16 -> 0 | E8: 0 | F8: =IF(D8=0,0,E8/$E$24) -> 0 | G8: =SUM(F8:F10) -> 0
C10: ='Quarto-de-Banho'!H24 -> Banho de Imersão | D10: ='Quarto-de-Banho'!N24 -> 0 | E10: 0 | F10: =IF(D10=0,0,E10/$E$24) -> 0
C11: ='Quarto-de-Banho'!H32 -> Lavatório | D11: ='Quarto-de-Banho'!N46+'Quarto-de-Banho'!N33+'Quarto-de-Banho'!N40+'Quarto-de-Banho'!N55 -> 0 | E11: 0 | F11: 0 | G11: =SUM(F11:F12) -> 0 | J11: =IF(D122=0,"",CONCATENATE(Síntese!C122,Síntese!D122,Síntese!E122,Síntese!C123,ROUND(Síntese!D123,0),Síntese!E123)) -> 
C12: ='Quarto-de-Banho'!H56 -> Bidés | D12: ='Quarto-de-Banho'!N56 -> 0 | E12: 0 | F12: 0
B13: =Cozinha!G6 -> Cozinha | C13: =Cozinha!H6 -> Lava-louça | D13: =Cozinha!N7+Cozinha!N16 -> 0 | E13: 0 | F13: 0 | G13: 0 | H13: =SUM(F13:F14) -> 0
C14: =Cozinha!H18 -> Beber e Cozinhar | D14: =Cozinha!N18 -> 0 | E14: 0 | F14: 0
B15: =Equipamento!G6 -> Equipamento | C15: =Equipamento!H6 -> Máquina Lavar Roupa | D15: =Equipamento!N6 -> 0 | E15: 0 | F15: 0 | G15: =SUM(F15) -> 0 | H15: =SUM(F15:F16) -> 0
C16: =Equipamento!H11 -> Máquina Lavar Loiça | D16: =Equipamento!N11 -> 0 | E16: 0 | F16: 0 | G16: =SUM(F16) -> 0
B17: =Limpeza!G6 -> Limpeza | C17: =Limpeza!H6 -> Casa | D17: =Limpeza!N6 -> 0 | E17: 0 | F17: 0 | G17: =SUM(F17) -> 0 | H17: =SUM(F17:F18) -> 0
C18: =Limpeza!H7 -> Carro | D18: =Limpeza!N7 -> 0 | E18: 0 | F18: 0 | G18: 0
B19: ='Espaços Verdes'!G6 -> Jardins / Espaços Verdes | C19: Rega | D19: ='Espaços Verdes'!N6 -> 0 | E19: 0 | F19: 0 | G19: =SUM(F19) -> 0 | H19: =SUM(F19) -> 0
B20: =Piscina!G6 -> Piscina | C20: =Piscina!H6 -> Tanque | D20: =Piscina!O6 -> 0 | E20: 0 | F20: 0 | G20: =SUM(F20) -> 0 | H20: =SUM(F20) -> 0
B21: =Outros!G6 -> Outros | C21: =Outros!H6 -> Lago | D21: =Outros!N6 -> 0 | E21: 0 | F21: 0 | G21: 0 | H21: =SUM(F21:F22) -> 0
C22: =Outros!H13 -> Sistemas de Aquecimento / Arrefecimento (AVAC) | D22: =Outros!N13 -> 0 | E22: 0 | F22: 0 | G22: 0
B23: =Fugas!G6 -> Fugas | C23: =Fugas!H6 -> Fugas | D23: =Fugas!N6 -> 0 | E23: 0 | F23: 0 | G23: 0 | H23: =SUM(F23) -> 0
B24: Consumo Total | D24: =SUM(D6:D23) -> 0 | E24: =SUM(E6:E23) -> 0 | F24: =SUM(F6:F23) -> 0 | G24: =SUM(G6:G23) -> 0 | H24: =SUM(H6:H23) -> 0
G27: Autoclismo | H27: =G6 -> 0
G28: Duche/Banho | H28: =G8 -> 0
G29: Torneiras | H29: =G11+G13+G17 -> 0
G30: Máquina de Lavar Louça | H30: =G15 -> 0
G31: Máquina de Lavar Roupa | H31: =G16 -> 0
G32: Fugas | H32: =G23 -> 0
G33: Usos Exteriores (Limpeza Carro, Rega, Piscina, Outros) | H33: =G19+G20+G21+G22+G18 -> 0
C122: =IF(D24="","","SABIA QUE consome ") -> SABIA QUE consome | D122: =IF(E24="","",ROUNDUP(E24,1)) -> 0 | E122: =IF(F24="",""," m3 por mês, o que corresponde a um consumo ") -> m3 por mês, o que corresponde a um consumo | H122: O seu consumo | I122: =D123 -> 
C123: =IF(E24="","","por pessoa por dia de cerca de ") -> por pessoa por dia de cerca de | D123: =IF(E24="","",(E24*1000)/Início!Q18/Apoio!H3) ->  | E123: =IF(F24="",""," Litros!!!") -> Litros!!! | H123: Consumo Médio em Portugal | I123: 140
H124: Valor a Atingir | I124: 80
C126: =IF(F24="","","SABIA QUE o consumo médio por pessoa dia, em Portugal, é cerca de") -> SABIA QUE o consumo médio por pessoa dia, em Portugal, é cerca de | D126: =IF(E24="",""," 140 Litros!!!") -> 140 Litros!!!
C128: =IF(F24="","","Isto significa que o seu Consumo de Água é") -> Isto significa que o seu Consumo de Água é | D128: =IF(E24="","",IF(D123<Apoio!H22,Apoio!J22,IF(AND(D123>=Apoio!H22,D123<Apoio!H21),Apoio!J21,IF(AND(D123>=Apoio!H21,D123<Apoio!H20),Apoio!J20,IF(AND(D123>=Apoio!H20,D123<Apoio!H19),Apoio!J19,Apoio!J18))))) -> 

Sheet Custos AdRA
B2: Quantidade de Água Consumida | F2: ='Real vs Simulado'!E24 -> 0 | H2: m3 | J2: m3 | K2: Poupe Água… Seja Eficiente!!!
B4: Descrição | E4: Escalão | F4: Quantidade (Dias) | G4: Quantidade (m3) | K4: Valor Unitário - Preço por m3 (Euros) | L4: Valor (Euros) | M4: IVA (%) | N4: Total Parcial s/ IVA (Euros) | O4: Total s/ IVA (Euros)
G5: Real | H5: Arredondado | J5: Final
B6: ÁGUA | C6: Água (Tarifa Variável) | D6: 1.º Escalão (0 a 5 m3/30,42 dias) | E6: =IF(F2="","",IF(Síntese!$D$122>0,"1º Escalão","")) ->  | G6: =IF(E6="","",(IF(AND(F2<=5,Início!T14<ApoioAdRA!B44),ApoioAdRA!$B$41*F2,IF(Síntese!$D$122>5,5*ApoioAdRA!$B$41,IF(Síntese!$D$122<=5,Síntese!$D$122*ApoioAdRA!$B$41,""))))) ->  | H6: =IF(AND(G6>0,G6<1),1,G6) ->  | I6: =IF(G6="","",H6) ->  | J6: =IF(G6=I6,I6,I6) ->  | K6: =IF(E6="","",VLOOKUP(Início!R14,ApoioAdRA!C56:H66,3,0)) ->  | L6: =IF(G6="","",J6*K6) ->  | M6: =IF(J6="","",6%) ->  | N6: =IF(L6="","",SUM(L6:L9)) ->  | O6: =IF(AND(N6="",N10=""),"",SUM(N6,N10)) -> 
D7: 2.º Escalão (6 a 15 m3/30,42 dias) | E7: =IF(F2="","",IF(Síntese!$D$122>5,"2º Escalão","")) ->  | G7: =IF(E7="","",(IF(AND(F2<=5,Início!T14<ApoioAdRA!B44),ApoioAdRA!$B$41*F2,IF(Síntese!$D$122>15,10*ApoioAdRA!$B$41,IF(Síntese!$D$122<=5,"",Síntese!$D$122-5))))) ->  | H7: =IF(AND(G7>0,G7<1),1,G7) ->  | I7: =IF(G7="","",IF((H6+H7)>=F2,(F2-H6),G7)) ->  | J7: =IF(G7=I7,I7,I7) ->  | K7: =IF(E7="","",VLOOKUP(Início!R14,ApoioAdRA!C56:H66,4,0)) ->  | L7: =IF(G7="","",J7*K7) ->  | M7: =IF(J7="","",6%) -> 
D8: 3.º Escalão (16 a 25 m3/30,42 dias) | E8: =IF(F2="","",IF(Síntese!$D$122>15,"3º Escalão","")) ->  | G8: =IF(E8="","",IF(Síntese!$D$122>25,10*ApoioAdRA!$B$41,IF(Síntese!$D$122<=25,Síntese!$D$122-15,""))) ->  | H8: =IF(AND(G8>0,G8<1),1,G8) ->  | I8: =IF(G8="","",IF((H6+H7+H8)>=F2,H8+(F2-(H6+H7+H8)),G8)) ->  | J8: =IF(G8=I8,I8,I8) ->  | K8: =IF(E8="","",VLOOKUP(Início!R14,ApoioAdRA!C56:H66,5,0)) ->  | L8: =IF(G8="","",J8*K8) ->  | M8: =IF(J8="","",6%) -> 
D9: 4.º Escalão (> 26 m3/30,42 dias) | E9: =IF(F2="","",IF(Síntese!$D$122>25,"4º Escalão","")) ->  | G9: =IF(E9="","",IF(Síntese!$D$122>25,((Síntese!$D$122-25)*ApoioAdRA!$B$41),IF(Síntese!$D$122<=25,Síntese!$D$122-25,""))) ->  | H9: =IF(AND(G9>0,G9<1),1,G9) ->  | I9: =H9 ->  | J9: =IF(G9=I9,I9,I9) ->  | K9: =IF(E9="","",VLOOKUP(Início!R14,ApoioAdRA!C56:H66,6,0)) ->  | L9: =IF(G9="","",J9*K9) ->  | M9: =IF(J9="","",6%) -> 
C10: Água (Tarifa Fixa) | F10: =IF(Início!R14=1,"",Início!T14) -> 30 | K10: =IF(Início!R19=1,"",IF(AND(Início!R19>1,Início!R19<=6),(IF(Início!$R$14=2,ApoioAdRA!F13,(IF(Início!$R$14=3,ApoioAdRA!I13,(IF(Início!$R$14=4,ApoioAdRA!C13,(IF(Início!$R$14=5,ApoioAdRA!L13,(IF(Início!$R$14=6,ApoioAdRA!O13,(IF(Início!$R$14=7,ApoioAdRA!R13,(IF(Início!$R$14=8,ApoioAdRA!U13,(IF(Início!$R$14=9,ApoioAdRA!X13,(IF(Início!$R$14=10,ApoioAdRA!AA13,(IF(Início!$R$14=11,ApoioAdRA!AD13)))))))))))))))))))),IF(AND(Início!R19>6,Início!R19<=7),(IF(Início!$R$14=2,ApoioAdRA!F14,(IF(Início!$R$14=3,ApoioAdRA!I14,(IF(Início!$R$14=4,ApoioAdRA!C14,(IF(Início!$R$14=5,ApoioAdRA!L14,(IF(Início!$R$14=6,ApoioAdRA!O14,(IF(Início!$R$14=7,ApoioAdRA!R14,(IF(Início!$R$14=8,ApoioAdRA!U14,(IF(Início!$R$14=9,ApoioAdRA!X14,(IF(Início!$R$14=10,ApoioAdRA!AA14,(IF(Início!$R$14=11,ApoioAdRA!AD14)))))))))))))))))))),IF(AND(Início!R19>7,#REF!<=111),(IF(Início!$R$14=2,ApoioAdRA!F15,(IF(Início!$R$14=3,ApoioAdRA!I15,(IF(Início!$R$14=4,ApoioAdRA!C15,(IF(Início!$R$14=5,ApoioAdRA!L15,(IF(Início!$R$14=6,ApoioAdRA!O15,(IF(Início!$R$14=7,ApoioAdRA!R15,(IF(Início!$R$14=8,ApoioAdRA!U15,(IF(Início!$R$14=9,ApoioAdRA!X15,(IF(Início!$R$14=10,ApoioAdRA!AA15,(IF(Início!$R$14=11,ApoioAdRA!AD15)))))))))))))))))))),IF(AND(Início!R19>11,Início!R19<=16),(IF(Início!$R$14=2,ApoioAdRA!F16,(IF(Início!$R$14=3,ApoioAdRA!I16,(IF(Início!$R$14=4,ApoioAdRA!C16,(IF(Início!$R$14=5,ApoioAdRA!L16,(IF(Início!$R$14=6,ApoioAdRA!O16,(IF(Início!$R$14=7,ApoioAdRA!R16,(IF(Início!$R$14=8,ApoioAdRA!U16,(IF(Início!$R$14=9,ApoioAdRA!X16,(IF(Início!$R$14=10,ApoioAdRA!AA16,(IF(Início!$R$14=11,ApoioAdRA!AD16)))))))))))))))))))),IF(AND(Início!R19>16,Início!R19<=20),(IF(Início!$R$14=2,ApoioAdRA!F17,(IF(Início!$R$14=3,ApoioAdRA!I17,(IF(Início!$R$14=4,ApoioAdRA!C17,(IF(Início!$R$14=5,ApoioAdRA!L17,(IF(Início!$R$14=6,ApoioAdRA!O17,(IF(Início!$R$14=7,ApoioAdRA!R17,(IF(Início!$R$14=8,ApoioAdRA!U17,(IF(Início!$R$14=9,ApoioAdRA!X17,(IF(Início!$R$14=10,ApoioAdRA!AA17,(IF(Início!$R$14=11,ApoioAdRA!AD17)))))))))))))))))))),IF(Início!R19>20,(IF(Início!$R$14=2,ApoioAdRA!F18,(IF(Início!$R$14=3,ApoioAdRA!I18,(IF(Início!$R$14=4,ApoioAdRA!C18,(IF(Início!$R$14=5,ApoioAdRA!L18,(IF(Início!$R$14=6,ApoioAdRA!O18,(IF(Início!$R$14=7,ApoioAdRA!R18,(IF(Início!$R$14=8,ApoioAdRA!U18,(IF(Início!$R$14=9,ApoioAdRA!X18,(IF(Início!$R$14=10,ApoioAdRA!AA18,(IF(Início!$R$14=11,ApoioAdRA!AD18)))))))))))))))))))),0))))))) ->  | M10: =IF(F10="","",F20) ->  | N10: =IF(K10="","",ROUNDUP(F10*K10,2)) -> 
B11: SANEAMENTO | C11: Saneamento (Tarifa Variável) | D11: 1.º Escalão (0 a 5 m3/30,42 dias) | E11: =E6 ->  | G11: =G6 ->  | K11: =IF(E11="","",K6*ApoioAdRA!B25) ->  | L11: =IF(G11="","",J11*K11) ->  | M11: =M6 ->  | N11: =IF(L11="","",ROUNDDOWN(SUM(L11:L14),2)) ->  | O11: =IF(AND(N11="",N15=""),"",SUM(N11,N15)) -> 
D12: 2.º Escalão (6 a 15 m3/30,42 dias) | E12: =E7 ->  | K12: =IF(E12="","",K7*ApoioAdRA!B25) ->  | L12: =IF(G12="","",J12*K12) ->  | M12: =M7 -> 
D13: 3.º Escalão (16 a 25 m3/30,42 dias) | E13: =E8 ->  | K13: =IF(E13="","",K8*ApoioAdRA!B25) ->  | L13: =IF(G13="","",J13*K13) ->  | M13: =M8 -> 
D14: 4.º Escalão (> 26 m3/30,42 dias) | E14: =E9 ->  | K14: =IF(E14="","",K9*ApoioAdRA!B25) ->  | L14: =IF(G14="","",J14*K14) ->  | M14: =M9 -> 
C15: Saneamento (Tarifa Fixa) | F15: =F10 -> 30 | K15: =IF(F2=0,"",VLOOKUP(Início!R14,ApoioAdRA!C56:L66,7,0)) ->  | M15: =IF(F2=0,"",F20) ->  | N15: =IF(F15="","",F15*K15) -> 
B16: COBRANÇA OUTRAS ENTIDADES | C16: Taxa Recursos Hídricos (Água) | G16: =IF(F2=0,"",F2) ->  | J16: =G16 ->  | K16: =IF(F2=0,"",VLOOKUP(Início!R14,ApoioAdRA!C56:L66,8,0)) ->  | L16: =IF(G16="","",G16*K16) ->  | M16: =IF(K16="","",F20) ->  | N16: =IF(L18="","",ROUNDDOWN(SUM(L16:L19),2)) ->  | O16: =IF(N16="","",SUM(N16)) -> 
C17: Taxa Recursos Hídricos (SAN) | G17: =IF(F2=0,"",F2) ->  | J17: =G17 ->  | K17: =IF(F2=0,"",VLOOKUP(Início!R14,ApoioAdRA!C56:L66,9,0)) ->  | L17: =IF(G17="","",G17*K17) ->  | M17: =IF(K17="","",F20) -> 
C18: RSU Fixo | F18: =F15 -> 30 | K18: =IF(F2=0,"",VLOOKUP(Início!R14,ApoioAdRA!C56:L66,10,0)) ->  | L18: =IF(F18="","",F18*K18) ->  | M18: =IF(F18="","","") -> 
C19: RSU (Variável) | G19: =IF(Início!R20=1,F2,"") ->  | J19: =IF(G19=0,"",G19) ->  | K19: =IF(Início!R20="2","",VLOOKUP(Início!R14,ApoioAdRA!C56:M66,11,0)) -> 0.9 | L19: =IF(G19="","",G19*K19) ->  | M19: =IF(J19="","","") -> 
B20: IVA | F20: =IF(F2=0,"",ApoioAdRA!B46) ->  | K20: =IF(F20="","",N6+N10+N11+N15+L16+L17) ->  | L20: =IF(K20="","",F20*K20) ->  | N20: =IF(L20="","",L20) ->  | O20: =IF(N20="","",SUM(N20)) -> 
B21: VALOR TOTAL A PAGAR c/ IVA (Euros) | F21: =IF(F2=0,"",SUM(O6,O11,O16,O20)) -> 

Sheet Sabia que
B2: Local | C2: Onde Gasta? | D2: Sabia que… podia Poupar???
D3: =G3 -> Sabia que os Autoclismos, Fluxómetros/Mictórios, Torneiras de Lavatório, Torneiras de Cozinha, Chuveiros ou Sistemas de Duche são classificados quanto à sua Eficiência Hídrica pela Associação Nacional para a Qualidade das Instalações Prediais (ANQIP) numa Escala de A++ a E, sendo A++ o mais Eficiente e E o menos (A++; A+; A; B; C; D; E). | G3: Sabia que os Autoclismos, Fluxómetros/Mictórios, Torneiras de Lavatório, Torneiras de Cozinha, Chuveiros ou Sistemas de Duche são classificados quanto à sua Eficiência Hídrica pela Associação Nacional para a Qualidade das Instalações Prediais (ANQIP) numa Escala de A++ a E, sendo A++ o mais Eficiente e E o menos (A++; A+; A; B; C; D; E).
B5: ='Quarto-de-Banho'!G6 -> Quarto de Banho / Balneário | C5: ='Quarto-de-Banho'!H6 -> Autoclismo | D5: =IF(OR('Quarto-de-Banho'!K9="",'Quarto-de-Banho'!K6<>"Dupla Descarga"),"",CONCATENATE(G5,H5,I5)) ->  | G5: =IF(OR('Quarto-de-Banho'!K9="",'Quarto-de-Banho'!K6<>"Dupla Descarga"),"","Sabia que o Autoclismo de Dupla Descarga é classificado pela ANQIP com… ") ->  | H5: =IF(ISBLANK('Quarto-de-Banho'!K9),"",IF(AND('Quarto-de-Banho'!K6="Dupla Descarga",'Quarto-de-Banho'!K9<=Escalas!AC5),"A++",IF(AND('Quarto-de-Banho'!K6="Dupla Descarga",'Quarto-de-Banho'!K9>Escalas!$AB$6,'Quarto-de-Banho'!K9<=Escalas!$AC$6),"A+",IF(AND('Quarto-de-Banho'!K6="Dupla Descarga",'Quarto-de-Banho'!K9>Escalas!$AB$7,'Quarto-de-Banho'!K9<=Escalas!$AC$7),"A",IF(AND('Quarto-de-Banho'!K6="Dupla Descarga",'Quarto-de-Banho'!K9>Escalas!$AB$8,'Quarto-de-Banho'!K9<=Escalas!$AC$8),"B",IF(AND('Quarto-de-Banho'!K6="Dupla Descarga",'Quarto-de-Banho'!K9>Escalas!$AB$9,'Quarto-de-Banho'!K9<=Escalas!$AC$9),"C","")))))) ->  | I5: =IF(OR('Quarto-de-Banho'!K9="",'Quarto-de-Banho'!K6<>"Dupla Descarga"),""," ???") -> 
D6: =CONCATENATE(G6,H6,I6) ->  | G6: =IF(OR('Quarto-de-Banho'!K9="",'Quarto-de-Banho'!K6<>"C/ Interrupção de Descarga"),"","Sabia que o Autoclismo c/ Interrupção de Descarga é classificado pela ANQIP com… ") ->  | H6: =IF(ISBLANK('Quarto-de-Banho'!K9),"",IF(AND('Quarto-de-Banho'!K6="C/ Interrupção de Descarga",'Quarto-de-Banho'!K9<=Escalas!$AA$6),"A+",IF(AND('Quarto-de-Banho'!K6="C/ Interrupção de Descarga",'Quarto-de-Banho'!K9>Escalas!$Y$7,'Quarto-de-Banho'!K9<=Escalas!$AA$7),"A",IF(AND('Quarto-de-Banho'!K6="C/ Interrupção de Descarga",'Quarto-de-Banho'!K9>Escalas!$Y$8,'Quarto-de-Banho'!K9<=Escalas!$AA$8),"B",IF(AND('Quarto-de-Banho'!K6="C/ Interrupção de Descarga",'Quarto-de-Banho'!K9>Escalas!$Y$9,'Quarto-de-Banho'!K9<=Escalas!$AA$9),"C",IF(AND('Quarto-de-Banho'!K6="C/ Interrupção de Descarga",'Quarto-de-Banho'!K9>Escalas!$Y$10,'Quarto-de-Banho'!K9<=Escalas!$AA$10),"D","")))))) ->  | I6: =IF(G6="",""," ???") -> 
D7: =CONCATENATE(G7,H7,I7) ->  | G7: =IF(OR('Quarto-de-Banho'!K9="",'Quarto-de-Banho'!K6<>"Descarga Completa"),"","Sabia que o Autoclismo de Descarga Completa é classificado pela ANQIP com… ") ->  | H7: =IF(ISBLANK('Quarto-de-Banho'!K9),"",IF(AND('Quarto-de-Banho'!K6="Descarga Completa",'Quarto-de-Banho'!K9<=Escalas!$Y$7),"A",IF(AND('Quarto-de-Banho'!K6="Descarga Completa",'Quarto-de-Banho'!K9>Escalas!$X$8,'Quarto-de-Banho'!K9<=Escalas!$Y$8),"B",IF(AND('Quarto-de-Banho'!K6="Descarga Completa",'Quarto-de-Banho'!K9>Escalas!$X$9,'Quarto-de-Banho'!K9<=Escalas!$Y$9),"C",IF(AND('Quarto-de-Banho'!K6="Descarga Completa",'Quarto-de-Banho'!K9>Escalas!$X$10,'Quarto-de-Banho'!K9<=Escalas!$Y$10),"D",IF(AND('Quarto-de-Banho'!K6="Descarga Completa",'Quarto-de-Banho'!K9>Escalas!$X$11,'Quarto-de-Banho'!K9<=Escalas!$Y$11),"E","NA")))))) ->  | I7: =IF(G7="",""," ???") -> 
D8: =CONCATENATE(G8,M8,N8,I8) -> Sabia que existem autoclismos de Dupla Descarga ou autoclismos C/ Interrupção de Descarga que permitem poupar muita água??? | G8: =IF('Quarto-de-Banho'!K6="Dupla Descarga","",IF('Quarto-de-Banho'!K6="C/ Interrupção de Descarga","Sabia que existem autoclismos de Dupla Descarga que permitem poupar aindas mais água???",IF('Quarto-de-Banho'!K6="Descarga Completa","Sabia que existem autoclismos de Dupla Descarga ou autoclismos C/ Interrupção de Descarga que permitem poupar muita água???",""))) -> Sabia que existem autoclismos de Dupla Descarga ou autoclismos C/ Interrupção de Descarga que permitem poupar muita água???
D9: =CONCATENATE(G9,M9,N9,I9) ->  | G9: =IF(AND('Quarto-de-Banho'!K9>Apoio!E2,'Quarto-de-Banho'!K6="Dupla Descarga"),"Sabia que existem autoclismos que consomem menos água???",IF(AND('Quarto-de-Banho'!K9>Apoio!E2,'Quarto-de-Banho'!K6="C/ Interrupção de Descarga"),"Sabia que existem autoclismos que consomem menos água???",IF(AND('Quarto-de-Banho'!K9>Apoio!E2,'Quarto-de-Banho'!K6="Descarga Completa"),"Sabia que existem autoclismos que consomem menos água???",""))) -> 
D10: =IF(G10="","",CONCATENATE(G10,M10,N10,I10)) ->  | G10: =IF(J10="","","Sabia que poderá poupar até… ") ->  | H10: =IF(J10="","",J10) ->  | I10: =IF(J10="",""," … de água por descarga???") ->  | J10: =IF('Quarto-de-Banho'!K9>Apoio!E2,1-(Apoio!E2/'Quarto-de-Banho'!K9),"") ->  | K10: =H10 ->  | L10: =K10 ->  | M10: =ROUND(L10*100,2) ->  | N10: %
C11: ='Quarto-de-Banho'!H12 -> Fluxómetro / Mictório | D11: =CONCATENATE(G11,H11,I11) ->  | G11: =IF('Quarto-de-Banho'!K15="","","Sabia que o Fluxómetro de Mictório é classificado pela ANQIP com… ") ->  | H11: =IF(ISBLANK('Quarto-de-Banho'!K15)," ",IF('Quarto-de-Banho'!K15<=1,"A++",IF(AND('Quarto-de-Banho'!K15>1,'Quarto-de-Banho'!K15<=2),"A+",IF(AND('Quarto-de-Banho'!K15>2,'Quarto-de-Banho'!K15<=4),"A",IF(AND('Quarto-de-Banho'!K15>4,'Quarto-de-Banho'!K15<=6),"B",IF(AND('Quarto-de-Banho'!K15>6,'Quarto-de-Banho'!K15<=8),"C",IF(AND('Quarto-de-Banho'!K15>8,'Quarto-de-Banho'!K15<10),"D","E"))))))) ->  | I11: =IF(G11="",""," ???") -> 
D12: =G12 ->  | G12: =IF(OR('Quarto-de-Banho'!K15>Apoio!E3,'Quarto-de-Banho'!K12=""),"Sabia que poderá diminuir a quantidade que gasta por descarga para um valor menor do que 1 litro???","") -> 
D13: =IF(G13="","",CONCATENATE(G13,M13,N13,I13)) ->  | G13: =IF(J13="","","Sabia que poderá poupar até… ") ->  | H13: =IF(J13="","",J13) ->  | I13: =IF(J13="",""," … de água por descarga???") ->  | J13: =IF('Quarto-de-Banho'!K15>Apoio!E3,1-(Apoio!E3/'Quarto-de-Banho'!K15),"") ->  | K13: =H13 ->  | L13: =K13 ->  | M13: =ROUND(L13*100,2) ->  | N13: %
C14: ='Quarto-de-Banho'!H56 -> Bidés | D14: =CONCATENATE(G14,H14,I14) ->  | G14: =IF('Quarto-de-Banho'!K59="","","Sabia que o Bidé é classificado pela ANQIP com… ") ->  | H14: =IF(ISBLANK('Quarto-de-Banho'!K59)," ",IF('Quarto-de-Banho'!K59<=2,"A+",IF(AND('Quarto-de-Banho'!K59>2,'Quarto-de-Banho'!K59<=4),"A",IF(AND('Quarto-de-Banho'!K59>4,'Quarto-de-Banho'!K59<=6),"B",IF(AND('Quarto-de-Banho'!K59>6,'Quarto-de-Banho'!K59<=9),"C",IF(AND('Quarto-de-Banho'!K59>9,'Quarto-de-Banho'!K59<=12),"D","E")))))) ->  | I14: =IF(G14="",""," ???") -> 
D15: =G15 ->  | G15: =IF('Quarto-de-Banho'!K59="","","Sabia que existem torneiras de lavatório com arejador e/ou eco-stop que permitem reduzir a quantidade de água gasta???") -> 
D16: =CONCATENATE(G16,M16,N16,I16) -> Sabia que poderá diminuir a quantidade que gasta por minuto para valores inferiores a 2 litros??? | G16: =IF(OR('Quarto-de-Banho'!K59>Apoio!E12,'Quarto-de-Banho'!K59=""),"Sabia que poderá diminuir a quantidade que gasta por minuto para valores inferiores a 2 litros???","") -> Sabia que poderá diminuir a quantidade que gasta por minuto para valores inferiores a 2 litros???
D17: =IF(G17="","",CONCATENATE(G17,M17,N17,I17)) ->  | G17: =IF(J17="","","Sabia que poderá poupar até… ") ->  | H17: =IF(J17="","",J17) ->  | I17: =IF(J17="","","… de água por minuto!!!") ->  | J17: =IF('Quarto-de-Banho'!K59>Apoio!E12,1-(Apoio!E12/'Quarto-de-Banho'!K59),"") ->  | K17: =H17 ->  | M17: =ROUND(L17*100,2) ->  | N17: %
C18: ='Quarto-de-Banho'!H16 -> Chuveiro / Duche | D18: =CONCATENATE(G18,H18,I18) ->  | G18: =IF('Quarto-de-Banho'!K18="","","Sabia que o Chuveiro é classificado pela ANQIP com… ") ->  | H18: =IF(ISBLANK('Quarto-de-Banho'!K18)," ",IF(('Quarto-de-Banho'!K18<=5),"A++",IF(AND('Quarto-de-Banho'!K18>5,'Quarto-de-Banho'!K18<=7.2),"A++",IF(AND('Quarto-de-Banho'!K18>7.2,'Quarto-de-Banho'!K18<=9),"A+",IF(AND('Quarto-de-Banho'!K18>9,'Quarto-de-Banho'!K18<=15),"A",IF(AND('Quarto-de-Banho'!K18>15,'Quarto-de-Banho'!K18<=30),"B",IF('Quarto-de-Banho'!K18>30,"C"))))))) ->  | I18: =IF(G18="",""," ???") -> 
D19: =CONCATENATE(G19,M19,N19,I19) ->  | G19: =IF('Quarto-de-Banho'!K19="Não","Sabia que ao tomar duche se fechar a água enquanto se ensaboa poderá diminuir o consumo de água até aos 75%???","") -> 
C20: ='Quarto-de-Banho'!H24 -> Banho de Imersão | D20: =CONCATENATE(G20,M20,N20,I20) ->  | G20: =IF('Quarto-de-Banho'!K26="","","Sabia ao tomar banho de imersão irá gastar muito mais água do que tomando um duche???") -> 
D21: =CONCATENATE(G21,M21,N21,I21) ->  | G21: =IF('Quarto-de-Banho'!K28>0,"Ao encher a banheira está a desperdiçar um recurso muito importante. Tome banho de duche ou, pelo menos, reduza para metade o volume da sua banheira!!!",IF('Quarto-de-Banho'!K29>0,"Como toma banho de imersão e enche metade da banheira, tente reduzir para cerca de 1/4, mas o duche é sem dúvida a melhor alternativa!!!",IF('Quarto-de-Banho'!K31>0,"Como toma banho de imersão faz muito bem em só encher 1/4 da banheira, mas experimente o duche!!!",""))) -> 
C22: ='Quarto-de-Banho'!H32 -> Lavatório | D22: =CONCATENATE(G22,H22,I22) ->  | G22: =IF('Quarto-de-Banho'!K32="","","Sabia que a Torneira de Lavatório é classificado pela ANQIP com… ") ->  | H22: =IF(ISBLANK('Quarto-de-Banho'!K32)," ",IF('Quarto-de-Banho'!K32<=2,"A++",IF(AND('Quarto-de-Banho'!K32>2,'Quarto-de-Banho'!K32<=4),"A++",IF(AND('Quarto-de-Banho'!K32>4,'Quarto-de-Banho'!K32<=6),"A+",IF(AND('Quarto-de-Banho'!K32>6,'Quarto-de-Banho'!K32<=9),"A",IF(AND('Quarto-de-Banho'!K32>9,'Quarto-de-Banho'!K32<=12),"B","C")))))) ->  | I22: =IF(G22="",""," ???") -> 
D23: =CONCATENATE(G23,M23,N23,I23) -> Sabia que poderá diminuir a quantidade que gasta por minuto para valores inferiores a 2 litros??? | G23: =IF(OR('Quarto-de-Banho'!K32>Apoio!E8,'Quarto-de-Banho'!K32=""),"Sabia que poderá diminuir a quantidade que gasta por minuto para valores inferiores a 2 litros???","") -> Sabia que poderá diminuir a quantidade que gasta por minuto para valores inferiores a 2 litros???
D24: =IF(G24="","",CONCATENATE(G24,M24,N24,I24)) ->  | G24: =IF(J24="","","Sabia que poderá poupar até… ") ->  | H24: =IF(J24="","",J24) ->  | I24: =IF(J24="",""," … de água por minuto???") ->  | J24: =IF('Quarto-de-Banho'!K32>Apoio!E8,1-(Apoio!E8/'Quarto-de-Banho'!K32),"") ->  | K24: =H24 ->  | M24: =ROUND(L24*100,2) ->  | N24: %
D25: =CONCATENATE(G25) ->  | G25: =IF('Quarto-de-Banho'!K50>0,"Sabia que poderia fazer a barba sem estar a água sempre a correr???",IF('Quarto-de-Banho'!K51>0,"Sabia que ainda poderia ter menos tempo com a água a correr???","")) -> 
D26: =IF(G26="","",CONCATENATE(G26,M26,N26,I26)) ->  | G26: =IF(J26="","","Sabia que poderá poupar até… ") ->  | H26: =IF(J26="","",J26) ->  | I26: =IF(J26="",""," … de água por minuto???") ->  | J26: =IF('Quarto-de-Banho'!K49>Apoio!E9,1-(Apoio!E9/'Quarto-de-Banho'!K49),"") ->  | K26: =H26 ->  | M26: =ROUND(L26*100,2) ->  | N26: %
D27: =CONCATENATE(G27,M27,N27,I27) ->  | G27: =IF('Quarto-de-Banho'!K35="Não","Sabia que poderá diminuir o consumo de água em pelo menos 75% caso feche a torneira enquanto lava os dentes???","") -> 
D28: =CONCATENATE(G28,M28,N28,I28) ->  | G28: =IF('Quarto-de-Banho'!K41="Não","Sabia que poderá diminuir o consumo de água em pelo menos 50% caso feche a torneira enquanto lava as mãos???","") -> 
B29: =Cozinha!G6 -> Cozinha | C29: =Cozinha!H6 -> Lava-louça | D29: =CONCATENATE(G29,H29,I29) ->  | G29: =IF(Cozinha!K6="","","Sabia que a Torneira de Lavatório é classificado pela ANQIP com… ") ->  | H29: =IF(ISBLANK(Cozinha!K6)," ",IF(Cozinha!K6<=4,"A++",IF(AND(Cozinha!K6>4,Cozinha!K6<=6),"A++",IF(AND(Cozinha!K6>6,Cozinha!K6<=9),"A+",IF(AND(Cozinha!K6>9,Cozinha!K6<=12),"A",IF(AND(Cozinha!K6>12,Cozinha!K6<=15),"B","C")))))) ->  | I29: =IF(G29="",""," ???") -> 
D30: =CONCATENATE(G30,M30,N30,I30) ->  | G30: =IF(Cozinha!K6="","","Sabia que existem torneiras de cozinha com arejador e/ou eco-stop???") -> 
D31: =CONCATENATE(G31,M31,N31,I31) -> Sabia que poderá diminuir a quantidade que gasta por minuto para valores inferiores que 4 litros??? | G31: =IF(OR(Cozinha!K6>Apoio!E13,Cozinha!K6=""),"Sabia que poderá diminuir a quantidade que gasta por minuto para valores inferiores que 4 litros???","") -> Sabia que poderá diminuir a quantidade que gasta por minuto para valores inferiores que 4 litros???
D32: =IF(G32="","",CONCATENATE(G32,M32,N32,I32)) ->  | G32: =IF(J32="","","Sabia que poderá poupar até… ") ->  | H32: =IF(J32="","",J32) ->  | I32: =IF(J32="","","… de água por minuto???") ->  | J32: =IF(Cozinha!K6>Apoio!E13,1-(Apoio!E13/Cozinha!K6),"") ->  | K32: =H32 ->  | M32: =ROUND(L32*100,2) ->  | N32: %
C33: =Cozinha!H18 -> Beber e Cozinhar
B34: =Equipamento!G6 -> Equipamento | C34: =Equipamento!H6 -> Máquina Lavar Roupa | D34: =CONCATENATE(G34,M34,N34,I34) ->  | G34: =IF(Equipamento!K10="","","Sabia que o valor de referência para as Máquinas de Lavar Roupa são 5 litros de consumo de água por Kg de Roupa???") -> 
G35: =IF(Equipamento!K10="","","Sabia que existem Máquinas de Lavar Roupa Eficientes em termos de consumo de água e energia e que actualmente na EU é obrigatório que o nível mínimo de Eficiência Energética seja a de Classificação A+???") -> 
D36: Sabia que existe no mercado Máquinas de Lavar Roupa que consomem menos quantidade de água por Kg de Roupa chegando estes valores aos 6 litros??? | G36: =IF(OR(Equipamento!K10>Apoio!E14,Equipamento!K10=""),"Sabia que existe no mercado Máquinas de Lavar Roupa que consomem menos quantidade de água por Kg de Roupa chegando estes valores aos 6 litros???","") -> Sabia que existe no mercado Máquinas de Lavar Roupa que consomem menos quantidade de água por Kg de Roupa chegando estes valores aos 6 litros???
D37: =IF(G37="","",CONCATENATE(G37,M37,N37,I37)) ->  | G37: =IF(Equipamento!K8="","","Sabia que deverá apenas dar início à Lavagem caso tenha a Máquina cheia???") -> 
D38: =IF(G38="","",CONCATENATE(G38,M38,N38,I38)) ->  | G38: =IF(J38="","","Sabia que poderá poupar até… ") ->  | H38: =IF(J38="","",J38) ->  | I38: =IF(J38="",""," … de água por Kg de Roupa Lavada???") ->  | J38: =IF(Equipamento!K10>Apoio!E14,1-(Apoio!E14/Equipamento!K10),"") ->  | K38: =H38 ->  | M38: =ROUND(L38*100,2) ->  | N38: %
C39: =Equipamento!H11 -> Máquina Lavar Loiça | G39: =IF(Equipamento!K14="","","Sabia que o valor de referência para as Máquinas de Lavar-Louça são 6 litros de consumo de água por ciclo de lavagem???") -> 
G40: =IF(Equipamento!K14="","","Sabia que existem Máquinas de Lavar Louça Eficientes em termos de consumo de água e energia e que actualmente na EU é obrigatório que o nível mínimo de Eficiência Energética seja a de Classficiação A+???") -> 
D41: Sabia que existe no mercado Máquinas de Lavar Louça que consomem menos de 12 litros de água por ciclo de lavagem??? | G41: =IF(OR(Equipamento!K14>Apoio!E15,Equipamento!K14=""),"Sabia que existe no mercado Máquinas de Lavar Louça que consomem menos de 12 litros de água por ciclo de lavagem???","") -> Sabia que existe no mercado Máquinas de Lavar Louça que consomem menos de 12 litros de água por ciclo de lavagem???
G42: =IF(Equipamento!K14="","","Sabia que deverá apenas dar início à Lavagem caso tenha a Máquina cheia???") -> 
D43: =IF(G43="","",CONCATENATE(G43,M43,N43,I43)) ->  | G43: =IF(J43="","","Sabia que poderá poupar até… ") ->  | H43: =IF(J43="","",J43) ->  | I43: =IF(J43="",""," … de água por ciclo de lavagem???") ->  | J43: =IF(Equipamento!K14>Apoio!E15,1-(Apoio!E15/Equipamento!K14),"") ->  | K43: =H43 ->  | M43: =ROUND(L43*100,2) ->  | N43: %
B44: =Limpeza!G6 -> Limpeza | C44: =Limpeza!H6 -> Casa | D44: =IF(G44="","",CONCATENATE(G44,M44,N44,I44)) ->  | G44: =IF(J44="","","Sabia que poderá poupar até… ") ->  | H44: =IF(J44="","",J44) ->  | I44: =IF(J44="",""," … de água na lavagem de sua casa???") ->  | J44: =IF(Limpeza!K6>Apoio!E16,1-(Apoio!E16/Limpeza!K6),"") ->  | K44: =H44 ->  | L44: =K44 ->  | M44: =ROUND(L44*100,2) ->  | N44: %
C45: =Limpeza!H7 -> Carro | D45: =IF(G45="","",CONCATENATE(G45,M45,N45,I45)) ->  | G45: =IF(J45="","","Sabia que poderá poupar até… ") ->  | H45: =IF(J45="","",J45) ->  | I45: =IF(J45="",""," … de água por minuto???") ->  | J45: =IF(Limpeza!K14>Apoio!E17,1-(Apoio!E17/Limpeza!K14),"") ->  | K45: =H45 ->  | M45: =ROUND(L45*100,2) ->  | N45: %
B46: ='Espaços Verdes'!G6 -> Jardins / Espaços Verdes | C46: ='Espaços Verdes'!H6 -> Rega | D46: =IF(G46="","",CONCATENATE(G46,M46,I46)) ->  | G46: =IF('Espaços Verdes'!K6="Sim","Sabia que o consumo de água por m2 no espaço público é de… ","") ->  | H46: =IF('Espaços Verdes'!K6="Sim",('Espaços Verdes'!N6/'Espaços Verdes'!K17)/Apoio!H3,"") ->  | I46: =IF('Espaços Verdes'!K6="Sim"," … litros/m2.dia???","") ->  | K46: =H46 ->  | M46: =ROUND(L46*100,2) ->  | N46: %
B47: =Piscina!G6 -> Piscina | C47: =Piscina!H6 -> Tanque | D47: =CONCATENATE(G47,M47,N47,I47) ->  | G47: =IF(Piscina!N6>0,"Sabia que a evaporação é responsável por 30% do consumo de água numa piscina???","") -> 
D48: Sabia que uma boa forma de diminuir o consumo de água da sua piscina é cobri-la com uma tela nas horas de maior calor, impedindo também que possíveis poeiras e afins se acumulem na água, evitando a sujidade??? | G48: =IF(Piscina!K12="Não","Sabia que uma boa forma de diminuir o consumo de água da sua piscina é cobri-la com uma tela nas horas de maior calor, impedindo também que possíveis poeiras e afins se acumulem na água, evitando a sujidade???","") -> Sabia que uma boa forma de diminuir o consumo de água da sua piscina é cobri-la com uma tela nas horas de maior calor, impedindo também que possíveis poeiras e afins se acumulem na água, evitando a sujidade???
B49: =Outros!G6 -> Outros | C49: =Outros!H6 -> Lago | G49: =IF(Outros!K10<Apoio!E23,"Sabia que poderia aproveitar a água da chuva para encher o seu lago???","") -> 
C50: =Outros!H13 -> Sistemas de Aquecimento / Arrefecimento (AVAC) | D50: Sabia que poderia aproveitar as águas cinzentas ou água da chuva para os sistemas de aquecimento/arrefecimento??? | G50: =IF(Outros!N13="","","Sabia que poderia aproveitar as águas cinzentas ou água da chuva para os sistemas de aquecimento/arrefecimento???") -> Sabia que poderia aproveitar as águas cinzentas ou água da chuva para os sistemas de aquecimento/arrefecimento???
B51: =Fugas!G6 -> Fugas | C51: =Fugas!H6 -> Fugas | G51: =IF(Fugas!K6="Sim","Se vê a pingar… toca a arranjar!!!","") -> 

Sheet Sabia que.Real
C5: Na próxima página seleccione as alternativas disponíveis na Coluna VALOR para a(s) utilização(ões) em que deseje alterar ou testar novos dispositivos, apurando o Período de Retorno do Investimento e a Poupança que pode alcançar.

Sheet Real vs Simulado
B2: ALTERAÇÃO DE DISPOSITIVOS/COMPORTAMENTO
B4: ='Quarto-de-Banho'!G5 -> Local / Atividade | C4: ='Quarto-de-Banho'!H5 -> Onde Gasta? | D4: Consumo Atual | J4: Consumo do Equipamento / Atividade ou Período de Tempo Atual | K4: Rotulagem Eficiência Hídrica (A++, A+, A, B, C, D, E) | L4: Consumo do Equipamento / Atividade ou Período de Tempo de Referência | M4: Rotulagem Eficiência Hídrica (A++, A+, A, B, C, D, E) | N4: Unidades | O4: Teste as possíveis alterações / hipóteses para aumentar a Eficiência Hídrica | Q4: Auxiliar | R4: Valor Seleccionado | S4: Rotulagem Eficiência Hídrica que passará a dispôr (A++, A+, A, B, C, D, E) | T4: Percentagem de Poupança (%) | V4: Consumo Simulado | AB4: Redução por Local / Atividade (%)
D5: Por Utilização (litros/mês) | E5: Por Utilização (m3/mês) | F5: Por Utilização (%) | G5: Por Tipo de Utilização (%) | H5: Por Local (%) | O5: Questão | P5: Valor | V5: Por Utilização (litros/mês) | W5: Por Utilização (m3/mês) | X5: Por Utilização (%) | Y5: Por Tipo de Utilização (%) | Z5: Por Local (%)
B6: ='Quarto-de-Banho'!G6 -> Quarto de Banho / Balneário | C6: ='Quarto-de-Banho'!H6 -> Autoclismo | D6: ='Quarto-de-Banho'!N6 -> 0 | E6: =D6/1000 -> 0 | F6: =IF(D6=0,0,E6/$E$24) -> 0 | G6: =SUM(F6:F7) -> 0 | H6: =SUM(F6:F12) -> 0 | J6: ='Quarto-de-Banho'!K9 -> 0 | K6: =IF(J6=0,"-",IF('Quarto-de-Banho'!K6="Dupla Descarga",IF(J6<=Escalas!AC5,Escalas!A5,IF(AND(J6>Escalas!AB6,J6<=Escalas!AC6),Escalas!A6,IF(AND(J6>Escalas!AB7,J6<=Escalas!AC7),Escalas!A7,IF(AND(J6>Escalas!AB8,J6<=Escalas!AC8),Escalas!A8,IF(AND(J6>Escalas!AB9,J6<=Escalas!AC9),Escalas!A9,"-"))))),IF('Quarto-de-Banho'!K6="C/ Interrupção de Descarga",IF(J6<=Escalas!AA6,Escalas!A6,IF(AND(J6>Escalas!Z7,J6<=Escalas!AA7),Escalas!A7,IF(AND(J6>Escalas!Z8,J6<=Escalas!AA8),Escalas!A8,IF(AND(J6>Escalas!Z9,J6<=Escalas!AA9),Escalas!A9,IF(AND(J6>Escalas!Z10,J6<=Escalas!AA10),Escalas!A10,"-"))))),IF('Quarto-de-Banho'!K6="Descarga Completa",IF(J6<=Escalas!Y7,Escalas!A7,IF(AND(J6>Escalas!Z7,J6<=Escalas!AA7),Escalas!A8,IF(AND(J6>Escalas!X9,J6<=Escalas!Y9),Escalas!A9,IF(AND(J6>Escalas!X10,J6<=Escalas!Y10),Escalas!A10,IF(AND(J6>Escalas!X11,J6<=Escalas!Y11),Escalas!A11,"-"))))))))) -> - | L6: =Apoio!E2 -> 4.5 | M6: =IF('Quarto-de-Banho'!K6="Dupla Descarga",IF(L6<=Escalas!AC5,Escalas!A6,IF(AND(L6>Escalas!AB6,L6<=Escalas!AC6),Escalas!A6,IF(AND(L6>Escalas!AB7,L6<=Escalas!AC7),Escalas!A7,IF(AND(L6>Escalas!AB8,L6<=Escalas!AC8),Escalas!A8,IF(AND(L6>Escalas!AB9,L6<=Escalas!AC9),Escalas!A9,"-"))))),IF('Quarto-de-Banho'!K6="C/ Interrupção de Descarga",IF(L6<=Escalas!AA6,Escalas!A6,IF(AND(L6>Escalas!Z7,L6<=Escalas!AA7),Escalas!A7,IF(AND(L6>Escalas!Z8,L6<=Escalas!AA8),Escalas!A8,IF(AND(L6>Escalas!Z9,L6<=Escalas!AA9),Escalas!A9,IF(AND(L6>Escalas!Z10,L6<=Escalas!AA10),Escalas!A10,"-"))))),IF('Quarto-de-Banho'!K6="Descarga Completa",IF(L6<=Escalas!Y7,Escalas!A7,IF(AND(L6>Escalas!Z7,L6<=Escalas!AA7),Escalas!A8,IF(AND(L6>Escalas!X9,L6<=Escalas!Y9),Escalas!A9,IF(AND(L6>Escalas!X10,L6<=Escalas!Y10),Escalas!A10,IF(AND(L6>Escalas!X11,L6<=Escalas!Y11),Escalas!A11,"-")))))))) -> A | N6: Litros por descarga | O6: =IF('Quarto-de-Banho'!K9="","","Selecione o valor de descarga pretendido.") ->  | Q6: 1 | R6: =VLOOKUP(Q6,B41:T58,2,FALSE) -> 0 | S6: =IF(T75=0,"–",T75) -> – | T6: =IF(J6=0,0,1-(R6/J6)) -> 0 | V6: =D6-(D6*T6) -> 0 | W6: =V6/1000 -> 0 | X6: =IF(V6=0,0,W6/$W$24) -> 0 | Y6: =SUM(X6:X7) -> 0 | Z6: =SUM(X6:X12) -> 0 | AB6: =IF(AND(W6=0,W7=0,W8=0,W9=0,W10=0,W11=0,W12=0),0,(1-(SUM(W6:W12)/SUM(E6:E12)))) -> 0
C7: ='Quarto-de-Banho'!H12 -> Fluxómetro / Mictório | D7: ='Quarto-de-Banho'!N12 -> 0 | E7: 0 | F7: =IF(D7=0,0,E7/$E$24) -> 0 | J7: ='Quarto-de-Banho'!K15 -> 0 | K7: =IF(J7=0,"-",IF(J7<=Escalas!AE5,Escalas!A5,IF(AND(J7>Escalas!AD6,J7<=Escalas!AE6),Escalas!A6,IF(AND(J7>Escalas!AD7,J7<=Escalas!AE7),Escalas!A7,IF(AND(J7>Escalas!AD8,J7<=Escalas!AE8),Escalas!A8,IF(AND(J7>Escalas!AD9,J7<=Escalas!AE9),Escalas!A9,IF(AND(J7>Escalas!AD10,J7<=Escalas!AE10),Escalas!A10,"E"))))))) -> - | L7: =Apoio!E3 -> 2 | M7: =IF(L7<>0,IF(L7<=Escalas!AE5,Escalas!A5,IF(AND(L7>Escalas!AD6,L7<=Escalas!AE6),Escalas!A6,IF(AND(L7>Escalas!AD7,L7<=Escalas!AE7),Escalas!A7,IF(AND(L7>Escalas!AD8,L7<=Escalas!AE8),Escalas!A8,IF(AND(L7>Escalas!AD9,L7<=Escalas!AE9),Escalas!A9,IF(AND(L7>Escalas!AD10,L7<=Escalas!AE10),Escalas!A10,"E"))))))) -> A+ | O7: =IF('Quarto-de-Banho'!K12="Sim","Selecione o valor de descarga pretendido.","") ->  | Q7: 1 | R7: =VLOOKUP(Q7,B41:T58,3,FALSE) -> 0 | S7: =IF(T115=0,"–",T115) -> – | T7: =IF(J7=0,0,(1-(R7/J7))) -> 0 | V7: =D7-(D7*T7) -> 0 | W7: 0 | X7: =IF(V7=0,0,W7/$W$24) -> 0
C8: ='Quarto-de-Banho'!H16 -> Chuveiro / Duche | D8: ='Quarto-de-Banho'!N16 -> 0 | E8: 0 | F8: =IF(D8=0,0,E8/$E$24) -> 0 | G8: =SUM(F8:F10) -> 0 | J8: ='Quarto-de-Banho'!K18 -> 0 | K8: =IF(J8=0,"-",IF(J8<=Escalas!G6,Escalas!A6,IF(AND(J8>Escalas!F7,J8<=Escalas!G7),Escalas!A7,IF(AND(J8>Escalas!F8,J8<=Escalas!G8),Escalas!A8,IF(AND(J8>Escalas!F9,J8<=Escalas!G9),Escalas!A9,IF(AND(J8>Escalas!F10,J8<=Escalas!G10),Escalas!A10,IF(AND(J8>Escalas!F11,J8<=Escalas!G11),Escalas!A11,"E"))))))) -> - | L8: =Apoio!E4 -> 7.2 | M8: =IF(L8<>0,IF(L8<=Escalas!G6,Escalas!A6,IF(AND(L8>Escalas!F7,L8<=Escalas!G7),Escalas!A7,IF(AND(L8>Escalas!F8,L8<=Escalas!G8),Escalas!A8,IF(AND(L8>Escalas!F9,L8<=Escalas!G9),Escalas!A9,IF(AND(L8>Escalas!F10,L8<=Escalas!G10),Escalas!A10,IF(AND(L8>Escalas!F11,L8<=Escalas!G11),Escalas!A11,"E"))))))) -> A | N8: Litros por minuto | O8: =IF('Quarto-de-Banho'!K18="","","Selecione o caudal pretendido.") ->  | Q8: 1 | R8: =VLOOKUP(Q8,B41:T61,4,0) -> 0 | S8: =IF(T83=0,"–",T83) -> – | T8: =IF(J8=0,0,(1-(R8/J8))) -> 0 | V8: =IF(AND(T8=0,T9=0),D8,IF(AND(T8=0,T9<0),D8+D8*ABS(T9),IF(AND(T8=0,T9>0),D8-(D8*ABS(T9)),IF(AND(T9=0,T8<0),D8+(D8*ABS(T8)),IF(AND(T9=0,T8>0),D8-(D8*ABS(T8)),IF(AND(T8>0,T9>0),((R8*R9)/(J8*J9))*D8,IF(AND(T8<0,T9<0),((R8*R9)/(J8*J9))*D8,IF(AND(T8<0,T9>0),((R8*R9)/(J8*J9))*D8,IF(AND(T8>0,T9<0),((R8*R9)/(J8*J9))*D8,"XPTO"))))))))) -> 0 | W8: 0 | X8: =IF(V8=0,0,W8/$W$24) -> 0 | Y8: =SUM(X8:X10) -> 0
J9: ='Quarto-de-Banho'!K17 -> 0 | K9: - | L9: =Apoio!H15 -> 7 | M9: - | N9: Minutos por duche | O9: =IF('Quarto-de-Banho'!K17="","","Selecione a duração.") ->  | Q9: 1 | R9: =VLOOKUP(Q9,B41:W61,22,FALSE) -> 0 | S9: – | T9: =IF(J9=0,0,(1-(R9/J9))) -> 0
C10: ='Quarto-de-Banho'!H24 -> Banho de Imersão | D10: ='Quarto-de-Banho'!N24 -> 0 | E10: 0 | F10: =IF(D10=0,0,E10/$E$24) -> 0 | J10: =IF('Quarto-de-Banho'!K24="Não",0,'Quarto-de-Banho'!K27) -> 0 | K10: - | L10: =Apoio!H16 -> 0 | M10: - | N10: Litros por banho | O10: =IF('Quarto-de-Banho'!K24="Sim","Selecione `Sim` se pretende mudar de banho de imersão para duche.","") ->  | Q10: 1 | R10: =VLOOKUP(Q10,B41:V42,21,FALSE) -> Não | S10: – | T10: =IF(Q10=1,0,(('Quarto-de-Banho'!K26*'Real vs Simulado'!J10)/('Quarto-de-Banho'!K26*'Quarto-de-Banho'!K17*'Quarto-de-Banho'!K18))) -> 0 | V10: =IF(Q10=1,'Real vs Simulado'!D10,D10/T10) -> 0 | W10: =V10/1000 -> 0 | X10: =IF(V10=0,0,W10/$W$24) -> 0
C11: ='Quarto-de-Banho'!H32 -> Lavatório | D11: ='Quarto-de-Banho'!N46+'Quarto-de-Banho'!N33+'Quarto-de-Banho'!N40+'Quarto-de-Banho'!N55 -> 0 | E11: 0 | F11: 0 | G11: =SUM(F11:F12) -> 0 | J11: ='Quarto-de-Banho'!K32 -> 0 | K11: =IF(J11=0,"-",IF(J11<=Escalas!S6,Escalas!A6,IF(AND(J11>Escalas!R7,J11<=Escalas!S7),Escalas!A7,IF(AND(J11>Escalas!R8,J11<=Escalas!S8),Escalas!A8,IF(AND(J11>Escalas!R9,J11<=Escalas!S9),Escalas!A9,IF(AND(J11>Escalas!R10,J11<=Escalas!S10),Escalas!A10,IF(AND(J11>Escalas!R11,J11<=Escalas!S11),Escalas!A11,"E"))))))) -> - | L11: =Apoio!E8 -> 2 | M11: =IF(L11<>0,IF(L11<=Escalas!S6,Escalas!A6,IF(AND(L11>Escalas!R7,L11<=Escalas!S7),Escalas!A7,IF(AND(L11>Escalas!R8,L11<=Escalas!S8),Escalas!A8,IF(AND(L11>Escalas!R9,L11<=Escalas!S9),Escalas!A9,IF(AND(L11>Escalas!R10,L11<=Escalas!S10),Escalas!A10,IF(AND(L11>Escalas!R11,L11<=Escalas!S11),Escalas!A11,"E"))))))) -> A+ | N11: Litros por minuto | O11: =IF('Quarto-de-Banho'!K32="","","Selecione o caudal pretendido.") ->  | Q11: 1 | R11: =VLOOKUP(Q11,B41:T58,5,FALSE) -> 0 | S11: =IF(T91=0,"–",T91) -> – | T11: =IF(J11=0,0,(1-(R11/J11))) -> 0 | V11: =D11-(D11*T11) -> 0 | W11: 0 | X11: 0 | Y11: =SUM(X11:X12) -> 0
C12: ='Quarto-de-Banho'!H56 -> Bidés | D12: ='Quarto-de-Banho'!N56 -> 0 | E12: =D12/1000 -> 0 | F12: =IF(D12=0,0,E12/$E$24) -> 0 | J12: ='Quarto-de-Banho'!K59 -> 0 | K12: =IF(J12=0,"-",IF(J12<=Escalas!S6,Escalas!A6,IF(AND(J12>Escalas!R7,J12<=Escalas!S7),Escalas!A7,IF(AND(J12>Escalas!R8,J12<=Escalas!S8),Escalas!A8,IF(AND(J12>Escalas!R9,J12<=Escalas!S9),Escalas!A9,IF(AND(J12>Escalas!R10,J12<=Escalas!S10),Escalas!A10,IF(AND(J12>Escalas!R11,J12<=Escalas!S11),Escalas!A11,"E"))))))) -> - | L12: =Apoio!E12 -> 2 | M12: =IF(L12<>0,IF(L12<=Escalas!S6,Escalas!A6,IF(AND(L12>Escalas!R7,L12<=Escalas!S7),Escalas!A7,IF(AND(L12>Escalas!R8,L12<=Escalas!S8),Escalas!A8,IF(AND(L12>Escalas!R9,L12<=Escalas!S9),Escalas!A9,IF(AND(L12>Escalas!R10,L12<=Escalas!S10),Escalas!A10,IF(AND(L12>Escalas!R11,L12<=Escalas!S11),Escalas!A11,"E"))))))) -> A+ | O12: =IF('Quarto-de-Banho'!K56="Sim","Selecione o caudal pretendido.","") ->  | Q12: 1 | R12: =VLOOKUP(Q12,B41:T58,6,FALSE) -> 0 | S12: =IF(T99=0,"–",T99) -> – | T12: =IF(J12=0,0,(1-(R12/J12))) -> 0 | V12: 0 | W12: 0 | X12: 0
B13: =Cozinha!G6 -> Cozinha | C13: =Cozinha!H6 -> Lava-louça | D13: =Cozinha!N7+Cozinha!N16 -> 0 | E13: =D13/1000 -> 0 | F13: =IF(D13=0,0,E13/$E$24) -> 0 | G13: 0 | H13: =SUM(F13:F14) -> 0 | J13: =Cozinha!K6 -> 0 | K13: =IF(J13=0,"-",IF(J13<=Escalas!M6,Escalas!A6,IF(AND(J13>Escalas!L7,J13<=Escalas!M7),Escalas!A7,IF(AND(J13>Escalas!L8,J13<=Escalas!M8),Escalas!A8,IF(AND(J13>Escalas!L9,J13<=Escalas!M9),Escalas!A9,IF(AND(J13>Escalas!L10,J13<=Escalas!M10),Escalas!A10,IF(AND(J13<=Escalas!M10,J13>Escalas!L10),Escalas!A10,Escalas!A11))))))) -> - | L13: =Apoio!E13 -> 4 | M13: =IF(L13<>0,IF(L13<=Escalas!M6,Escalas!A6,IF(AND(L13>Escalas!L7,L13<=Escalas!M7),Escalas!A7,IF(AND(L13>Escalas!L8,L13<=Escalas!M8),Escalas!A8,IF(AND(L13>Escalas!L9,L13<=Escalas!M9),Escalas!A9,IF(AND(L13>Escalas!L10,L13<=Escalas!M10),Escalas!A10,IF(AND(L13<=Escalas!M10,L13>Escalas!L10),Escalas!A10,Escalas!A11))))))) -> A+ | N13: Litros por minuto | O13: =IF(Cozinha!K6="","","Selecione o caudal pretendido.") ->  | Q13: 1 | R13: =VLOOKUP(Q13,B41:T58,7,FALSE) -> 0 | S13: =IF(T107=0,"–",T107) -> – | T13: =IF(J13=0,0,(1-(R13/J13))) -> 0 | V13: 0 | W13: 0 | X13: 0 | Y13: 0 | Z13: =SUM(X13:X14) -> 0 | AB13: =IF(AND(W13=0,W14=0),0,(1-(SUM(W13:W14)/SUM(E13:E14)))) -> 0
C14: =Cozinha!H18 -> Beber e Cozinhar | D14: =Cozinha!N18 -> 0 | E14: 0 | F14: 0 | J14: =D14 -> 0 | K14: - | L14: =J14 -> 0 | M14: - | N14: Litros | O14: N/A | S14: N/A | V14: 0 | W14: 0 | X14: 0
B15: =Equipamento!G6 -> Equipamento | C15: =Equipamento!H6 -> Máquina Lavar Roupa | D15: =Equipamento!N6 -> 0 | E15: 0 | F15: 0 | G15: =SUM(F15) -> 0 | H15: =SUM(F15:F16) -> 0 | J15: =IF(Equipamento!K6="Não",0,Equipamento!K10/Equipamento!K9) -> 0 | K15: =IF(J15=0,"-",IF(J15<=Escalas!AN5,Escalas!A5,IF(AND(J15>Escalas!AM6,J15<=Escalas!AN6),Escalas!A6,IF(AND(J15>Escalas!AM7,J15<=Escalas!AN7),Escalas!A7,IF(AND(J15>Escalas!AM8,J15<=Escalas!AN8),Escalas!A8,IF(AND(J15>Escalas!AM9,J15<=Escalas!AN9),Escalas!A9,IF(AND(J15>Escalas!AM10,J15<=Escalas!AN10),Escalas!A10,"E"))))))) -> - | L15: =Apoio!E14 -> 6 | M15: =IF(L15<>0,IF(L15<=Escalas!AN5,Escalas!A5,IF(AND(L15>Escalas!AM6,L15<=Escalas!AN6),Escalas!A6,IF(AND(L15>Escalas!AM7,J15<=Escalas!AN7),Escalas!A7,IF(AND(L15>Escalas!AM8,L15<=Escalas!AN8),Escalas!A8,IF(AND(L15>Escalas!AM9,L15<=Escalas!AN9),Escalas!A9,IF(AND(L15>Escalas!AM10,L15<=Escalas!AN10),Escalas!A10,"E"))))))) -> A+ | N15: Litros por kg | O15: =IF(Equipamento!K6="Sim","Selecione o consumo por Kg de roupa","") ->  | Q15: 1 | R15: =VLOOKUP(Q15,B41:T58,8,FALSE) -> 0 | S15: =IF(T124=0,"–",T124) -> – | T15: =IF(J15=0,0,(1-(R15/J15))) -> 0 | V15: 0 | W15: 0 | X15: =IF(V15=0,0,W15/$W$24) -> 0 | Y15: =SUM(X15) -> 0 | Z15: =SUM(X15:X16) -> 0 | AB15: =IF(AND(W15=0,W16=0),0,(1-(SUM(W15:W16)/SUM(E15:E16)))) -> 0
C16: =Equipamento!H11 -> Máquina Lavar Loiça | D16: =Equipamento!N11 -> 0 | E16: 0 | F16: 0 | G16: =SUM(F16) -> 0 | J16: =IF(Equipamento!K11="Não",0,Equipamento!K14) -> 0 | K16: =IF(J16=0,"-",IF(J16<=Escalas!AP5,Escalas!A5,IF(AND(J16>Escalas!AO6,J16<=Escalas!AP6),Escalas!A6,IF(AND(J16>Escalas!AO7,J16<=Escalas!AP7),Escalas!A7,IF(AND(J16>Escalas!AO8,J16<=Escalas!AP8),Escalas!A8,IF(AND(J16>Escalas!AO9,J16<=Escalas!AP9),Escalas!A9,IF(AND(J16>Escalas!AO10,J16<=Escalas!AP10),Escalas!AP11,"E"))))))) -> - | L16: =Apoio!E15 -> 12 | M16: =IF(L16<>0,IF(L16<=Escalas!AP5,Escalas!A5,IF(AND(L16>Escalas!AO6,L16<=Escalas!AP6),Escalas!A6,IF(AND(L16>Escalas!AO7,L16<=Escalas!AP7),Escalas!A7,IF(AND(L16>Escalas!AO8,L16<=Escalas!AP8),Escalas!A8,IF(AND(L16>Escalas!AO9,L16<=Escalas!AP9),Escalas!A9,IF(AND(L16>Escalas!AO10,L16<=Escalas!AP10),Escalas!AP11,"E"))))))) -> A+ | N16: Litros por ciclo de lavagem | O16: =IF(Equipamento!K11="Sim","Selecione o consumo por Ciclo de Lavagem.","") ->  | Q16: 1 | R16: =VLOOKUP(Q16,B41:T58,9,FALSE) -> 0 | S16: =IF(T132=0,"–",T132) -> – | T16: =IF(J16=0,0,(1-(R16/J16))) -> 0 | V16: 0 | W16: 0 | X16: 0 | Y16: =SUM(X16) -> 0
B17: =Limpeza!G6 -> Limpeza | C17: =Limpeza!H6 -> Casa | D17: =Limpeza!N6 -> 0 | E17: 0 | F17: 0 | G17: =SUM(F17) -> 0 | H17: =SUM(F17:F18) -> 0 | J17: =G17 -> 0 | K17: =IF(J17<=Escalas!AL5,Escalas!A5,IF(AND(J17>Escalas!AK6,J17<=Escalas!AL6),Escalas!A6,IF(AND(J17>Escalas!AK7,J17<=Escalas!AL7),Escalas!A7,IF(AND(J17>Escalas!AK8,J17<=Escalas!AL8),Escalas!A8,IF(AND(J17>Escalas!AK9,J17<=Escalas!AL9),Escalas!A9,IF(AND(J17>Escalas!AK10,J17<=Escalas!AL10),Escalas!AL11,"E")))))) -> A++ | L17: =Apoio!E25 -> 0.02 | M17: =IF(L17<>0,IF(L17<=Escalas!AL5,Escalas!A5,IF(AND(L17>Escalas!AK6,L17<=Escalas!AL6),Escalas!A6,IF(AND(L17>Escalas!AK7,L17<=Escalas!AL7),Escalas!A7,IF(AND(L17>Escalas!AK8,L17<=Escalas!AL8),Escalas!A8,IF(AND(L17>Escalas!AK9,L17<=Escalas!AL9),Escalas!A9,IF(AND(L17>Escalas!AK10,L17<=Escalas!AL10),Escalas!AL11,"E"))))))) -> A+ | N17: Litros | O17: N/A | S17: N/A | V17: =D17-(D17*T17) -> 0 | W17: =V17/1000 -> 0 | X17: 0 | Y17: =SUM(X17) -> 0 | Z17: =SUM(X17:X18) -> 0 | AB17: =IF(AND(W17=0,W18=0),0,(1-(SUM(W17:W18)/SUM(E17:E18)))) -> 0
C18: =Limpeza!H7 -> Carro | D18: =Limpeza!N7 -> 0 | E18: 0 | F18: 0 | G18: 0 | J18: =D18 -> 0 | K18: - | L18: =IF(Limpeza!N7="Não",0,Limpeza!K9*10+(Limpeza!K9*2*Limpeza!K14)) -> 0 | M18: - | N18: Litros | O18: =IF(Limpeza!N7>0,"Selecione se pretende mudar de método de limpeza.","") ->  | Q18: 1 | R18: =VLOOKUP(Q18,B41:T58,11,FALSE) -> Usa um balde e esponja | S18: N/A | T18: =IF(Limpeza!K7="Não",0,IF(H69="Com mangueira e água sempre a correr",HLOOKUP(J69,D66:F69,2,FALSE),IF(H69="Com mangueira e água a correr metade do tempo médio de lavagem",HLOOKUP(J69,D66:F69,3,FALSE),IF(H69="Usa um balde e esponja",HLOOKUP(J69,D66:F69,4,FALSE))))) -> 0 | V18: =D18-(D18*T18) -> 0 | W18: =V18/1000 -> 0 | X18: 0 | Y18: 0
B19: ='Espaços Verdes'!G6 -> Jardins / Espaços Verdes | C19: Rega | D19: ='Espaços Verdes'!N6 -> 0 | E19: =D19/1000 -> 0 | F19: 0 | G19: =SUM(F19) -> 0 | H19: =SUM(F19) -> 0 | J19: =IF(E19=0,0,(D19/(Apoio!H3*'Espaços Verdes'!K17))) -> 0 | K19: =IF(J19=0,"-",IF(J19<=Escalas!AG5,Escalas!A5,IF(AND(J19>Escalas!AF6,J19<=Escalas!AG6),Escalas!A6,IF(AND(J19>Escalas!AF7,J19<=Escalas!AG7),Escalas!A7,IF(AND(J19>Escalas!AF8,J19<=Escalas!AG8),Escalas!A8,IF(AND(J19>Escalas!AF9,J19<=Escalas!AG9),Escalas!A9,IF(AND(J19>Escalas!AF10,J19<=Escalas!AG10),Escalas!A10,"E"))))))) -> - | L19: 1 | M19: =IF(L19<>0,IF(L19<=Escalas!AG5,Escalas!A5,IF(AND(L19>Escalas!AF6,L19<=Escalas!AG6),Escalas!A6,IF(AND(L19>Escalas!AF7,L19<=Escalas!AG7),Escalas!A7,IF(AND(L19>Escalas!AF8,L19<=Escalas!AG8),Escalas!A8,IF(AND(L19>Escalas!AF9,L19<=Escalas!AG9),Escalas!A9,IF(AND(L19>Escalas!AF10,L19<=Escalas!AG10),Escalas!A10,"E"))))))) -> A | N19: Litros por m2 | O19: =IF('Espaços Verdes'!K6="Sim","Selecione o consumo por m2.","") ->  | P19: 2 | Q19: 1 | R19: =VLOOKUP(Q19,B41:N57,13,FALSE) -> 0 | S19: =IF(T141=0,"–",T141) -> – | T19: =IF(Q19=1,0,(1-(R19/J19))) -> 0 | V19: =D19-(D19*T19) -> 0 | W19: 0 | X19: 0 | Y19: =SUM(X19) -> 0 | Z19: =SUM(X19) -> 0 | AB19: =IF(W19=0,0,(1-(W19/E19))) -> 0
B20: =Piscina!G6 -> Piscina | C20: =Piscina!H6 -> Tanque | D20: =Piscina!O6 -> 0 | E20: 0 | F20: 0 | G20: =SUM(F20) -> 0 | H20: =SUM(F20) -> 0 | J20: =D20 -> 0 | K20: - | L20: =IF(Piscina!K6="Não",0,IF(Piscina!K10="Aquecida Interior",((((Piscina!K14*Piscina!K15*Piscina!K16*Piscina!K17)/12*1000))+(Piscina!K14*Piscina!K15*Apoio!H14*Apoio!H3)),(((Piscina!K14*Piscina!K15*Piscina!K16*Piscina!K17)/12*1000))+(Piscina!K14*Piscina!K15*Apoio!H12*Apoio!H3))) -> 0 | M20: - | N20: Litros | O20: =IF(AND(Piscina!K6="Não",Piscina!K12="Não"),"","Selecione SIM se pretende saber qual seria o consumo com Cobertura Isotérmico.") ->  | Q20: 1 | R20: =VLOOKUP(Q20,B41:T58,14,FALSE) -> Não | S20: N/A | T20: =IF(Q20=1,0,IF(J20>0,1-(L20/J20),0)) -> 0 | V20: =D20-(D20*T20) -> 0 | W20: 0 | X20: 0 | Y20: =SUM(X20) -> 0 | Z20: =SUM(X20) -> 0 | AB20: =IF(W20=0,0,(1-(W20/E20))) -> 0
B21: =Outros!G6 -> Outros | C21: =Outros!H6 -> Lago | D21: =Outros!N6 -> 0 | E21: 0 | F21: 0 | G21: 0 | H21: =SUM(F21:F22) -> 0 | J21: =D21 -> 0 | K21: - | L21: 0 | M21: - | N21: Litros | O21: =IF(AND(Outros!K6="Não",Outros!K10="Não"),"","Selecione se pretende aproveitar água da chuva.") ->  | Q21: 1 | R21: =VLOOKUP(Q21,B41:T58,15,FALSE) -> Não | S21: N/A | T21: =IF(J21=0,"0,0%",IF(R21="Não",0,(1-(L21/J21)))) -> 0,0% | V21: 0 | W21: 0 | X21: 0 | Y21: 0 | Z21: =SUM(X21:X22) -> 0 | AB21: =IF(AND(W21=0,W22=0),0,(1-(SUM(W21:W22)/SUM(E21:E22)))) -> 0
C22: =Outros!H13 -> Sistemas de Aquecimento / Arrefecimento (AVAC) | D22: =Outros!N13 -> 0 | E22: 0 | F22: 0 | G22: 0 | J22: =Outros!N13 -> 0 | K22: - | L22: 0 | M22: - | N22: Litros | O22: =IF(AND(Outros!K13="Não",Outros!K16="Não"),"","Selecione se pretende aproveitar água da chuva ou reutilizar águas cinzentas.") ->  | Q22: 1 | R22: =VLOOKUP(Q22,B41:T58,16,FALSE) -> Não | S22: N/A | T22: =IF(R22="Não",0,(1-(L22/J22))) -> 0 | V22: 0 | W22: 0 | X22: 0 | Y22: 0
B23: =Fugas!G6 -> Fugas | C23: =Fugas!H6 -> Fugas | D23: =Fugas!N6 -> 0 | E23: 0 | F23: 0 | G23: 0 | H23: =SUM(F23) -> 0 | J23: =Fugas!N6 -> 0 | K23: - | L23: 0 | M23: - | N23: Litros | O23: =IF(Fugas!K6="Sim","Selecione se pretende arranjar.","") ->  | Q23: 1 | R23: =VLOOKUP(Q23,B41:T58,17,FALSE) -> Não | S23: N/A | T23: =IF(R23="Não",0,(1-(L23/J23))) -> 0 | V23: 0 | W23: 0 | X23: 0 | Y23: 0 | Z23: =SUM(X23) -> 0 | AB23: =IF(W23=0,0,(1-(W23/E23))) -> 0
B24: Consumo Total | D24: =SUM(D6:D23) -> 0 | E24: =SUM(E6:E23) -> 0 | F24: 0 | G24: =SUM(G6:G23) -> 0 | H24: =SUM(H6:H23) -> 0 | V24: =SUM(V6:V23) -> 0 | W24: =SUM(W6:W23) -> 0 | X24: =SUM(X6:X23) -> 0 | Y24: =SUM(Y6:Y23) -> 0 | Z24: =SUM(Z6:Z23) -> 0 | AB24: =IF(SUM(AB6:AB23)=0,0,(1-(W24/E24))) -> 0
C40: =C6 -> Autoclismo | D40: =C7 -> Fluxómetro / Mictório | E40: =C8 -> Chuveiro / Duche | F40: =C11 -> Lavatório | G40: =C12 -> Bidés | H40: =C13 -> Lava-louça | I40: =C15 -> Máquina Lavar Roupa | J40: =C16 -> Máquina Lavar Loiça | L40: =C18 -> Carro | N40: =C19 -> Rega | O40: =C20 -> Tanque | P40: =C21 -> Lago | Q40: =C22 -> Sistemas de Aquecimento / Arrefecimento (AVAC) | R40: =C23 -> Fugas | V40: =C10 -> Banho de Imersão | W40: =E40 -> Chuveiro / Duche | Y40: =100*50%*50% -> 25
B41: 1 | C41: ='Quarto-de-Banho'!K9 -> 0 | D41: ='Quarto-de-Banho'!K15 -> 0 | E41: ='Quarto-de-Banho'!K18 -> 0 | F41: ='Quarto-de-Banho'!K32 -> 0 | G41: ='Quarto-de-Banho'!K59 -> 0 | H41: =Cozinha!K6 -> 0 | I41: =J15 -> 0 | J41: =Equipamento!K14 -> 0 | L41: =T64 -> Usa um balde e esponja | N41: =J19 -> 0 | O41: =IF(O20<>0,"Não","Sim") -> Não | P41: =IF(O21<>0,"Não","Sim") -> Não | Q41: =IF(O22<>0,"Não","Sim") -> Não | R41: =IF(O23<>0,"Não","Sim") -> Não | V41: Não | W41: ='Quarto-de-Banho'!K17 -> 0 | Y41: =100*50%+100*50% -> 100
B42: =B41+1 -> 2 | C42: =4.5 -> 4.5 | D42: =0.5 -> 0.5 | E42: =4+1 -> 5 | F42: =1+1 -> 2 | G42: =1+1 -> 2 | H42: =3 -> 3 | I42: =5 -> 5 | J42: 4 | L42: =IF(L41="Com mangueira e água sempre a correr","Com mangueira e água a correr metade do tempo médio de lavagem",IF(L41="Com mangueira e água a correr metade do tempo médio de lavagem","Usa um balde e esponja",IF(L41="Usa um balde e esponja","Com mangueira e água sempre a correr","Com mangueira e água a correr metade do tempo médio de lavagem"))) -> Com mangueira e água sempre a correr | N42: =0.4 -> 0.4 | O42: =IF(O41="Sim","Não","Sim") -> Sim | P42: =IF(P41="Sim","Não","Sim") -> Sim | Q42: =IF(Q41="Sim","Não","Sim") -> Sim | R42: =IF(R41="Sim","Não","Sim") -> Sim | V42: Sim | W42: 3
B43: =B42+1 -> 3 | C43: =C42+0.5 -> 5 | D43: =D42+0.5 -> 1 | E43: =E42+1 -> 6 | F43: =F42+0.5 -> 2.5 | G43: =G42+0.5 -> 2.5 | H43: =H42+1 -> 4 | I43: =I42+0.5 -> 5.5 | J43: =J42+1 -> 5 | L43: =IF(L42="Com mangueira e água sempre a correr","Com mangueira e água a correr metade do tempo médio de lavagem",IF(L42="Com mangueira e água a correr metade do tempo médio de lavagem","Usa um balde e esponja",IF(L42="Usa um balde e esponja","Com mangueira e água sempre a correr","Com mangueira e água a correr metade do tempo médio de lavagem"))) -> Com mangueira e água a correr metade do tempo médio de lavagem | N43: =N42+0.4 -> 0.8 | W43: 4
B44: =B43+1 -> 4 | C44: =C43+0.5 -> 5.5 | D44: 1.5 | E44: 7 | F44: =F43+0.5 -> 3 | G44: 3 | H44: =H43+1 -> 5 | I44: =I43+0.5 -> 6 | J44: =J43+1 -> 6 | N44: 1 | W44: 5
B45: 5 | C45: 6 | D45: 2 | E45: =E44+0.5-0.3 -> 7.2 | F45: 3.5 | G45: 3.5 | H45: 6 | I45: 6.5 | J45: 7 | N45: =N43+0.4 -> 1.2 | W45: 6
B46: 6 | C46: 6.5 | D46: 2.5 | E46: =E45+0.5+0.3 -> 8 | F46: =F45+0.5 -> 4 | G46: =G45+0.5 -> 4 | H46: =H45+0.5 -> 6.5 | I46: 7 | J46: 8 | N46: =N45+0.4 -> 1.6 | W46: 7
B47: 7 | C47: 7 | D47: 3 | E47: 8.5 | F47: =F46+1 -> 5 | G47: =G46+1 -> 5 | H47: =H46+0.5 -> 7 | I47: 7.5 | J47: 9 | N47: 2 | W47: 8
B48: 8 | C48: 7.5 | D48: =D47+0.5 -> 3.5 | E48: 9 | F48: =F47+1 -> 6 | G48: 6 | H48: 7.5 | I48: 8 | J48: 10 | N48: 2.4 | W48: 9
B49: 9 | C49: 8 | D49: 4 | E49: 9.5 | F49: 7 | G49: 7 | H49: 8 | I49: 8.5 | J49: 11 | N49: 2.8 | W49: 10
B50: 10 | C50: 8.5 | D50: =D49+1 -> 5 | E50: 10 | F50: 8 | G50: 8 | H50: 8.5 | I50: 9 | J50: 12 | N50: 3.2 | W50: 11
B51: 11 | C51: 9 | D51: =D50+1 -> 6 | E51: =E50+1 -> 11 | F51: 9 | G51: 9 | H51: 9 | I51: 9.5 | J51: 13 | N51: 3.6 | W51: 12
B52: 12 | D52: 7 | E52: 12 | F52: 10 | G52: 10 | H52: =H51+0.5 -> 9.5 | I52: 10 | J52: 14 | N52: 4 | W52: 13
B53: 13 | D53: 8 | E53: 13 | F53: 11 | G53: 11 | H53: 10 | I53: =I52+1 -> 11 | J53: 15 | N53: 4.4 | W53: 14
B54: 14 | D54: 9 | E54: 14 | F54: =F53+1 -> 12 | G54: =G53+1 -> 12 | H54: =H53+1 -> 11 | I54: =I53+1 -> 12 | J54: 16 | N54: 4.8 | W54: 15
B55: 15 | D55: 10 | E55: =E54+1 -> 15 | F55: =F54+1 -> 13 | G55: =G54+1 -> 13 | H55: =H54+1 -> 12 | I55: 13 | J55: 17 | N55: 5.2 | W55: 16
B56: 16 | E56: =E55+1 -> 16 | F56: 14 | G56: 14 | H56: 13 | I56: 14 | J56: 18 | N56: 5.6 | W56: 17
B57: 17 | E57: 17 | F57: =F56+1 -> 15 | G57: 15 | H57: 14 | I57: 15 | J57: 19 | N57: 6 | W57: 18
B58: 18 | E58: 18 | H58: 15 | I58: 16 | J58: 20 | W58: 19
B59: 19 | E59: 19 | W59: 20
B60: 20 | E60: 20
B61: 21
C62: Sim | D62: Sim | E62: Sim | F62: Sim | G62: Sim | H62: Sim | I62: Sim | J62: Sim | L62: Sim | N62: Sim | O62: Sim | P62: Sim | Q62: Sim | R62: Sim
C63: Não | D63: Não | E63: Não | F63: Não | G63: Não | H63: Não | I63: Não | J63: Não | L63: Não | N63: Não | O63: Não | P63: Não | Q63: Não | R63: Não
J64: 2 | T64: =IF(AND(ISTEXT(Limpeza!L10),Limpeza!K10>0),"Com mangueira e água sempre a correr",IF(AND(ISTEXT(Limpeza!L11),Limpeza!K11>0),"Com mangueira e água a correr metade do tempo médio de lavagem","Usa um balde e esponja")) -> Usa um balde e esponja
D65: Passa a ser
D66: =C67 -> Com mangueira e água sempre a correr | E66: =C68 -> Com mangueira e água a correr metade do tempo médio de lavagem | F66: =C69 -> Usa um balde e esponja
B67: É | C67: Com mangueira e água sempre a correr | D67: =(D72-D72)/D72 ->  | E67: =(D72-D73)/D72 ->  | F67: =(D72-D74)/D72 -> 
C68: Com mangueira e água a correr metade do tempo médio de lavagem | D68: =(D73-D72)/D73 ->  | E68: =(D73-D73)/D73 ->  | F68: =(D73-D74)/D73 ->  | H68: como é | J68: como será | T68: litros | U68: 4.5 | V68: 5 | W68: 5.5 | X68: 6 | Y68: 6.5 | Z68: 7 | AA68: 7.5 | AB68: 8 | AC68: 8.5 | AD68: 9 | AE68: 9.5
C69: Usa um balde e esponja | D69: =(D74-D72)/D74 ->  | E69: =(D74-D73)/D74 ->  | F69: =(D74-D74)/D74 ->  | H69: =L41 -> Usa um balde e esponja | J69: =R18 -> Usa um balde e esponja | S69: Autoclismos | T69: 1 | U69: 2 | V69: =U69+1 -> 3 | W69: =V69+1 -> 4 | X69: =W69+1 -> 5 | Y69: 6 | Z69: 7 | AA69: 8 | AB69: 9 | AC69: 10 | AD69: 11 | AE69: 12
S70: Dupla Descarga | U70: A++ | V70: A+ | W70: A+ | X70: A | Y70: A | Z70: B | AA70: B | AB70: C | AC70: C | AD70: C | AE70: –
S71: C/ Interrupção de Descarga | U71: A+ | V71: A | W71: A | X71: B | Y71: B | Z71: C | AA71: C | AB71: D | AC71: D | AD71: D | AE71: –
C72: Mangueira | D72: =Limpeza!K9*Limpeza!K13*Limpeza!K14 -> 0 | S72: Descarga Completa | U72: A | V72: B | W72: B | X72: C | Y72: C | Z72: D | AA72: D | AB72: E | AC72: E | AD72: E | AE72: –
C73: Mangueira T/2 | D73: =(Limpeza!K9*Limpeza!K13*Limpeza!K14)/2 -> 0
C74: Balde e Esponja | D74: =(10*Limpeza!K9)+(2*Limpeza!K14*Limpeza!K9) -> 0 | S74: ='Quarto-de-Banho'!K6 -> Descarga Completa | T74: =Q6 -> 1
S75: =IF(S74="Dupla Descarga",2,IF(S74="C/ Interrupção de Descarga",3,4)) -> 4 | T75: =HLOOKUP(T74,S69:AE72,S75,0) -> 0
T78: litros | U78: =4+1 -> 5 | V78: =U78+1 -> 6 | W78: =V78+1 -> 7 | X78: =W78+0.5-0.3 -> 7.2 | Y78: =X78+0.5+0.3 -> 8 | Z78: =Y78+0.5 -> 8.5 | AA78: =Z78+0.5 -> 9 | AB78: =AA78+0.5 -> 9.5 | AC78: =AB78+0.5 -> 10 | AD78: =AC78+1 -> 11 | AE78: 12 | AF78: 13 | AG78: 14 | AH78: 15 | AI78: 16 | AJ78: 17 | AK78: 18 | AL78: 19 | AM78: 20
S79: Duche | T79: 1 | U79: 2 | V79: =U79+1 -> 3 | W79: =V79+1 -> 4 | X79: =W79+1 -> 5 | Y79: 6 | Z79: 7 | AA79: 8 | AB79: 9 | AC79: 10 | AD79: 11 | AE79: 12 | AF79: 13 | AG79: 14 | AH79: 15 | AI79: 16 | AJ79: 17 | AK79: 18 | AL79: 19 | AM79: 20
S80: Chuveiro | U80: A+ | V80: A | W80: A | X80: A | Y80: B | Z80: B | AA80: B | AB80: C | AC80: C | AD80: C | AE80: C | AF80: C | AG80: C | AH80: C | AI80: D | AJ80: D | AK80: D | AL80: D | AM80: D
T82: =Q8 -> 1
S83: Apresentar | T83: =HLOOKUP(T82,S79:AM80,2,0) -> 0
T86: litros | U86: =1+1 -> 2 | V86: =U86+0.5 -> 2.5 | W86: =V86+0.5 -> 3 | X86: =W86+0.5 -> 3.5 | Y86: =X86+0.5 -> 4 | Z86: =Y86+1 -> 5 | AA86: 6 | AB86: 7 | AC86: 8 | AD86: 9 | AE86: 10 | AF86: 11 | AG86: 12 | AH86: 13 | AI86: 14 | AJ86: 15
S87: Torneiras | T87: 1 | U87: =T87+1 -> 2 | V87: =U87+1 -> 3 | W87: =V87+1 -> 4 | X87: =W87+1 -> 5 | Y87: =X87+1 -> 6 | Z87: 7 | AA87: 8 | AB87: 9 | AC87: 10 | AD87: 11 | AE87: 12 | AF87: 13 | AG87: 14 | AH87: 15 | AI87: 16 | AJ87: 17
S88: Lavatório | U88: A+ | V88: A | W88: A | X88: A | Y88: A | Z88: B | AA88: B | AB88: C | AC88: C | AD88: C | AE88: D | AF88: D | AG88: D | AH88: E | AI88: E | AJ88: E
T90: =Q11 -> 1
S91: Apresentar | T91: =HLOOKUP(T90,S87:AJ88,2,0) -> 0
T94: litros | U94: =1+1 -> 2 | V94: =U94+0.5 -> 2.5 | W94: =V94+0.5 -> 3 | X94: =W94+0.5 -> 3.5 | Y94: =X94+0.5 -> 4 | Z94: =Y94+1 -> 5 | AA94: 6 | AB94: 7 | AC94: 8 | AD94: 9 | AE94: 10 | AF94: 11 | AG94: 12 | AH94: 13 | AI94: 14 | AJ94: 15
S95: Torneiras | T95: 1 | U95: =T95+1 -> 2 | V95: =U95+1 -> 3 | W95: =V95+1 -> 4 | X95: =W95+1 -> 5 | Y95: =X95+1 -> 6 | Z95: 7 | AA95: 8 | AB95: 9 | AC95: 10 | AD95: 11 | AE95: 12 | AF95: 13 | AG95: 14 | AH95: 15 | AI95: 16 | AJ95: 17
S96: Bidé | U96: A+ | V96: A | W96: A | X96: A | Y96: A | Z96: B | AA96: B | AB96: C | AC96: C | AD96: C | AE96: D | AF96: D | AG96: D | AH96: E | AI96: E | AJ96: E
T98: =Q12 -> 1
S99: Apresentar | T99: =HLOOKUP(T98,S95:AJ96,2,0) -> 0
T102: litros | U102: =3 -> 3 | V102: =U102+1 -> 4 | W102: 5 | X102: 6 | Y102: =X102+0.5 -> 6.5 | Z102: 7 | AA102: 7.5 | AB102: 8 | AC102: 8.5 | AD102: 9 | AE102: 9.5 | AF102: 10 | AG102: =AF102+1 -> 11 | AH102: 12 | AI102: 13 | AJ102: 14 | AK102: 15
S103: Torneiras | T103: 1 | U103: =T103+1 -> 2 | V103: 3 | W103: 4 | X103: 5 | Y103: 6 | Z103: 7 | AA103: 8 | AB103: 9 | AC103: 10 | AD103: 11 | AE103: 12 | AF103: 13 | AG103: 14 | AH103: 15 | AI103: 16 | AJ103: 17 | AK103: 18
S104: Lava-Louça | U104: A+ | V104: A+ | W104: A+ | X104: A | Y104: B | Z104: B | AA104: B | AB104: B | AC104: B | AD104: B | AE104: C | AF104: C | AG104: C | AH104: C | AI104: D | AJ104: D | AK104: D
T106: =Q13 -> 1
S107: Apresentar | T107: =HLOOKUP(T106,S103:AK104,2,0) -> 0
T110: litros | U110: =0.5 -> 0.5 | V110: =U110+0.5 -> 1 | W110: 1.5 | X110: 2 | Y110: 2.5 | Z110: 3 | AA110: 3.5 | AB110: 4 | AC110: =AB110+1 -> 5 | AD110: 6 | AE110: 7 | AF110: 8 | AG110: 9 | AH110: 10 | AI110: 11 | AJ110: 12 | AK110: 13
S111: Mictórios | T111: 1 | U111: =T111+1 -> 2 | V111: =U111+1 -> 3 | W111: 4 | X111: 5 | Y111: 6 | Z111: 7 | AA111: 8 | AB111: 9 | AC111: 10 | AD111: 11 | AE111: 12 | AF111: 13 | AG111: 14 | AH111: 15 | AI111: 16 | AJ111: 17 | AK111: 18
U112: A++ | V112: A++ | W112: A+ | X112: A+ | Y112: A | Z112: A | AA112: A | AB112: A | AC112: B | AD112: B | AE112: C | AF112: C | AG112: D | AH112: D | AI112: E | AJ112: E | AK112: D
T114: =Q7 -> 1
S115: Apresentar | T115: =HLOOKUP(T114,S111:AK112,2,0) -> 0
T119: Kg de Roupa | U119: =5 -> 5 | V119: =U119+0.5 -> 5.5 | W119: 6 | X119: 6.5 | Y119: 7 | Z119: 7.5 | AA119: 8 | AB119: 8.5 | AC119: 9 | AD119: 9.5 | AE119: 10 | AF119: =AE119+1 -> 11 | AG119: 12 | AH119: 13 | AI119: 14 | AJ119: 15 | AK119: 16
S120: Máq da Roupa | T120: 1 | U120: =T120+1 -> 2 | V120: =U120+1 -> 3 | W120: 4 | X120: 5 | Y120: 6 | Z120: 7 | AA120: 8 | AB120: 9 | AC120: 10 | AD120: 11 | AE120: 12 | AF120: 13 | AG120: 14 | AH120: 15 | AI120: 16 | AJ120: 17 | AK120: 18
U121: A++ | V121: A+ | W121: A+ | X121: A+ | Y121: A+ | Z121: A | AA121: A | AB121: A | AC121: A | AD121: B | AE121: B | AF121: B | AG121: B | AH121: C | AI121: C | AJ121: C | AK121: D
T123: =Q15 -> 1
T124: =HLOOKUP(T123,S120:AK121,2,0) -> 0
T127: Kg de Louça | U127: 4 | V127: =U127+1 -> 5 | W127: 6 | X127: 7 | Y127: 8 | Z127: 9 | AA127: 10 | AB127: 11 | AC127: 12 | AD127: 13 | AE127: 14 | AF127: 15 | AG127: 16 | AH127: 17 | AI127: 18 | AJ127: 19 | AK127: 20
S128: Máq da Louça | T128: 1 | U128: =T128+1 -> 2 | V128: 3 | W128: 4 | X128: 5 | Y128: 6 | Z128: 7 | AA128: 8 | AB128: 9 | AC128: 10 | AD128: 11 | AE128: 12 | AF128: 13 | AG128: 14 | AH128: 15 | AI128: 16 | AJ128: 17 | AK128: 18
U129: A++ | V129: A++ | W129: A++ | X129: A+ | Y129: A+ | Z129: A+ | AA129: A+ | AB129: A+ | AC129: A+ | AD129: A | AE129: A | AF129: A | AG129: A | AH129: B | AI129: B | AJ129: B | AK129: B
T131: =Q16 -> 1
T132: =HLOOKUP(T131,S128:AK129,2,0) -> 0
T136: Litros/m2 | U136: =0.4 -> 0.4 | V136: =U136+0.4 -> 0.8 | W136: 1.2 | X136: 1.6 | Y136: 2 | Z136: 2.4 | AA136: 2.8 | AB136: 3.2 | AC136: 3.6 | AD136: 4 | AE136: 4.4 | AF136: 4.8 | AG136: 5.2 | AH136: 5.6 | AI136: 6
S137: Rega | T137: 1 | U137: =T137+1 -> 2 | V137: =U137+1 -> 3 | W137: 4 | X137: 5 | Y137: 6 | Z137: 7 | AA137: 8 | AB137: 9 | AC137: 10 | AD137: 11 | AE137: 12 | AF137: 13 | AG137: 14 | AH137: 15 | AI137: 16
U138: A++ | V138: A+ | W138: A | X138: B | Y138: C | Z138: D | AA138: E | AB138: – | AC138: – | AD138: – | AE138: – | AF138: – | AG138: – | AH138: – | AI138: –
T140: =Q19 -> 1
T141: =HLOOKUP(T140,S137:AI138,2,0) -> 0

Sheet Resumo
B2: SIMULAÇÃO CONSUMO DE ÁGUA EM SUA CASA PARA POSSÍVEIS ALTERAÇÕES DE DISPOSITIVOS
B4: ='Quarto-de-Banho'!G5 -> Local / Atividade | C4: ='Quarto-de-Banho'!H5 -> Onde Gasta? | D4: Consumo Atual | J4: Consumo do Equipamento Actualmente | K4: Consumo do Equipamento de Referência | L4: Unidades | M4: Teste as possíveis alterações/hipoteses para aumentar a Eficiência Hídrica em sua casa ao mais baixo custo | O4: Auxiliar | P4: Valor Seleccionado | Q4: Percentagem de Poupança (%) | S4: Consumo Simulado | Y4: Redução por Local / Atividade (%)
D5: Por Utilização (litros/mês) | E5: Por Utilização (m3/mês) | F5: Por Utilização (%) | G5: Por Tipo de Utilização (%) | H5: Por Local (%) | M5: Questão | N5: Valor | S5: Por Utilização (litros/mês) | T5: Por Utilização (m3/mês) | U5: Por Utilização (%) | V5: Por Tipo de Utilização (%) | W5: Por Local (%)
B6: ='Quarto-de-Banho'!G6 -> Quarto de Banho / Balneário | C6: ='Quarto-de-Banho'!H6 -> Autoclismo | D6: ='Real vs Simulado'!D6 -> 0 | E6: ='Real vs Simulado'!E6 -> 0 | F6: ='Real vs Simulado'!F6 -> 0 | G6: ='Real vs Simulado'!G6 -> 0 | H6: ='Real vs Simulado'!H6:H12 -> 0 | J6: ='Real vs Simulado'!J6 -> 0 | K6: ='Real vs Simulado'!L6 -> 4.5 | L6: ='Real vs Simulado'!N6:N7 -> Litros por descarga | M6: ='Real vs Simulado'!O6 ->  | O6: 2 | P6: ='Real vs Simulado'!R6 -> 0 | Q6: ='Real vs Simulado'!T6 -> 0 | S6: ='Real vs Simulado'!V6 -> 0 | T6: ='Real vs Simulado'!W6 -> 0 | U6: ='Real vs Simulado'!X6 -> 0 | V6: ='Real vs Simulado'!Y6:Y7 -> 0 | W6: ='Real vs Simulado'!Z6:Z12 -> 0 | Y6: ='Real vs Simulado'!AB6:AB12 -> 0
C7: ='Quarto-de-Banho'!H12 -> Fluxómetro / Mictório | D7: ='Real vs Simulado'!D7 -> 0 | E7: ='Real vs Simulado'!E7 -> 0 | F7: ='Real vs Simulado'!F7 -> 0 | J7: ='Real vs Simulado'!J7 -> 0 | K7: ='Real vs Simulado'!L7 -> 2 | M7: ='Real vs Simulado'!O7 ->  | O7: 7 | P7: ='Real vs Simulado'!R7 -> 0 | Q7: ='Real vs Simulado'!T7 -> 0 | S7: ='Real vs Simulado'!V7 -> 0 | T7: ='Real vs Simulado'!W7 -> 0 | U7: ='Real vs Simulado'!X7 -> 0
C8: ='Quarto-de-Banho'!H16 -> Chuveiro / Duche | D8: ='Real vs Simulado'!D8 -> 0 | E8: ='Real vs Simulado'!E8 -> 0 | F8: ='Real vs Simulado'!F8 -> 0 | G8: ='Real vs Simulado'!G8:G10 -> 0 | J8: ='Real vs Simulado'!J8 -> 0 | K8: ='Real vs Simulado'!L8 -> 7.2 | L8: ='Real vs Simulado'!N8 -> Litros por minuto | M8: ='Real vs Simulado'!O8 ->  | O8: 2 | P8: ='Real vs Simulado'!R8 -> 0 | Q8: ='Real vs Simulado'!T8 -> 0 | S8: ='Real vs Simulado'!V8:V9 -> 0 | T8: ='Real vs Simulado'!W8:W9 -> 0 | U8: ='Real vs Simulado'!X8:X9 -> 0 | V8: ='Real vs Simulado'!Y8:Y10 -> 0
J9: ='Real vs Simulado'!J9 -> 0 | K9: ='Real vs Simulado'!L9 -> 7 | L9: ='Real vs Simulado'!N9 -> Minutos por duche | M9: ='Real vs Simulado'!O9 ->  | O9: 1 | P9: ='Real vs Simulado'!R9 -> 0 | Q9: ='Real vs Simulado'!T9 -> 0
C10: ='Quarto-de-Banho'!H24 -> Banho de Imersão | D10: ='Real vs Simulado'!D10 -> 0 | E10: ='Real vs Simulado'!E10 -> 0 | F10: ='Real vs Simulado'!F10 -> 0 | J10: ='Real vs Simulado'!J10 -> 0 | K10: ='Real vs Simulado'!L10 -> 0 | L10: ='Real vs Simulado'!N10 -> Litros por banho | M10: ='Real vs Simulado'!O10 ->  | O10: 2 | P10: ='Real vs Simulado'!R10 -> Não | Q10: ='Real vs Simulado'!T10 -> 0 | S10: ='Real vs Simulado'!V10 -> 0 | T10: ='Real vs Simulado'!W10 -> 0 | U10: ='Real vs Simulado'!X10 -> 0
C11: ='Quarto-de-Banho'!H32 -> Lavatório | D11: ='Real vs Simulado'!D11 -> 0 | E11: ='Real vs Simulado'!E11 -> 0 | F11: ='Real vs Simulado'!F11 -> 0 | G11: ='Real vs Simulado'!G11:G12 -> 0 | J11: ='Real vs Simulado'!J11 -> 0 | K11: ='Real vs Simulado'!L11 -> 2 | L11: ='Real vs Simulado'!N11:N12 -> Litros por minuto | M11: ='Real vs Simulado'!O11 ->  | O11: 8 | P11: ='Real vs Simulado'!R11 -> 0 | Q11: ='Real vs Simulado'!T11 -> 0 | S11: ='Real vs Simulado'!V11 -> 0 | T11: ='Real vs Simulado'!W11 -> 0 | U11: ='Real vs Simulado'!X11 -> 0 | V11: ='Real vs Simulado'!Y11:Y12 -> 0
C12: ='Quarto-de-Banho'!H56 -> Bidés | D12: ='Real vs Simulado'!D12 -> 0 | E12: ='Real vs Simulado'!E12 -> 0 | F12: ='Real vs Simulado'!F12 -> 0 | J12: ='Real vs Simulado'!J12 -> 0 | K12: ='Real vs Simulado'!L12 -> 2 | M12: ='Real vs Simulado'!O12 ->  | O12: 4 | P12: ='Real vs Simulado'!R12 -> 0 | Q12: ='Real vs Simulado'!T12 -> 0 | S12: ='Real vs Simulado'!V12 -> 0 | T12: ='Real vs Simulado'!W12 -> 0 | U12: ='Real vs Simulado'!X12 -> 0
B13: =Cozinha!G6 -> Cozinha | C13: =Cozinha!H6 -> Lava-louça | D13: ='Real vs Simulado'!D13 -> 0 | E13: ='Real vs Simulado'!E13 -> 0 | F13: ='Real vs Simulado'!F13 -> 0 | G13: ='Real vs Simulado'!G13:G14 -> 0 | H13: ='Real vs Simulado'!H13:H14 -> 0 | J13: ='Real vs Simulado'!J13 -> 0 | K13: ='Real vs Simulado'!L13 -> 4 | L13: ='Real vs Simulado'!N13 -> Litros por minuto | M13: ='Real vs Simulado'!O13 ->  | O13: 13 | P13: ='Real vs Simulado'!R13 -> 0 | Q13: ='Real vs Simulado'!T13 -> 0 | S13: ='Real vs Simulado'!V13 -> 0 | T13: ='Real vs Simulado'!W13 -> 0 | U13: ='Real vs Simulado'!X13 -> 0 | V13: ='Real vs Simulado'!Y13:Y14 -> 0 | W13: ='Real vs Simulado'!Z13:Z14 -> 0 | Y13: ='Real vs Simulado'!AB13:AB14 -> 0
C14: =Cozinha!H18 -> Beber e Cozinhar | D14: ='Real vs Simulado'!D14 -> 0 | E14: ='Real vs Simulado'!E14 -> 0 | F14: ='Real vs Simulado'!F14 -> 0 | J14: ='Real vs Simulado'!J14 -> 0 | K14: ='Real vs Simulado'!L14 -> 0 | L14: ='Real vs Simulado'!N14 -> Litros | Q14: ='Real vs Simulado'!T14 -> 0 | S14: ='Real vs Simulado'!V14 -> 0 | T14: ='Real vs Simulado'!W14 -> 0 | U14: ='Real vs Simulado'!X14 -> 0
B15: =Equipamento!G6 -> Equipamento | C15: =Equipamento!H6 -> Máquina Lavar Roupa | D15: ='Real vs Simulado'!D15 -> 0 | E15: ='Real vs Simulado'!E15 -> 0 | F15: ='Real vs Simulado'!F15 -> 0 | G15: ='Real vs Simulado'!G15 -> 0 | H15: ='Real vs Simulado'!H15:H16 -> 0 | J15: ='Real vs Simulado'!J15 -> 0 | K15: ='Real vs Simulado'!L15 -> 6 | L15: ='Real vs Simulado'!N15 -> Litros por kg | M15: ='Real vs Simulado'!O15 ->  | O15: 2 | P15: ='Real vs Simulado'!R15 -> 0 | Q15: ='Real vs Simulado'!T15 -> 0 | S15: ='Real vs Simulado'!V15 -> 0 | T15: ='Real vs Simulado'!W15 -> 0 | U15: ='Real vs Simulado'!X15 -> 0 | V15: ='Real vs Simulado'!Y15 -> 0 | W15: ='Real vs Simulado'!Z15:Z16 -> 0 | Y15: ='Real vs Simulado'!AB15:AB16 -> 0
C16: =Equipamento!H11 -> Máquina Lavar Loiça | D16: ='Real vs Simulado'!D16 -> 0 | E16: ='Real vs Simulado'!E16 -> 0 | F16: ='Real vs Simulado'!F16 -> 0 | G16: ='Real vs Simulado'!G16 -> 0 | J16: ='Real vs Simulado'!J16 -> 0 | K16: ='Real vs Simulado'!L16 -> 12 | L16: ='Real vs Simulado'!N16 -> Litros por ciclo de lavagem | M16: ='Real vs Simulado'!O16 ->  | O16: 2 | P16: ='Real vs Simulado'!R16 -> 0 | Q16: ='Real vs Simulado'!T16 -> 0 | S16: ='Real vs Simulado'!V16 -> 0 | T16: ='Real vs Simulado'!W16 -> 0 | U16: ='Real vs Simulado'!X16 -> 0 | V16: ='Real vs Simulado'!Y16 -> 0
B17: =Limpeza!G6 -> Limpeza | C17: =Limpeza!H6 -> Casa | D17: ='Real vs Simulado'!D17 -> 0 | E17: ='Real vs Simulado'!E17 -> 0 | F17: ='Real vs Simulado'!F17 -> 0 | G17: ='Real vs Simulado'!G17 -> 0 | H17: ='Real vs Simulado'!H17:H18 -> 0 | J17: ='Real vs Simulado'!J17 -> 0 | K17: ='Real vs Simulado'!L17 -> 0.02 | L17: ='Real vs Simulado'!N17 -> Litros | Q17: ='Real vs Simulado'!T17 -> 0 | S17: ='Real vs Simulado'!V17 -> 0 | T17: ='Real vs Simulado'!W17 -> 0 | U17: ='Real vs Simulado'!X17 -> 0 | V17: ='Real vs Simulado'!Y17 -> 0 | W17: ='Real vs Simulado'!Z17:Z18 -> 0 | Y17: ='Real vs Simulado'!AB17:AB18 -> 0
C18: =Limpeza!H7 -> Carro | D18: ='Real vs Simulado'!D18 -> 0 | E18: ='Real vs Simulado'!E18 -> 0 | F18: ='Real vs Simulado'!F18 -> 0 | G18: ='Real vs Simulado'!G18 -> 0 | J18: ='Real vs Simulado'!J18 -> 0 | K18: ='Real vs Simulado'!L18 -> 0 | L18: ='Real vs Simulado'!N18 -> Litros | M18: ='Real vs Simulado'!O18 ->  | O18: 3 | P18: ='Real vs Simulado'!R18 -> Usa um balde e esponja | Q18: ='Real vs Simulado'!T18 -> 0 | S18: ='Real vs Simulado'!V18 -> 0 | T18: ='Real vs Simulado'!W18 -> 0 | U18: ='Real vs Simulado'!X18 -> 0 | V18: ='Real vs Simulado'!Y18 -> 0
B19: ='Espaços Verdes'!G6 -> Jardins / Espaços Verdes | C19: Rega | D19: ='Real vs Simulado'!D19 -> 0 | E19: ='Real vs Simulado'!$E$19 -> 0 | F19: ='Real vs Simulado'!F19 -> 0 | G19: ='Real vs Simulado'!G19 -> 0 | H19: ='Real vs Simulado'!H19 -> 0 | J19: ='Real vs Simulado'!J19 -> 0 | K19: ='Real vs Simulado'!L19 -> 1 | L19: ='Real vs Simulado'!N19 -> Litros por m2 | M19: ='Real vs Simulado'!O19 ->  | O19: 4 | P19: ='Real vs Simulado'!R19 -> 0 | Q19: ='Real vs Simulado'!T19 -> 0 | S19: ='Real vs Simulado'!V19 -> 0 | T19: ='Real vs Simulado'!W19 -> 0 | U19: ='Real vs Simulado'!X19 -> 0 | V19: ='Real vs Simulado'!Y19 -> 0 | W19: ='Real vs Simulado'!Z19 -> 0 | Y19: ='Real vs Simulado'!AB19 -> 0
B20: =Piscina!G6 -> Piscina | C20: =Piscina!H6 -> Tanque | D20: ='Real vs Simulado'!D20 -> 0 | E20: ='Real vs Simulado'!$E$20 -> 0 | F20: ='Real vs Simulado'!F20 -> 0 | G20: ='Real vs Simulado'!G20 -> 0 | H20: ='Real vs Simulado'!H20 -> 0 | J20: ='Real vs Simulado'!J20 -> 0 | K20: ='Real vs Simulado'!L20 -> 0 | L20: ='Real vs Simulado'!N20 -> Litros | M20: ='Real vs Simulado'!O20 ->  | O20: 2 | P20: ='Real vs Simulado'!R20 -> Não | Q20: ='Real vs Simulado'!T20 -> 0 | S20: ='Real vs Simulado'!V20 -> 0 | T20: ='Real vs Simulado'!W20 -> 0 | U20: ='Real vs Simulado'!X20 -> 0 | V20: ='Real vs Simulado'!Y20 -> 0 | W20: ='Real vs Simulado'!Z20 -> 0 | Y20: ='Real vs Simulado'!AB20 -> 0
B21: =Outros!G6 -> Outros | C21: =Outros!H6 -> Lago | D21: ='Real vs Simulado'!D21 -> 0 | E21: ='Real vs Simulado'!$E$21 -> 0 | F21: ='Real vs Simulado'!F21 -> 0 | G21: ='Real vs Simulado'!G21 -> 0 | H21: ='Real vs Simulado'!H21:H22 -> 0 | J21: ='Real vs Simulado'!J21 -> 0 | K21: ='Real vs Simulado'!L21 -> 0 | L21: ='Real vs Simulado'!N21 -> Litros | M21: ='Real vs Simulado'!O21 ->  | O21: 2 | P21: ='Real vs Simulado'!R21 -> Não | Q21: ='Real vs Simulado'!T21 -> 0,0% | S21: ='Real vs Simulado'!V21 -> 0 | T21: ='Real vs Simulado'!W21 -> 0 | U21: ='Real vs Simulado'!X21 -> 0 | V21: ='Real vs Simulado'!Y21 -> 0 | W21: ='Real vs Simulado'!Z21:Z22 -> 0 | Y21: ='Real vs Simulado'!AB21:AB22 -> 0
C22: =Outros!H13 -> Sistemas de Aquecimento / Arrefecimento (AVAC) | D22: ='Real vs Simulado'!D22 -> 0 | E22: ='Real vs Simulado'!$E$22 -> 0 | F22: ='Real vs Simulado'!F22 -> 0 | G22: ='Real vs Simulado'!G22 -> 0 | J22: ='Real vs Simulado'!J22 -> 0 | K22: ='Real vs Simulado'!L22 -> 0 | L22: ='Real vs Simulado'!N22 -> Litros | M22: ='Real vs Simulado'!O22 ->  | O22: 2 | P22: ='Real vs Simulado'!R22 -> Não | Q22: ='Real vs Simulado'!T22 -> 0 | S22: ='Real vs Simulado'!V22 -> 0 | T22: ='Real vs Simulado'!W22 -> 0 | U22: ='Real vs Simulado'!X22 -> 0 | V22: ='Real vs Simulado'!Y22 -> 0
B23: =Fugas!G6 -> Fugas | C23: =Fugas!H6 -> Fugas | D23: ='Real vs Simulado'!D23 -> 0 | E23: ='Real vs Simulado'!$E$23 -> 0 | F23: ='Real vs Simulado'!F23 -> 0 | G23: ='Real vs Simulado'!G23 -> 0 | H23: ='Real vs Simulado'!H23 -> 0 | J23: ='Real vs Simulado'!J23 -> 0 | K23: ='Real vs Simulado'!L23 -> 0 | L23: ='Real vs Simulado'!N23 -> Litros | M23: ='Real vs Simulado'!O23 ->  | O23: 2 | P23: ='Real vs Simulado'!R23 -> Não | Q23: ='Real vs Simulado'!T23 -> 0 | S23: ='Real vs Simulado'!V23 -> 0 | T23: ='Real vs Simulado'!W23 -> 0 | U23: ='Real vs Simulado'!X23 -> 0 | V23: ='Real vs Simulado'!Y23 -> 0 | W23: ='Real vs Simulado'!Z23 -> 0 | Y23: ='Real vs Simulado'!AB23 -> 0
B24: Consumo Total | D24: ='Real vs Simulado'!D24 -> 0 | E24: ='Real vs Simulado'!$E$24 -> 0 | F24: ='Real vs Simulado'!F24 -> 0 | G24: ='Real vs Simulado'!G24 -> 0 | H24: ='Real vs Simulado'!H24 -> 0 | S24: ='Real vs Simulado'!V24 -> 0 | T24: ='Real vs Simulado'!W24 -> 0 | U24: ='Real vs Simulado'!X24 -> 0 | V24: ='Real vs Simulado'!Y24 -> 0 | W24: ='Real vs Simulado'!Z24 -> 0 | Y24: ='Real vs Simulado'!AB24 -> 0
C40: =C6 -> Autoclismo | D40: =C7 -> Fluxómetro / Mictório | E40: =C8 -> Chuveiro / Duche | F40: =C11 -> Lavatório | G40: =C12 -> Bidés | H40: =C13 -> Lava-louça | I40: =C15 -> Máquina Lavar Roupa | J40: =C16 -> Máquina Lavar Loiça | K40: =C18 -> Carro | L40: =C19 -> Rega | M40: =C20 -> Tanque | N40: =C21 -> Lago | O40: =C22 -> Sistemas de Aquecimento / Arrefecimento (AVAC) | P40: =C23 -> Fugas | S40: =C10 -> Banho de Imersão | T40: =E40 -> Chuveiro / Duche | V40: =100*50%*50% -> 25
B41: 1 | C41: ='Quarto-de-Banho'!K9 -> 0 | D41: ='Quarto-de-Banho'!K15 -> 0 | E41: ='Quarto-de-Banho'!K18 -> 0 | F41: ='Quarto-de-Banho'!K32 -> 0 | G41: ='Quarto-de-Banho'!K59 -> 0 | H41: =Cozinha!K6 -> 0 | I41: =J15 -> 0 | J41: =Equipamento!K14 -> 0 | K41: =Q64 -> Usa um balde e esponja | L41: =J19 -> 0 | M41: =IF(M20<>0,"Não","Sim") -> Não | N41: =IF(M21<>0,"Não","Sim") -> Não | O41: =IF(M22<>0,"Não","Sim") -> Não | P41: =IF(M23<>0,"Não","Sim") -> Não | S41: Não | T41: ='Quarto-de-Banho'!K17 -> 0 | V41: =100*50%+100*50% -> 100
B42: =B41+1 -> 2 | C42: =4.5 -> 4.5 | D42: =0.5 -> 0.5 | E42: 4 | F42: =1 -> 1 | G42: =1 -> 1 | H42: =3 -> 3 | I42: =5 -> 5 | J42: 4 | K42: =IF(K41="Com mangueira e água sempre a correr","Com mangueira e água a correr metade do tempo médio de lavagem",IF(K41="Com mangueira e água a correr metade do tempo médio de lavagem","Usa um balde e esponja",IF(K41="Usa um balde e esponja","Com mangueira e água sempre a correr","Com mangueira e água a correr metade do tempo médio de lavagem"))) -> Com mangueira e água sempre a correr | L42: =0.4 -> 0.4 | M42: =IF(M41="Sim","Não","Sim") -> Sim | N42: =IF(N41="Sim","Não","Sim") -> Sim | O42: =IF(O41="Sim","Não","Sim") -> Sim | P42: =IF(P41="Sim","Não","Sim") -> Sim | S42: Sim | T42: 3
B43: =B42+1 -> 3 | C43: =C42+0.5 -> 5 | D43: =D42+0.5 -> 1 | E43: =E42+1 -> 5 | F43: =F42+1 -> 2 | G43: =G42+1 -> 2 | H43: =H42+1 -> 4 | I43: =I42+0.5 -> 5.5 | J43: =J42+1 -> 5 | K43: =IF(K42="Com mangueira e água sempre a correr","Com mangueira e água a correr metade do tempo médio de lavagem",IF(K42="Com mangueira e água a correr metade do tempo médio de lavagem","Usa um balde e esponja",IF(K42="Usa um balde e esponja","Com mangueira e água sempre a correr","Com mangueira e água a correr metade do tempo médio de lavagem"))) -> Com mangueira e água a correr metade do tempo médio de lavagem | L43: =L42+0.4 -> 0.8 | T43: 4
B44: =B43+1 -> 4 | C44: =C43+0.5 -> 5.5 | D44: 1.5 | E44: =E43+1 -> 6 | F44: =F43+0.5 -> 2.5 | G44: =G43+0.5 -> 2.5 | H44: =H43+1 -> 5 | I44: =I43+0.5 -> 6 | J44: =J43+1 -> 6 | L44: =L43+0.4 -> 1.2 | T44: 5
B45: 5 | C45: 6 | D45: 2 | E45: 7 | F45: =F44+0.5 -> 3 | G45: 3 | H45: 6 | I45: 6.5 | J45: 7 | L45: 1.6 | T45: 6
B46: 6 | C46: 6.5 | D46: 2.5 | E46: 7.5 | F46: 3.5 | G46: 3.5 | H46: =H45+0.5 -> 6.5 | I46: 7 | J46: 8 | L46: 2 | T46: 7
B47: 7 | C47: 7 | D47: 3 | E47: 8 | F47: =F46+0.5 -> 4 | G47: =G46+0.5 -> 4 | H47: =H46+0.5 -> 7 | I47: 7.5 | J47: 9 | L47: 2.4 | T47: 8
B48: 8 | C48: 7.5 | D48: =D47+0.5 -> 3.5 | E48: 8.5 | F48: =F47+1 -> 5 | G48: =G47+1 -> 5 | H48: 7.5 | I48: 8 | J48: 10 | L48: 2.8 | T48: 9
B49: 9 | C49: 8 | D49: 4 | E49: 9 | F49: =F48+1 -> 6 | G49: 6 | H49: 8 | I49: 8.5 | J49: 11 | L49: 3.2 | T49: 10
B50: 10 | C50: 8.5 | D50: =D49+1 -> 5 | E50: 9.5 | F50: 7 | G50: 7 | H50: 8.5 | I50: 9 | J50: 12 | L50: 3.6 | T50: 11
B51: 11 | C51: 9 | D51: =D50+1 -> 6 | E51: 10 | F51: 8 | G51: 8 | H51: 9 | I51: 9.5 | J51: 13 | L51: 4 | T51: 12
B52: 12 | D52: 7 | E52: =E51+1 -> 11 | F52: 9 | G52: 9 | H52: =H51+0.5 -> 9.5 | I52: 10 | J52: 14 | L52: 4.4 | T52: 13
B53: 13 | D53: 8 | E53: 12 | F53: 10 | G53: 10 | H53: 10 | I53: =I52+1 -> 11 | J53: 15 | L53: 4.8 | T53: 14
B54: 14 | D54: 9 | E54: 13 | F54: 11 | G54: 11 | H54: =H53+1 -> 11 | I54: =I53+1 -> 12 | J54: 16 | L54: 5.2 | T54: 15
B55: 15 | D55: 10 | E55: 14 | F55: =F54+1 -> 12 | G55: =G54+1 -> 12 | H55: =H54+1 -> 12 | I55: 13 | J55: 17 | L55: 5.6 | T55: 16
B56: 16 | E56: =E55+1 -> 15 | H56: 13 | I56: 14 | J56: 18 | L56: 6 | T56: 17
B57: 17 | E57: 16 | H57: 14 | I57: 15 | J57: 19 | T57: 18
B58: 18 | E58: 17 | H58: 15 | I58: 16 | J58: 20 | T58: 19
B59: 19 | T59: 20
B60: 20
B61: 21
C62: Sim | D62: Sim | E62: Sim | F62: Sim | G62: Sim | H62: Sim | I62: Sim | J62: Sim | K62: Sim | L62: Sim | M62: Sim | N62: Sim | O62: Sim | P62: Sim
C63: Não | D63: Não | E63: Não | F63: Não | G63: Não | H63: Não | I63: Não | J63: Não | K63: Não | L63: Não | M63: Não | N63: Não | O63: Não | P63: Não
J64: 2 | Q64: =IF(AND(ISTEXT(Limpeza!L10),Limpeza!K10>0),"Com mangueira e água sempre a correr",IF(AND(ISTEXT(Limpeza!L11),Limpeza!K11>0),"Com mangueira e água a correr metade do tempo médio de lavagem","Usa um balde e esponja")) -> Usa um balde e esponja
D66: =C67 -> Com mangueira e água sempre a correr | E66: =C68 -> Com mangueira e água a correr metade do tempo médio de lavagem | F66: =C69 -> Usa um balde e esponja
C67: Com mangueira e água sempre a correr | D67: 0 | E67: 0.5 | F67: =-D69 -> 
C68: Com mangueira e água a correr metade do tempo médio de lavagem | D68: -0.5 | E68: 0 | F68: =-E69 ->  | H68: como é | J68: como será
C69: Usa um balde e esponja | D69: =-(1-(Limpeza!K9*20+((Limpeza!K13*Limpeza!K14)/3))/(Limpeza!K9*Limpeza!K14*Limpeza!K13)) ->  | E69: =-(1-(Limpeza!K9*20+((Limpeza!K13*Limpeza!K14)/3))/((Limpeza!K9*Limpeza!K14*Limpeza!K13)/2)) ->  | F69: 0 | H69: =K41 -> Usa um balde e esponja | J69: =P18 -> Usa um balde e esponja | L69: =IF(Limpeza!K7="Não","",IF(H69="Com mangueira e água sempre a correr",HLOOKUP(J69,D66:F69,2,FALSE),IF(H69="Com mangueira e água a correr metade do tempo médio de lavagem",HLOOKUP(J69,D66:F69,3,FALSE),IF(H69="Usa um balde e esponja",HLOOKUP(J69,D66:F69,4,FALSE))))) -> 

Sheet PerRetorno
B2: Local | C2: Onde Gasta? | D2: Selecione como pretende aumentar a Eficiência Hídrica (atendendo aos dispositivos atualmente instalados) | E2: Verifique aqui a Poupança que poderá alcançar, o Investimento a aplicar e respetivo Período de Retorno | H2: Sabia que… podia Poupar??? | L2: Valor a Pagar (Excel) | M2: Valor a Pagar (Pesquisa Net) | N2: Redução (%) | O2: Custo Antes (€) | P2: Custo Depois (€) | Q2: Período de Retorno (meses) | R2: Equipamento Adquirido (Caudal ou Descarga)
B4: ='Quarto-de-Banho'!G6 -> Quarto de Banho / Balneário | C4: ='Quarto-de-Banho'!H6 -> Autoclismo | E4: =IF('Real vs Simulado'!O6="","",IF(D26=1,H4,IF(D26=2,H5,IF(D26=3,H6,"")))) ->  | H4: =IF(OR(K4="",N4=""),"",CONCATENATE(T4,U4,V4,W4,X4,Y4,Z4,AB4,AC4,AD4,AE4,AF4,AG4,AH4,AI4,AJ4,AK4,AL4)) ->  | J4: Autoclismo de Dupla Descarga | K4: =IF('Quarto-de-Banho'!K9>4.5,PerRetorno!J4,"") ->  | L4: =IF(K4<>"",'Dispositivos Preço ANQIP.Real'!X70,"") ->  | M4: 60 | N4: =IF('Real vs Simulado'!T6=0,"",'Real vs Simulado'!T6) ->  | O4: ='Custos AdRA'!$F$21*('Real vs Simulado'!E6/'Real vs Simulado'!$E$24) ->  | P4: ='Custos AdRA (2)'!$G$20*('Real vs Simulado'!W6/'Real vs Simulado'!$W$24) ->  | Q4: =IF(L4="","",L4/(O4-P4)) ->  | R4: =IF(N4="","",'Real vs Simulado'!R6) ->  | T4: =IF(R4="","","Ao substituir o Autoclismo de Dupla Descarga por outro com um Volume por Descarga de ") ->  | U4: =IF(T4<>0,R4,"") ->  | V4: =IF(T4<>0," litros, ","") -> litros, | W4: =IF(T4<>0,"fazendo um investimento de cerca de ","") -> fazendo um investimento de cerca de | X4: =IF(T4<>"",ROUND(L4,2),"") ->  | Y4: =IF(T4<>0," €, ","") -> €, | Z4: =IF(T4<>0,"terá uma redução no consumo de ","") -> terá uma redução no consumo de | AA4: =IF(T4<>0,N4,"") ->  | AB4: =IF(T4<>0,ROUND(AA4*100,2),"") ->  | AC4: =IF(T4<>0, "% ","") -> % | AD4: =IF(T4<>0,"o que implicará uma redução na fatura de ","") -> o que implicará uma redução na fatura de | AE4: =IF(T4<>0,ROUND(O4,2),"") ->  | AF4: =IF(T4<>0," € ","") -> € | AG4: =IF(T4<>0," para ","") -> para | AH4: =IF(T4<>0,ROUND(P4,2),"") ->  | AI4: =IF(T4<>0," € ","") -> € | AJ4: =IF(T4<>0," o que significa que em cerca de ","") -> o que significa que em cerca de | AK4: =IF(T4<>0,ROUND(Q4,2),"") ->  | AL4: =IF(T4<>0," meses terá abatido o investimento efetuado no equipamento!!!","") -> meses terá abatido o investimento efetuado no equipamento!!!
H5: =IF(OR(K5="",N4=""),"",CONCATENATE(T5,U5,V5,W5,X5,Y5,Z5,AB5,AC5,AD5,AE5,AF5,AG5,AH5,AI5,AJ5,AK5,AL5)) ->  | J5: Mecanismo de Dupla Descarga | K5: =IF('Quarto-de-Banho'!K9>4.5,PerRetorno!J5,"") ->  | L5: =IF(K5<>"",'Dispositivos Preço ANQIP.Real'!V70,"") ->  | M5: 20 | Q5: =IF(L4="","",L5/(O4-P4)) ->  | T5: =IF(R4="","","Ao colocar o Mecanismo de Dupla Descarga, no seu Autoclismo, com um Volume por Descarga de ") ->  | U5: =IF(T5<>0,R4,"") ->  | V5: =IF(T5<>0," litros, ","") -> litros, | W5: =IF(T5<>0,"fazendo um investimento de cerca de ","") -> fazendo um investimento de cerca de | X5: =IF(T5<>"",ROUND(L5,2),"") ->  | Y5: =IF(T5<>0," €, ","") -> €, | Z5: =IF(T5<>0,"terá uma redução no consumo de ","") -> terá uma redução no consumo de | AA5: =IF(T5<>0,N4,"") ->  | AB5: =IF(T5<>0,ROUND(AA5*100,2),"") ->  | AC5: =IF(T5<>0, "% ","") -> % | AD5: o que implicará uma redução na fatura de | AE5: =IF(T5<>0,ROUND(O4,2),"") ->  | AF5: =IF(T5<>0," € ","") -> € | AG5: =IF(T5<>0," para ","") -> para | AH5: =IF(T5<>0,ROUND(P4,2),"") ->  | AI5: =IF(T5<>0," € ","") -> € | AJ5: =IF(T5<>0," o que significa que em cerca de ","") -> o que significa que em cerca de | AL5: meses terá abatido o investimento efetuado no equipamento!!!
H6: =IF(OR(K6="",N4=""),"",CONCATENATE(T6,U6,V6,W6,X6,Y6,Z6,AB6,AC6,AD6,AE6,AF6,AG6,AH6,AI6,AJ6,AK6,AL6)) ->  | J6: Regulação do Mecanismo de Descarga | K6: =IF('Quarto-de-Banho'!K9>4.5,PerRetorno!J6,"") ->  | L6: =IF(K6<>"",20,"") ->  | M6: 20 | Q6: =IF(L4="","",L6/(O4-P4)) ->  | T6: =IF(R4="","","Ao regular o Mecanismo de Dupla Descarga, no seu Autoclismo, para um Volume por Descarga de ") ->  | U6: =IF(T6<>0,R4,"") ->  | V6: =IF(T6<>0," litros, ","") -> litros, | W6: =IF(T6<>0,"fazendo um investimento de cerca de ","") -> fazendo um investimento de cerca de | X6: =IF(T6<>"",ROUND(L6,2),"") ->  | Y6: =IF(T6<>0," €, ","") -> €, | Z6: =IF(T6<>0,"terá uma redução no consumo de ","") -> terá uma redução no consumo de | AA6: =IF(T6<>0,N4,"") ->  | AB6: =IF(T6<>0,ROUND(AA6*100,2),"") ->  | AC6: =IF(T6<>0, "% ","") -> % | AD6: o que implicará uma redução na fatura de | AE6: =IF(T6<>0,ROUND(O4,2),"") ->  | AF6: =IF(T6<>0," € ","") -> € | AG6: =IF(T6<>0," para ","") -> para | AH6: =IF(T6<>0,ROUND(P4,2),"") ->  | AI6: =IF(T6<>0," € ","") -> € | AJ6: =IF(T6<>0," o que significa que em cerca de ","") -> o que significa que em cerca de | AK6: =IF(T6<>0,ROUND(Q6,2),"") ->  | AL6: meses terá abatido o investimento efetuado no equipamento!!!
C7: ='Quarto-de-Banho'!H12 -> Fluxómetro / Mictório | E7: =IF('Real vs Simulado'!O7="","",IF(D27=1,H7,IF(D27=2,H8,""))) ->  | H7: =IF(OR(K7="",N7=""),"",CONCATENATE(T7,U7,V7,W7,X7,Y7,Z7,AB7,AC7,AD7,AE7,AF7,AG7,AH7,AI7,AJ7,AK7,AL7)) ->  | J7: Mictório Certificado pela ANQIP (A) | K7: =IF('Quarto-de-Banho'!K15>0.5,PerRetorno!J7,"") ->  | L7: =IF(K7<>"",'Dispositivos Preço ANQIP.Real'!BH70,"") ->  | M7: 50 | N7: =IF('Real vs Simulado'!T7=0,"",'Real vs Simulado'!T7) ->  | O7: ='Custos AdRA'!$F$21*('Real vs Simulado'!E7/'Real vs Simulado'!$E$24) ->  | P7: ='Custos AdRA (2)'!$G$20*('Real vs Simulado'!W7/'Real vs Simulado'!$W$24) ->  | Q7: =IF(L7="","",L7/(O7-P7)) ->  | R7: =IF(N7="","",'Real vs Simulado'!R7) ->  | T7: =IF(R7="","","Ao substituir o seu Mictório por um Certificado pela ANQIP com letra A com um Volume por Descarga de ") ->  | U7: =IF(T7<>0,R7,"") ->  | V7: litros, | W7: fazendo um investimento de cerca de | X7: =IF(T7<>"",ROUND(L7,2),"") ->  | Y7: €, | Z7: terá uma redução no consumo de | AA7: =IF(T7<>0,N7,"") ->  | AC7: % | AD7: o que implicará uma redução na fatura de | AE7: =IF(T7<>0,ROUND(O7,2),"") ->  | AF7: € | AG7: para | AH7: =IF(T7<>0,ROUND(P7,2),"") ->  | AI7: € | AJ7: o que significa que em cerca de | AL7: meses terá abatido o investimento efetuado no equipamento!!!
H8: =IF(OR(K8="",N7=""),"",CONCATENATE(T8,U8,V8,W8,X8,Y8,Z8,AB8,AC8,AD8,AE8,AF8,AG8,AH8,AI8,AJ8,AK8,AL8)) ->  | J8: Regulação do Volume de Descarga | K8: =IF('Quarto-de-Banho'!K15>0.5,PerRetorno!J8,"") ->  | L8: =IF(K8<>"",'Dispositivos Preço ANQIP.Real'!D72,"") ->  | M8: 5 | Q8: =IF(L8="","",L8/(O7-P7)) ->  | T8: =IF(R7="","","Ao fazer a Regulação do Volume de Descarga e este passar a ser de ") ->  | U8: =IF(T8<>0,R7,"") ->  | V8: litros, | W8: fazendo um investimento de cerca de | Y8: €, | Z8: terá uma redução no consumo de | AA8: =IF(T8<>0,N7,"") ->  | AC8: % | AD8: o que implicará uma redução na fatura de | AE8: =IF(T8<>0,ROUND(O7,2),"") ->  | AF8: € | AG8: para | AH8: =IF(T8<>0,ROUND(P7,2),"") ->  | AI8: € | AJ8: o que significa que em cerca de | AL8: meses terá abatido o investimento efetuado no equipamento!!!
C9: ='Quarto-de-Banho'!H16 -> Chuveiro / Duche | E9: =IF('Real vs Simulado'!O8="","",IF(D28=1,H9,IF(D28=2,H10,""))) ->  | H9: =IF(OR(K9="",N9=""),"",CONCATENATE(T9,U9,V9,W9,X9,Y9,Z9,AB9,AC9,AD9,AE9,AF9,AG9,AH9,AI9,AJ9,AK9,AL9)) ->  | J9: Novo Chuveiro | K9: =IF('Quarto-de-Banho'!K18>5,PerRetorno!J9,"") ->  | L9: =IF(K9<>"",'Dispositivos Preço ANQIP.Real'!AR70,"") ->  | M9: 50 | N9: =IF('Real vs Simulado'!T8=0,"",'Real vs Simulado'!T8) ->  | O9: ='Custos AdRA'!$F$21*('Real vs Simulado'!E8/'Real vs Simulado'!$E$24) ->  | P9: ='Custos AdRA (2)'!$G$20*('Real vs Simulado'!W8/'Real vs Simulado'!$W$24) ->  | Q9: =IF(L9="","",L9/(O9-P9)) ->  | R9: =IF(N9="","",'Real vs Simulado'!R8) ->  | T9: =IF(R9="","","Ao substituir o seu Chuveiro por outro com um Caudal por Minuto de ") ->  | U9: =IF(T9<>0,R9,"") ->  | V9: litros, | W9: fazendo um investimento de cerca de | X9: =IF(T9<>"",ROUND(L9,2),"") ->  | Y9: €, | Z9: terá uma redução no consumo de | AA9: =IF(T9<>0,N9,"") ->  | AC9: % | AD9: o que implicará uma redução na fatura de | AE9: =IF(T9<>0,ROUND(O9,2),"") ->  | AF9: € | AG9: para | AH9: =IF(T9<>0,ROUND(P9,2),"") ->  | AI9: € | AJ9: o que significa que em cerca de | AL9: meses terá abatido o investimento efetuado no equipamento!!!
H10: =IF(OR(K10="",N9=""),"",CONCATENATE(T10,U10,V10,W10,X10,Y10,Z10,AB10,AC10,AD10,AE10,AF10,AG10,AH10,AI10,AJ10,AK10,AL10)) ->  | J10: Aplicação de Economizador | K10: =IF('Quarto-de-Banho'!K18>5,PerRetorno!J10,"") ->  | L10: =IF(K10<>"",'Dispositivos Preço ANQIP.Real'!AN70,"") ->  | M10: 10 | Q10: =IF(L10="","",L10/(O9-P9)) ->  | T10: =IF(R9="","","Ao aplicar um economizador no seu Chuveiro que faça com que o seu Caudal por minuto seja de ") ->  | U10: =IF(T10<>0,R9,"") ->  | V10: litros, | W10: fazendo um investimento de cerca de | Y10: €, | Z10: terá uma redução no consumo de | AA10: =IF(T10<>0,N9,"") ->  | AC10: % | AD10: o que implicará uma redução na fatura de | AE10: =IF(T10<>0,ROUND(O9,2),"") ->  | AF10: € | AG10: para | AH10: =IF(T10<>0,ROUND(P9,2),"") ->  | AI10: € | AJ10: o que significa que em cerca de | AL10: meses terá abatido o investimento efetuado no equipamento!!!
C11: ='Quarto-de-Banho'!H32 -> Lavatório | E11: =IF('Real vs Simulado'!O11="","",IF(D29=1,H11,IF(D29=2,H12,""))) ->  | H11: =IF(OR(K11="",N11=""),"",CONCATENATE(T11,U11,V11,W11,X11,Y11,Z11,AB11,AC11,AD11,AE11,AF11,AG11,AH11,AI11,AJ11,AK11,AL11)) ->  | J11: Nova Torneira | K11: =IF('Quarto-de-Banho'!K32>2,PerRetorno!J11,"") ->  | L11: =IF(K11<>"",'Dispositivos Preço ANQIP.Real'!D70,"") ->  | M11: 50 | N11: =IF('Real vs Simulado'!T11=0,"",'Real vs Simulado'!T11) ->  | O11: ='Custos AdRA'!$F$21*('Real vs Simulado'!E11/'Real vs Simulado'!$E$24) ->  | P11: ='Custos AdRA (2)'!$G$20*('Real vs Simulado'!W11/'Real vs Simulado'!$W$24) ->  | Q11: =IF(L11="","",L11/(O11-P11)) ->  | R11: =IF(N11="","",'Real vs Simulado'!R11) ->  | T11: =IF(R11="","","Ao substituir a sua Torneira de Lavatório por outra com um Caudal por minuto de ") ->  | U11: =IF(T11<>0,R11,"") ->  | V11: litros, | W11: fazendo um investimento de cerca de | X11: =IF(T11<>"",ROUND(L11,2),"") ->  | Y11: €, | Z11: terá uma redução no consumo de | AA11: =IF(T11<>0,N11,"") ->  | AC11: % | AD11: o que implicará uma redução na fatura de | AE11: =IF(T11<>0,ROUND(O11,2),"") ->  | AF11: € | AG11: para | AH11: =IF(T11<>0,ROUND(P11,2),"") ->  | AI11: € | AJ11: o que significa que em cerca de | AL11: meses terá abatido o investimento efetuado no equipamento!!!
H12: =IF(OR(K12="",N11=""),"",CONCATENATE(T12,U12,V12,W12,X12,Y12,Z12,AB12,AC12,AD12,AE12,AF12,AG12,AH12,AI12,AJ12,AK12,AL12)) ->  | J12: Aplicação de Economizador | K12: =IF('Quarto-de-Banho'!K32>2,PerRetorno!J12,"") ->  | L12: =IF(K12<>"",'Dispositivos Preço ANQIP.Real'!L70,"") ->  | M12: 10 | Q12: =IF(L12="","",L12/(O11-P11)) ->  | T12: =IF(R11="","","Ao aplicar um economizador na sua Torneira de Lavatório que faça com que o seu Caudal por minuto seja de ") ->  | U12: =IF(T12<>0,R11,"") ->  | V12: litros, | W12: fazendo um investimento de cerca de | Y12: €, | Z12: terá uma redução no consumo de | AA12: =IF(T12<>0,N11,"") ->  | AC12: % | AD12: o que implicará uma redução na fatura de | AE12: =IF(T12<>0,ROUND(O11,2),"") ->  | AF12: € | AG12: para | AH12: =IF(T12<>0,ROUND(P11,2),"") ->  | AI12: € | AJ12: o que significa que em cerca de | AL12: meses terá abatido o investimento efetuado no equipamento!!!
C13: ='Quarto-de-Banho'!H56 -> Bidés | E13: =IF('Real vs Simulado'!O12="","",IF(D30=1,H13,IF(D30=2,H14,""))) ->  | H13: =IF(OR(K13="",N13=""),"",CONCATENATE(T13,U13,V13,W13,X13,Y13,Z13,AB13,AC13,AD13,AE13,AF13,AG13,AH13,AI13,AJ13,AK13,AL13)) ->  | J13: Nova Torneira | K13: =IF('Quarto-de-Banho'!K59>2,PerRetorno!J13,"") ->  | L13: =IF(K13<>"",'Dispositivos Preço ANQIP.Real'!AR70,"") ->  | M13: =M11 -> 50 | N13: =IF('Real vs Simulado'!T12=0,"",'Real vs Simulado'!T12) ->  | O13: ='Custos AdRA'!$F$21*('Real vs Simulado'!E12/'Real vs Simulado'!$E$24) ->  | P13: ='Custos AdRA (2)'!$G$20*('Real vs Simulado'!W12/'Real vs Simulado'!$W$24) ->  | Q13: =IF(L13="","",L13/(O13-P13)) ->  | R13: =IF(N13="","",'Real vs Simulado'!R12) ->  | T13: =IF(R13="","","Ao substituir a sua Torneira do Bidé por outra com um Caudal por minuto de ") ->  | U13: =IF(T13<>0,R13,"") ->  | V13: litros, | W13: fazendo um investimento de cerca de | Y13: €, | Z13: terá uma redução no consumo de | AB13: =IF(T13<>0,ROUND(AA13*100,2),"") ->  | AC13: % | AD13: o que implicará uma redução na fatura de | AE13: =IF(T13<>0,ROUND(O13,2),"") ->  | AF13: € | AG13: para | AH13: =IF(T13<>0,ROUND(P13,2),"") ->  | AI13: € | AJ13: o que significa que em cerca de | AL13: meses terá abatido o investimento efetuado no equipamento!!!
H14: =IF(OR(K14="",N13=""),"",CONCATENATE(T14,U14,V14,W14,X14,Y14,Z14,AB14,AC14,AD14,AE14,AF14,AG14,AH14,AI14,AJ14,AK14,AL14)) ->  | J14: Aplicação de Economizador | K14: =IF('Quarto-de-Banho'!K59>2,PerRetorno!J14,"") ->  | L14: =IF(K14<>"",'Dispositivos Preço ANQIP.Real'!L70,"") ->  | M14: =M12 -> 10 | Q14: =IF(L14="","",L14/(O13-P13)) ->  | T14: =IF(R13="","","Ao aplicar um economizador na sua Torneira do Bidé que faça com que o seu Caudal por minuto seja de ") ->  | U14: =IF(T14<>0,R13,"") ->  | V14: litros, | W14: fazendo um investimento de cerca de | Y14: €, | Z14: terá uma redução no consumo de | AA14: =IF(T14<>0,N13,"") ->  | AC14: % | AD14: o que implicará uma redução na fatura de | AE14: =IF(T14<>0,ROUND(O13,2),"") ->  | AF14: € | AG14: para | AH14: =IF(T14<>0,ROUND(P13,2),"") ->  | AI14: € | AJ14: o que significa que em cerca de | AL14: meses terá abatido o investimento efetuado no equipamento!!!
B15: =Cozinha!G6 -> Cozinha | C15: =Cozinha!H6 -> Lava-louça | E15: =IF('Real vs Simulado'!O13="","",IF(D31=1,H15,IF(D31=2,H16,""))) ->  | H15: =IF(OR(K15="",N15=""),"",CONCATENATE(T15,U15,V15,W15,X15,Y15,Z15,AB15,AC15,AD15,AE15,AF15,AG15,AH15,AI15,AJ15,AK15,AL15)) ->  | J15: Nova Torneira | K15: =IF(Cozinha!K6>4,PerRetorno!J15,"") ->  | L15: =IF(K15<>"",'Dispositivos Preço ANQIP.Real'!N70,"") ->  | M15: =M13 -> 50 | N15: =IF('Real vs Simulado'!T13=0,"",'Real vs Simulado'!T13) ->  | O15: ='Custos AdRA'!$F$21*('Real vs Simulado'!E13/'Real vs Simulado'!$E$24) ->  | P15: ='Custos AdRA (2)'!$G$20*('Real vs Simulado'!W13/'Real vs Simulado'!$W$24) ->  | Q15: =IF(L15="","",L15/(O15-P15)) ->  | R15: =IF(N15="","",'Real vs Simulado'!R13) ->  | T15: =IF(R15="","","Ao substituir a sua Torneira do Lava-Louça por outra com um Caudal por minuto de ") ->  | U15: =IF(T15<>0,R15,"") ->  | V15: litros, | W15: fazendo um investimento de cerca de | X15: =IF(T15<>"",ROUND(L15,2),"") ->  | Y15: €, | Z15: terá uma redução no consumo de | AC15: % | AD15: o que implicará uma redução na fatura de | AE15: =IF(T15<>0,ROUND(O15,2),"") ->  | AF15: € | AG15: para | AH15: =IF(T15<>0,ROUND(P15,2),"") ->  | AI15: € | AJ15: o que significa que em cerca de | AL15: meses terá abatido o investimento efetuado no equipamento!!!
H16: =IF(OR(K16="",N15=""),"",CONCATENATE(T16,U16,V16,W16,X16,Y16,Z16,AB16,AC16,AD16,AE16,AF16,AG16,AH16,AI16,AJ16,AK16,AL16)) ->  | J16: Aplicação de Economizador | K16: =IF(Cozinha!K6>4,PerRetorno!J16,"") ->  | L16: =IF(K16<>"",'Dispositivos Preço ANQIP.Real'!P70,"") ->  | M16: =M14 -> 10 | Q16: =IF(L16="","",L16/(O15-P15)) ->  | T16: =IF(R15="","","Ao aplicar um Economizador na sua Torneira de Lava-Louça que faça com que o seu Caudal por minuto seja de ") ->  | U16: =IF(T16<>0,R15,"") ->  | V16: litros, | W16: fazendo um investimento de cerca de | Y16: €, | Z16: terá uma redução no consumo de | AA16: =IF(T16<>0,N15,"") ->  | AC16: =IF(T16<>0, "% ","") -> % | AD16: o que implicará uma redução na fatura de | AE16: =IF(T16<>0,ROUND(O15,2),"") ->  | AF16: =IF(T16<>0," € ","") -> € | AG16: =IF(T16<>0," para ","") -> para | AH16: =IF(T16<>0,ROUND(P15,2),"") ->  | AI16: =IF(T16<>0," € ","") -> € | AJ16: =IF(T16<>0," o que significa que em cerca de ","") -> o que significa que em cerca de | AL16: meses terá abatido o investimento efetuado no equipamento!!!
W18: Custo Total | X18: =IF(AND(T4<>"",D26=1),X4,0)+IF(AND(T5<>"",D26=2),X5,0)+IF(AND(T6<>"",D26=3),X6,0)+IF(AND(T7<>"",D27=1),X7,0)+IF(AND(T8<>"",D27=2),X8,0)+IF(AND(T9<>"",D28=1),X9,0)+IF(AND(T10<>"",D28=2),X10,0)+IF(AND(T11<>"",D29=1),X11,0)+IF(AND(T12<>"",D29=2),X12,0)+IF(AND(T13<>"",D30=1),X13,0)+IF(AND(T14<>"",D30=2),X14,0)+IF(AND(T15<>"",D31=1),X15,0)+IF(AND(T16<>"",D31=2),X16,0) -> 0 | AD18: Pagar Antes | AE18: =IF(AND(T4<>0,D26=1),AE4,0)+IF(AND(T5<>0,D26=2),AE5,0)+IF(AND(T7<>0,D27=1),AE7,0)+IF(AND(T8<>0,D27=2),AE8,0)+IF(AND(T9<>0,D28=1),AE9,0)+IF(AND(T10<>0,D28=2),AE10,0)+IF(AND(T11<>0,D29=1),AE11,0)+IF(AND(T12<>0,D29=2),AE12,0)+IF(AND(T13<>0,D30=1),AE13,0)+IF(AND(T14<>0,D30=2),AE14,0)+IF(AND(T15<>0,D31=1),AE15,0)+IF(AND(T16<>0,D31=2),AE16,0) ->  | AG18: Pagar Depois | AH18: =IF(AND(T4<>0,D26=1),AH4,0)+IF(AND(T5<>0,D26=2),AH5,0)+IF(AND(T7<>0,D27=1),AH7,0)+IF(AND(T8<>0,D27=2),AH8,0)+IF(AND(T9<>0,D28=1),AH9,0)+IF(AND(T10<>0,D28=2),AH10,0)+IF(AND(T11<>0,D29=1),AH11,0)+IF(AND(T12<>0,D29=2),AH12,0)+IF(AND(T13<>0,D30=1),AH13,0)+IF(AND(T14<>0,D30=2),AH14,0)+IF(AND(T15<>0,D31=1),AH15,0)+IF(AND(T16<>0,D31=2),AH16,0) ->  | AK18: =X18/(AE18-AH18) -> 
C26: Auto | D26: 1
C27: Fluxo | D27: 1
C28: Duche | D28: 1
C29: Lavatório | D29: 1
C30: Bidés | D30: 1
C31: Lava-Louça | D31: 1

Sheet Final
G2: Simulador de Consumo de Água
K9: Com as alterações nos Dispositivos que selecionou terá uma Redução no Consumo de Água na Ordem dos
K13: =IF('Real vs Simulado'!W24=0,0,1-('Real vs Simulado'!W24/'Real vs Simulado'!E24)) -> 0 | R13: =IF('Real vs Simulado'!E24>0," ( ","") ->  | S13: =IF('Real vs Simulado'!E24>0,('Real vs Simulado'!E24),"") ->  | U13: =IF('Real vs Simulado'!E24>0,"para","") ->  | V13: =IF('Real vs Simulado'!E24>0,'Real vs Simulado'!W24,"") ->  | Y13: =IF('Real vs Simulado'!E24>0,"m3)","") -> 
H16: e uma Poupança Mensal na sua Carteira de | N16: =IF(K13=0,0,'Custos AdRA'!F21-'Custos AdRA (2)'!G20) -> 0 | R16: e uma Poupança Anual de | X16: =IF(N16=0,0,N16*12) -> 0
H20: Se efetuar o investimento de | N20: =IF(K13=0,0,PerRetorno!X18) -> 0 | R20: este será amortitizado em | X20: =IF(X16=0,0,N20/X16*12) -> 0 | Z20: meses!!!
N31: Vamos Juntos… Valorizar a Água!
G32: Projeto Co-Financiado pela União Europeia

Sheet Escalas (hidden)
B1: Dispositivo | D1: Edifício | F1: Chuveiros e Sistemas de Duche | L1: Torneiras de Cozinha | R1: Torneiras de Lavatório | X1: Autoclismos | AD1: Fluxómetros | AF1: Espaços Verdes | AK1: Limpeza | AM1: Máquina de Lavar Roupa | AO1: Máquina de Lavar Louça | AQ1: Tanques das Piscinas
F2: C/ Torneira Tradicional | H2: C/ Torneira TermoEstática ou Arejador | J2: C/ Torneira TermoEstática e Arejador | L2: C/ Torneira Tradicional | N2: C/ Torneira TermoEstática ou Arejador | P2: C/ Torneira TermoEstática e Arejador | R2: C/ Torneira Tradicional | T2: C/ Torneira TermoEstática ou Arejador | V2: C/ Torneira TermoEstática e Arejador | X2: C/ Descarga Completa | Z2: C/ Interrupção de Descarga | AB2: C/ Dupla Descarga
A3: Categoria | B3: Valor-Equivalente | C3: Factor de Eficiência | D3: Pontos (Intervalo) | F3: Litros/minuto (Intervalo) | L3: Litros/minuto (Intervalo) | R3: Litros/minuto (Intervalo) | X3: Litros/descarga (Intervalo) | AD3: Litros/descarga (Intervalo) | AF3: l/m2/dia (Intervalo) | AK3: Consumo de Água para Limpezas (%) | AM3: Consumo de Água (litros/Kg) | AO3: Consumo de Água (litros/Kg) | AQ3: Pontos (Intervalo) | AS3: Diferença Percentual em Relação à Reposição Mínima (2%) (Valor Superior) | AU3: Diferença Percentual em Relação à Reposição Mínima (2%) (Valor Inferior)
A4: A++ (1) | H4: < | I4: 5 | J4: < | K4: 5 | N4: < | O4: 4 | P4: < | Q4: 4 | T4: < | U4: 2 | V4: < | W4: 2
A5: A++ | B5: 1 | C5: 100 | D5: 95 | E5: 100 | H5: --- | J5: 5 | K5: 7.2 | N5: --- | P5: 4 | Q5: 6 | T5: --- | V5: 2 | W5: 4 | AB5: < | AC5: 4.5 | AD5: < | AE5: 1 | AF5: < | AG5: 0.6 | AK5: < | AL5: 0.01 | AM5: < | AN5: 5 | AO5: < | AP5: 6 | AQ5: 95 | AR5: 100 | AS5: 0 | AT5: 5 | AU5: 0 | AV5: -5
A6: A+ | B6: 2 | C6: =C5-$C$13 -> 85.71428571 | D6: 90 | E6: 95 | F6: < | G6: 5 | H6: 5 | I6: 7.2 | J6: 7.2 | K6: 9 | L6: < | M6: 4 | N6: 4 | O6: 6 | P6: 6 | Q6: 9 | R6: < | S6: 2 | T6: 2 | U6: 4 | V6: 4 | W6: 6 | Z6: < | AA6: 4.5 | AB6: 4.5 | AC6: 5.5 | AD6: 1 | AE6: 2 | AF6: 0.6 | AG6: 0.8 | AK6: 0.01 | AL6: 0.02 | AM6: 5 | AN6: 7.2 | AO6: 6 | AP6: 12 | AQ6: 90 | AR6: 95 | AS6: 5 | AT6: 10 | AU6: -5 | AV6: -10
A7: A | B7: 3 | C7: =C6-$C$13 -> 71.42857143 | D7: 85 | E7: 90 | F7: 5 | G7: 7.2 | H7: 7.2 | I7: 9 | J7: 9 | K7: 15 | L7: 4 | M7: 6 | N7: 6 | O7: 9 | P7: 9 | Q7: 12 | R7: 2 | S7: 4 | T7: 4 | U7: 6 | V7: 6 | W7: 9 | X7: < | Y7: 4.5 | Z7: 4.5 | AA7: 5.5 | AB7: 5.5 | AC7: 6.5 | AD7: 2 | AE7: 4 | AF7: 0.8 | AG7: 1.2 | AK7: 0.02 | AL7: 0.04 | AM7: 7.2 | AN7: 9 | AO7: 12 | AP7: 16 | AQ7: 85 | AR7: 90 | AS7: 10 | AT7: 15 | AU7: -10 | AV7: -15
A8: B | B8: 4 | C8: 57.14285714 | D8: 75 | E8: 85 | F8: 7.2 | G8: 9 | H8: 9 | I8: 15 | J8: 15 | K8: 30 | L8: 6 | M8: 9 | N8: 9 | O8: 12 | P8: 12 | Q8: 15 | R8: 4 | S8: 6 | T8: 6 | U8: 9 | V8: 9 | W8: 12 | X8: 4.5 | Y8: 5.5 | Z8: 5.5 | AA8: 6.5 | AB8: 6.5 | AC8: 7.5 | AD8: 4 | AE8: 6 | AF8: 1.2 | AG8: 1.6 | AK8: 0.04 | AL8: 0.06 | AM8: 9 | AN8: 12 | AO8: 16 | AP8: 22 | AQ8: 75 | AR8: 85 | AS8: 15 | AT8: 25 | AU8: -15 | AV8: -25
A9: C | B9: 5 | C9: 42.85714286 | D9: 65 | E9: 75 | F9: 9 | G9: 15 | H9: 15 | I9: 30 | J9: > | K9: 30 | L9: 9 | M9: 12 | N9: 12 | O9: 15 | P9: > | Q9: 15 | R9: 6 | S9: 9 | T9: 9 | U9: 12 | V9: > | W9: 12 | X9: 5.5 | Y9: 6.5 | Z9: 6.5 | AA9: 7.5 | AB9: 7.5 | AC9: 9 | AD9: 6 | AE9: 8 | AF9: 1.6 | AG9: 2 | AK9: 0.06 | AL9: 0.09 | AM9: 12 | AN9: 15 | AO9: 22 | AP9: 36 | AQ9: 65 | AR9: 75 | AS9: 25 | AT9: 35 | AU9: -25 | AV9: -35
A10: D | B10: 6 | C10: 28.57142857 | D10: 55 | E10: 65 | F10: 15 | G10: 30 | H10: > | I10: 30 | L10: 12 | M10: 15 | N10: > | O10: 15 | R10: 9 | S10: 12 | T10: > | U10: 12 | X10: 6.5 | Y10: 7.5 | Z10: 7.5 | AA10: 9 | AD10: 8 | AE10: 10 | AF10: 2 | AG10: 2.4 | AK10: 0.09 | AL10: 0.12 | AM10: 15 | AN10: 20 | AO10: 36 | AP10: 50 | AQ10: 55 | AR10: 65 | AS10: 35 | AT10: 45 | AU10: -35 | AV10: -45
A11: E | B11: 7 | C11: 14.28571429 | D11: 0 | E11: 55 | F11: > | G11: 30 | L11: > | M11: 15 | R11: > | S11: 12 | X11: 7.5 | Y11: 9 | AD11: > | AE11: 10 | AF11: > | AG11: 2.4 | AK11: > | AL11: 0.12 | AM11: > | AN11: 20 | AO11: > | AP11: 50 | AQ11: 0 | AR11: 55 | AS11: > 45 | AU11: "< -45"
A12: - | B12: 8 | C12: 0
C13: =100/7 -> 14.28571429
A15: Coeficiente de Aproveitamento | B15: Zona do País
B16: Norte | D16: Centro | F16: Sul
B17: SPRAC | C17: SAAP ou SAA LF | D17: SPRAC | E17: SAAP ou SAA LF | F17: SAAP ou SAA LF | G17: SAAP ou SAA LF
A18: Reutilizavel em Autoclismos (%) | B18: 1 | C18: 0.6 | D18: 1 | E18: 0.5 | F18: 1 | G18: 0.4
A19: Reutilizavel em Fluxómetros (%) | B19: 1 | C19: 0.6 | D19: 1 | E19: 0.5 | F19: 1 | G19: 0.4
A20: Reutilizavel nos Espaços Verdes (%) | B20: NA | C20: 0.6 | D20: NA | E20: 0.5 | F20: NA | G20: 0.4
A21: Reutilizável no AVAC (%) | B21: NA | C21: 0.6 | D21: NA | E21: 0.5 | F21: NA | G21: 0.4
A22: Reutilizável no Lago (%) | B22: NA | C22: 0.6 | D22: NA | E22: 0.5 | F22: NA | G22: 0.4
A24: Classificação Final do Edifício | B24: Pontos
A25: Muito Eficiente | B25: 90 | C25: 100
A26: Eficiente | B26: 65 | C26: 90
A27: Normal | B27: 30 | C27: 65
A28: Ineficiente | B28: 0 | C28: 30
A30: Classificação Final para a Rega de Espaços Verdes | B30: l/m2
A31: Muito Eficiente | B31: 0 | C31: 0.8
A32: Eficiente | B32: 0.8 | C32: 1.2
A33: Normal | B33: 1.2 | C33: 2
A34: Ineficiente | B34: > 2

Sheet Custos AdRA (2) (hidden)
C1: Quantidade de Água Consumida | D1: ='Real vs Simulado'!W24 -> 0 | G1: m3
C3: Descrição | F3: Escalão | G3: Quantidade (Dias) | H3: Quantidade (m3) | L3: Valor Unitário - Preço por m3 (Euros) | M3: Valor (Euros) | N3: IVA (%) | O3: Total Parcial s/ IVA (Euros) | P3: Total s/ IVA (Euros)
H4: Real | I4: Arredondado | K4: Final
C5: ÁGUA | D5: Água (Tarifa Variável) | E5: 1.º Escalão (0 a 5 m3/30,42 dias) | F5: =IF(D1="","",IF(D1>0,"1º Escalão","")) ->  | H5: =IF(F5="","",(IF(AND(D1<=5,Início!T14<ApoioAdRA!B44),ApoioAdRA!$B$41*D1,IF(D1>5,5*ApoioAdRA!$B$41,IF(D1<=5,D1*ApoioAdRA!$B$41,""))))) ->  | I5: =IF(AND(H5>0,H5<1),1,H5) ->  | J5: =IF(H5="","",I5) ->  | K5: =IF(H5=J5,J5,J5) ->  | L5: =IF(F5="","",IF(Início!$R$14=2,ApoioAdRA!E4,(IF(Início!$R$14=3,ApoioAdRA!H4,(IF(Início!$R$14=4,ApoioAdRA!B4,(IF(Início!$R$14=5,ApoioAdRA!K4,(IF(Início!$R$14=6,ApoioAdRA!N4,(IF(Início!$R$14=7,ApoioAdRA!Q4,(IF(Início!$R$14=8,ApoioAdRA!T4,(IF(Início!$R$14=9,ApoioAdRA!W4,(IF(Início!$R$14=10,ApoioAdRA!Z4,(IF(Início!$R$14=11,ApoioAdRA!AC4,"")))))))))))))))))))) ->  | M5: =IF(H5="","",K5*L5) ->  | N5: =IF(K5="","",6%) ->  | O5: =IF(M5="","",SUM(M5:M8)) ->  | P5: =IF(AND(O5="",O9=""),"",SUM(O5,O9)) -> 
E6: 2.º Escalão (6 a 15 m3/30,42 dias) | F6: =IF(D1="","",IF(D1>5,"2º Escalão","")) ->  | H6: =IF(F6="","",(IF(AND(D1<=5,Início!T14<ApoioAdRA!B44),ApoioAdRA!$B$41*D1,IF(D1>15,10*ApoioAdRA!$B$41,IF(D1<=5,"",D1-5))))) ->  | I6: =IF(AND(H6>0,H6<1),1,H6) ->  | J6: =IF(H6="","",IF((I5+I6)>=D1,(D1-I5),H6)) ->  | K6: =IF(H6=J6,J6,J6) ->  | L6: =IF(F6="","",IF(Início!$R$14=2,ApoioAdRA!E5,(IF(Início!$R$14=3,ApoioAdRA!H5,(IF(Início!$R$14=4,ApoioAdRA!B5,(IF(Início!$R$14=5,ApoioAdRA!K5,(IF(Início!$R$14=6,ApoioAdRA!N5,(IF(Início!$R$14=7,ApoioAdRA!Q5,(IF(Início!$R$14=8,ApoioAdRA!T5,(IF(Início!$R$14=9,ApoioAdRA!W5,(IF(Início!$R$14=10,ApoioAdRA!Z5,(IF(Início!$R$14=11,ApoioAdRA!AC5,"")))))))))))))))))))) ->  | M6: =IF(H6="","",K6*L6) ->  | N6: =IF(K6="","",6%) -> 
E7: 3.º Escalão (16 a 25 m3/30,42 dias) | F7: =IF(D1="","",IF(D1>15,"3º Escalão","")) ->  | H7: =IF(F7="","",IF(D1>25,10*ApoioAdRA!$B$41,IF(D1<=25,D1-15,""))) ->  | I7: =IF(AND(H7>0,H7<1),1,H7) ->  | J7: =IF(H7="","",IF((I5+I6+I7)>=D1,I7+(D1-(I5+I6+I7)),H7)) ->  | K7: =IF(H7=J7,J7,J7) ->  | L7: =IF(F7="","",IF(Início!$R$14=2,ApoioAdRA!E6,(IF(Início!$R$14=3,ApoioAdRA!H6,(IF(Início!$R$14=4,ApoioAdRA!B6,(IF(Início!$R$14=5,ApoioAdRA!K6,(IF(Início!$R$14=6,ApoioAdRA!N6,(IF(Início!$R$14=7,ApoioAdRA!Q6,(IF(Início!$R$14=8,ApoioAdRA!T6,(IF(Início!$R$14=9,ApoioAdRA!W6,(IF(Início!$R$14=10,ApoioAdRA!Z6,(IF(Início!$R$14=11,ApoioAdRA!AC6,"")))))))))))))))))))) ->  | M7: =IF(H7="","",K7*L7) ->  | N7: =IF(K7="","",6%) -> 
E8: 4.º Escalão (> 26 m3/30,42 dias) | F8: =IF(D1="","",IF(D1>25,"4º Escalão","")) ->  | H8: =IF(F8="","",IF(D1>25,((D1-25)*ApoioAdRA!$B$41),IF(D1<=25,D1-25,""))) ->  | I8: =IF(AND(H8>0,H8<1),1,H8) ->  | J8: =I8 ->  | K8: =IF(H8=J8,J8,J8) ->  | L8: =IF(F8="","",IF(Início!$R$14=2,ApoioAdRA!E7,(IF(Início!$R$14=3,ApoioAdRA!H7,(IF(Início!$R$14=4,ApoioAdRA!B7,(IF(Início!$R$14=5,ApoioAdRA!K7,(IF(Início!$R$14=6,ApoioAdRA!N7,(IF(Início!$R$14=7,ApoioAdRA!Q7,(IF(Início!$R$14=8,ApoioAdRA!T7,(IF(Início!$R$14=9,ApoioAdRA!W7,(IF(Início!$R$14=10,ApoioAdRA!Z7,(IF(Início!$R$14=11,ApoioAdRA!AC7,"")))))))))))))))))))) ->  | M8: =IF(H8="","",K8*L8) ->  | N8: =IF(K8="","",6%) -> 
D9: Água (Tarifa Fixa) | G9: =IF(Início!T14="","",Início!T14) -> 30 | L9: =IF(Início!R19=1,"",IF(AND(Início!R19>1,Início!R19<=6),(IF(Início!$R$14=2,ApoioAdRA!F13,(IF(Início!$R$14=3,ApoioAdRA!I13,(IF(Início!$R$14=4,ApoioAdRA!C13,(IF(Início!$R$14=5,ApoioAdRA!L13,(IF(Início!$R$14=6,ApoioAdRA!O13,(IF(Início!$R$14=7,ApoioAdRA!R13,(IF(Início!$R$14=8,ApoioAdRA!U13,(IF(Início!$R$14=9,ApoioAdRA!X13,(IF(Início!$R$14=10,ApoioAdRA!AA13,(IF(Início!$R$14=11,ApoioAdRA!AD13)))))))))))))))))))),IF(AND(Início!R19>6,Início!R19<=7),(IF(Início!$R$14=2,ApoioAdRA!F14,(IF(Início!$R$14=3,ApoioAdRA!I14,(IF(Início!$R$14=4,ApoioAdRA!C14,(IF(Início!$R$14=5,ApoioAdRA!L14,(IF(Início!$R$14=6,ApoioAdRA!O14,(IF(Início!$R$14=7,ApoioAdRA!R14,(IF(Início!$R$14=8,ApoioAdRA!U14,(IF(Início!$R$14=9,ApoioAdRA!X14,(IF(Início!$R$14=10,ApoioAdRA!AA14,(IF(Início!$R$14=11,ApoioAdRA!AD14)))))))))))))))))))),IF(AND(Início!R19>7,A5<=111),(IF(Início!$R$14=2,ApoioAdRA!F15,(IF(Início!$R$14=3,ApoioAdRA!I15,(IF(Início!$R$14=4,ApoioAdRA!C15,(IF(Início!$R$14=5,ApoioAdRA!L15,(IF(Início!$R$14=6,ApoioAdRA!O15,(IF(Início!$R$14=7,ApoioAdRA!R15,(IF(Início!$R$14=8,ApoioAdRA!U15,(IF(Início!$R$14=9,ApoioAdRA!X15,(IF(Início!$R$14=10,ApoioAdRA!AA15,(IF(Início!$R$14=11,ApoioAdRA!AD15)))))))))))))))))))),IF(AND(Início!R19>11,Início!R19<=16),(IF(Início!$R$14=2,ApoioAdRA!F16,(IF(Início!$R$14=3,ApoioAdRA!I16,(IF(Início!$R$14=4,ApoioAdRA!C16,(IF(Início!$R$14=5,ApoioAdRA!L16,(IF(Início!$R$14=6,ApoioAdRA!O16,(IF(Início!$R$14=7,ApoioAdRA!R16,(IF(Início!$R$14=8,ApoioAdRA!U16,(IF(Início!$R$14=9,ApoioAdRA!X16,(IF(Início!$R$14=10,ApoioAdRA!AA16,(IF(Início!$R$14=11,ApoioAdRA!AD16)))))))))))))))))))),IF(AND(Início!R19>16,Início!R19<=20),(IF(Início!$R$14=2,ApoioAdRA!F17,(IF(Início!$R$14=3,ApoioAdRA!I17,(IF(Início!$R$14=4,ApoioAdRA!C17,(IF(Início!$R$14=5,ApoioAdRA!L17,(IF(Início!$R$14=6,ApoioAdRA!O17,(IF(Início!$R$14=7,ApoioAdRA!R17,(IF(Início!$R$14=8,ApoioAdRA!U17,(IF(Início!$R$14=9,ApoioAdRA!X17,(IF(Início!$R$14=10,ApoioAdRA!AA17,(IF(Início!$R$14=11,ApoioAdRA!AD17)))))))))))))))))))),IF(Início!R19>20,(IF(Início!$R$14=2,ApoioAdRA!F18,(IF(Início!$R$14=3,ApoioAdRA!I18,(IF(Início!$R$14=4,ApoioAdRA!C18,(IF(Início!$R$14=5,ApoioAdRA!L18,(IF(Início!$R$14=6,ApoioAdRA!O18,(IF(Início!$R$14=7,ApoioAdRA!R18,(IF(Início!$R$14=8,ApoioAdRA!U18,(IF(Início!$R$14=9,ApoioAdRA!X18,(IF(Início!$R$14=10,ApoioAdRA!AA18,(IF(Início!$R$14=11,ApoioAdRA!AD18)))))))))))))))))))),0))))))) ->  | N9: =IF(G9="","",G19) -> 0.06 | O9: =IF(L9="","",ROUNDUP(G9*L9,2)) -> 
C10: SANEAMENTO | D10: Saneamento (Tarifa Variável) | E10: 1.º Escalão (0 a 5 m3/30,42 dias) | F10: =F5 ->  | H10: =H5 ->  | L10: =IF(F10="","",L5*ApoioAdRA!B25) ->  | M10: =IF(H10="","",K10*L10) ->  | N10: =N5 ->  | O10: =IF(M10="","",ROUNDDOWN(SUM(M10:M13),2)) ->  | P10: =IF(AND(O10="",O14=""),"",SUM(O10,O14)) -> 5.868
E11: 2.º Escalão (6 a 15 m3/30,42 dias) | F11: =F6 ->  | L11: =IF(F11="","",L6*ApoioAdRA!B25) ->  | M11: =IF(H11="","",K11*L11) ->  | N11: =N6 -> 
E12: 3.º Escalão (16 a 25 m3/30,42 dias) | F12: =F7 ->  | L12: =IF(F12="","",L7*ApoioAdRA!B25) ->  | M12: =IF(H12="","",K12*L12) ->  | N12: =N7 -> 
E13: 4.º Escalão (> 26 m3/30,42 dias) | F13: =F8 ->  | L13: =IF(F13="","",L8*ApoioAdRA!B25) ->  | M13: =IF(H13="","",K13*L13) ->  | N13: =N8 -> 
D14: Saneamento (Tarifa Fixa) | G14: =G9 -> 30 | L14: =IF(D1="","",(IF(Início!R14=2,ApoioAdRA!F21,(IF(Início!R14=3,ApoioAdRA!I21,(IF(Início!R14=4,ApoioAdRA!C21,(IF(Início!R14=5,ApoioAdRA!L21,(IF(Início!R14=6,ApoioAdRA!O21,(IF(Início!R14=7,ApoioAdRA!R21,(IF(Início!R14=8,ApoioAdRA!U21,(IF(Início!R14=9,ApoioAdRA!X21,(IF(Início!R14=10,ApoioAdRA!AA21,(IF(Início!R14=11,ApoioAdRA!AD21))))))))))))))))))))) -> 0.1956 | N14: =IF(D1="","",G19) -> 0.06 | O14: =IF(G14="","",G14*L14) -> 5.868
C15: COBRANÇA OUTRAS ENTIDADES | D15: Taxa Recursos Hídricos (Água) | H15: =IF(D1="","",D1) -> 0 | K15: =H15 -> 0 | L15: =IF(D1="","",(IF(Início!R14=2,ApoioAdRA!F22,(IF(Início!R14=3,ApoioAdRA!I22,(IF(Início!R14=4,ApoioAdRA!C22,(IF(Início!R14=5,ApoioAdRA!L22,(IF(Início!R14=6,ApoioAdRA!O22,(IF(Início!R14=7,ApoioAdRA!R22,(IF(Início!R14=8,ApoioAdRA!U22,(IF(Início!R14=9,ApoioAdRA!X22,(IF(Início!R14=10,ApoioAdRA!AA22,(IF(Início!R14=11,ApoioAdRA!AD22))))))))))))))))))))) -> 0 | M15: =IF(H15="","",H15*L15) -> 0 | N15: =IF(L15="","",G19) -> 0.06 | O15: =IF(M17="","",ROUNDDOWN(SUM(M15:M18),2)) -> 10.3 | P15: =IF(O15="","",SUM(O15)) -> 10.3
D16: Taxa Recursos Hídricos (SAN) | H16: =IF(D1="","",D1) -> 0 | K16: =H16 -> 0 | L16: =IF(D1="","",(IF(Início!R14=2,ApoioAdRA!F23,(IF(Início!R14=3,ApoioAdRA!I23,(IF(Início!R14=4,ApoioAdRA!C23,(IF(Início!R14=5,ApoioAdRA!L23,(IF(Início!R14=6,ApoioAdRA!O23,(IF(Início!R14=7,ApoioAdRA!R23,(IF(Início!R14=8,ApoioAdRA!U23,(IF(Início!R14=9,ApoioAdRA!X23,(IF(Início!R14=10,ApoioAdRA!AA23,(IF(Início!R14=11,ApoioAdRA!AD23))))))))))))))))))))) -> 0 | M16: =IF(H16="","",H16*L16) -> 0 | N16: =IF(L16="","",G19) -> 0.06
D17: RSU Fixo | G17: =G14 -> 30 | L17: =IF(D1="","",(IF(Início!R14=2,ApoioAdRA!F24,(IF(Início!R14=3,ApoioAdRA!I24,(IF(Início!R14=4,ApoioAdRA!C24,(IF(Início!R14=5,ApoioAdRA!L24,(IF(Início!R14=6,ApoioAdRA!O24,(IF(Início!R14=7,ApoioAdRA!R24,(IF(Início!R14=8,ApoioAdRA!U24,(IF(Início!R14=9,ApoioAdRA!X24,(IF(Início!R14=10,ApoioAdRA!AA24,(IF(Início!R14=11,ApoioAdRA!AD24))))))))))))))))))))) -> 0.3436 | M17: =IF(G17="","",G17*L17) -> 10.308 | N17: =IF(G17="","","") -> 
D18: RSU (Variável) | H18: =IF(Início!R20=1,D1,"") ->  | K18: =H18 ->  | L18: =IF(Início!R20="2","",(IF(Início!R14=2,ApoioAdRA!E26,(IF(Início!R14=3,ApoioAdRA!H26,(IF(Início!R14=4,ApoioAdRA!B26,(IF(Início!R14=5,ApoioAdRA!K26,(IF(Início!R14=6,ApoioAdRA!N26,(IF(Início!R14=7,ApoioAdRA!Q26,(IF(Início!R14=8,ApoioAdRA!T26,(IF(Início!R14=9,ApoioAdRA!X26,(IF(Início!R14=10,ApoioAdRA!AA26,(IF(Início!R14=11,ApoioAdRA!AD26))))))))))))))))))))) -> 0.9 | M18: =IF(H18="","",H18*L18) ->  | N18: =IF(K18="","","") -> 
C19: IVA | G19: =IF(Início!T14="","",ApoioAdRA!B46) -> 0.06 | L19: =IF(G19="","",O5+O9+O10+O14+M15+M16) ->  | M19: =IF(L19="","",G19*L19) ->  | O19: =IF(M19="","",M19) ->  | P19: =IF(O19="","",SUM(O19)) -> 
C20: VALOR TOTAL A PAGAR c/ IVA (Euros) | G20: =SUM(P5,P10,P15,P19) -> 
B40: =IF('Real vs Simulado'!W24="","","SABIA QUE consome ") -> SABIA QUE consome | C40: =IF('Real vs Simulado'!W24="","",ROUNDUP('Real vs Simulado'!W24,2)) -> 0 | D40: =IF('Real vs Simulado'!W24="",""," m3 por mês, o que corresponde a um consumo ") -> m3 por mês, o que corresponde a um consumo
B41: =IF('Real vs Simulado'!W24="","","por pessoa por dia de cerca de ") -> por pessoa por dia de cerca de | C41: =IF('Real vs Simulado'!W24="","",('Real vs Simulado'!W24*1000)/Início!Q18/Apoio!H3) ->  | D41: =IF('Real vs Simulado'!W24="",""," Litros!!!") -> Litros!!!
B44: =IF('Real vs Simulado'!W24="","","SABIA QUE o consumo médio por pessoa dia, em Portugal, é cerca de") -> SABIA QUE o consumo médio por pessoa dia, em Portugal, é cerca de | C44: =IF('Real vs Simulado'!W24="",""," 140 Litros!!!") -> 140 Litros!!!
B46: =IF('Real vs Simulado'!W24="","","Isto significa que o seu Consumo de Água é") -> Isto significa que o seu Consumo de Água é | C46: =IF('Real vs Simulado'!W24="","",IF(C41<Apoio!H22,Apoio!J22,IF(AND(C41>=Apoio!H22,C41<Apoio!H21),Apoio!J21,IF(AND(C41>=Apoio!H21,C41<Apoio!H20),Apoio!J20,IF(AND(C41>=Apoio!H20,C41<Apoio!H19),Apoio!J19,Apoio!J18))))) -> 

Sheet Dispositivos Preço ANQIP.Real (hidden)
A1: Entidade | B1: Edifícios / Espaços Públicos | C1: Observações | D1: Fornecimento e aplicação de torneiras temporizadas, certificadas pela ANQIP e economizadores anti-roubo para torneiras de fluxo laminado de 3l/min (ANQIP) | F1: Fornecimento e aplicação de torneiras temporizadas (ANQIP) | H1: Torneiras temporizadas em linha, de encastrar (ANQIP) | J1: Torneiras temporizadas em linha, alimentação externa (ANQIP) | L1: Fornecimento e aplicação de economizadores anti-roubo para torneiras de fluxo laminado de 3l/min (ANQIP) | N1: Substituição das torneiras de lava-loiças por torneiras lava-loiças misturadoras com aplicação de economizadores de caudal de 6l/min (ANQIP) | P1: Aplicação de economizadores de caudal nas torneiras de lava-loiças 6l/min (ANQIP) | R1: Aplicação de Válvulas globo ¾’’ para conjuntos de torneiras de lavatório | T1: Aplicação de torneiras de esquadria nos lavatórios | V1: Substituição de mecanismos de descarga completa por mecanismos de dupla descarga (ANQIP) | X1: Autoclismo exterior de dupla descarga, adequado para instalação baixa (ANQIP) | Z1: Autoclismo exterior de dupla descarga (ANQIP) | AB1: Substituição dos autoclismos exteriores plásticos por autoclismos (ANQIP) na categoria “A” | AD1: Substituição dos autoclismos por autoclismos (ANQIP) | AF1: Fornecimento e aplicação de fluxómetro de sanita e tubo de ligação à bacia de retrete (ANQIP) | AH1: Regulação do volume de descarga dos autoclismos de bacias de retrete para 5,5 litros | AJ1: Regulação das descargas dos fluxómetros de bacia de retrete para 6 litros por descarga | AL1: Adaptação dos mecanismos dos autoclismos das bacias de retrete para interrupção de descarga e regulação da descarga para os 5,5 litros | AN1: Fornecimento e aplicação de redutor de chuveiro de 9,5 l/min (ANQIP) | AP1: Aplicação de economizador de chuveiro com caudal de 8l/min. | AR1: Fornecimento e aplicação de redutor de chuveiro para deficientes de 9,5 l/min (ANQIP) | AT1: Fornecimento e aplicação torneiras temporizadoras nos chuveiros e aplicação de economizadores de 9,5 l/min (ANQIP) | AV1: Fornecimento e aplicação de torneira temporizada em linha e redutor de chuveiro (ANQIP) | AX1: Fornecimento e aplicação de torneira temporizada em linha e redutor de chuveiro (ANQIP) | AZ1: Fornecimento e aplicação de torneira monocomando para duche e mangueira de chuveiro com economizador (ANQIP) | BB1: Mangueiras de chuveiro c/ economizadores (8l/min) incorporados (ANQIP) | BD1: Cabeças de Chuveiro sem Redutor | BF1: Rampas de Chuveiro de modo a que o suporte para o Chuveiro-Telefone possa ser ajustável a várias alturas | BH1: Fluxómetro de mictório (ANQIP) | BJ1: Substituição de fluxómetros dos mictórios por fluxómetros de categoria A (ANQIP) | BL1: Substituição de placas de accionamento dos fluxómetros e ajuste dos volumes de descarga (ANQIP) | BN1: Sistema de Telecontagem | BP1: Revisão do sistema de retorno de águas quentes sanitárias ou substituição do mesmo, caso necessário. | BR1: Fornecimento e aplicação de torneira de junção e chave, recomendada pela ANQIP | BT1: Colocação de chave de segurança nas torneiras de lavagem | BV1: Sensibilização para a utilização da interrupção de descarga e da dupla descarga e regulação dos volumes de descarga dos autoclismos de bacias de retrete | BX1: Substituição de elementos e troços de rede predial danificados e que careçam de substituição incluindo a execução de todos os trabalhos preliminares e de acabamento,necessários à completa execução dos trabalhos objecto do fornecimento, e remoção a destino final adequado de eventuais produtos sobrantes. | BZ1: Total (Euros) | CA1: IVA (Euros)
D2: Preço Unitário | E2: Unid. | F2: Preço Unitário | G2: Unid. | H2: Preço Unitário | I2: Unid. | J2: Preço Unitário | K2: Unid. | L2: Preço Unitário | M2: Unid. | N2: Preço Unitário | O2: Unid. | P2: Preço Unitário | Q2: Unid. | R2: Preço Unitário | S2: Unid. | T2: Preço Unitário | U2: Unid. | V2: Preço Unitário | W2: Unid. | X2: Preço Unitário | Y2: Unid. | Z2: Preço Unitário | AA2: Unid. | AB2: Preço Unitário | AC2: Unid. | AD2: Preço Unitário | AE2: Unid. | AF2: Preço Unitário | AG2: Unid. | AH2: Preço Unitário | AI2: Unid. | AJ2: Preço Unitário | AK2: Unid. | AL2: Preço Unitário | AM2: Unid. | AN2: Preço Unitário | AO2: Unid. | AP2: Preço Unitário | AQ2: Unid. | AR2: Preço Unitário | AS2: Unid. | AT2: Preço Unitário | AU2: Unid. | AV2: Preço Unitário | AW2: Unid. | AX2: Preço Unitário | AY2: Unid. | AZ2: Preço Unitário | BA2: Unid. | BB2: Preço Unitário | BC2: Unid. | BD2: Preço Unitário | BE2: Unid. | BF2: Preço Unitário | BG2: Unid. | BH2: Preço Unitário | BI2: Unid. | BJ2: Preço Unitário | BK2: Unid. | BL2: Preço Unitário | BM2: Unid. | BN2: Preço Unitário | BO2: Unid. | BP2: Preço Unitário | BQ2: Unid. | BR2: Preço Unitário | BS2: Unid. | BT2: Preço Unitário | BU2: Unid. | BV2: Preço Unitário | BW2: Unid. | BX2: Preço Unitário | BY2: Unid.
A3: AGD | B3: Pisc Mun | C3: Previsão ANQIP | D3: 81.4 | E3: 18 | V3: 45.6 | W3: 15 | AN3: 18 | AO3: 21 | AR3: 96 | AS3: 2 | BP3: 1166.01 | BQ3: 1 | BZ3: =(D3*E3)+(F3*G3)+(L3*M3)+(AX3*AY3)+(H3*I3)+(J3*K3)+(N3*O3)+(P3*Q3)+(R3*S3)+(T3*U3)+(V3*W3)+(X3*Y3)+(Z3*AA3)+(AB3*AC3)+(AD3*AE3)+(AF3*AG3)+(AH3*AI3)+(AJ3*AK3)+(AL3*AM3)+(AN3*AO3)+(AP3*AQ3)+(AR3*AS3)+(AV3*AW3)+(AZ3*BA3)+(BB3*BC3)+(BD3*BE3)+(BF3*BG3)+(AT3*AU3)+(BH3*BI3)+(BJ3*BK3)+(BL3*BM3)+(BN3*BO3)+(BP3*BQ3)+(BR3*BS3)+(BT3*BU3)+(BV3*BW3)+(BX3*BY3) -> 3885.21 | CA3: =BZ3*1.23 -> 4778.8083
C4: Proposta ou Factura | D4: =58.14 -> 58.14 | E4: 18 | V4: 35 | W4: 15 | AN4: 45 | AO4: 21 | AR4: 40 | AS4: 2 | BP4: 3485 | BQ4: 1 | BZ4: 6081.52 | CA4: =BZ4*1.23 -> 7480.2696
B5: CEI FC | C5: Previsão ANQIP | D5: =33*1.1 -> 36.3 | E5: 16 | V5: =12.5*1.1 -> 13.75 | W5: 4 | BZ5: 635.8 | CA5: 782.034
C6: Proposta ou Factura | BZ6: 0 | CA6: 0
B7: Estádio | C7: Previsão ANQIP | L7: =6.6*1.1 -> 7.26 | M7: 78 | P7: =9*1.1 -> 9.9 | Q7: 4 | BZ7: 605.88 | CA7: 745.2324
C8: Proposta ou Factura | BZ8: 0 | CA8: 0
A9: ALB | B9: Pisc Mun | C9: Previsão ANQIP | D9: 81.4 | E9: 12 | V9: 45.6 | W9: 9 | BZ9: 1387.2 | CA9: 1706.256
C10: Proposta ou Factura | F10: 30.996 | G10: 12 | L10: 11.771 | M10: 12 | V10: 42.349 | W10: 9 | BZ10: 894.345 | CA10: 1100.04435
B11: Pisc Mun Branca | C11: Previsão ANQIP | D11: =33*1.1 -> 36.3 | E11: 19 | V11: =12.5*1.1 -> 13.75 | W11: 14 | BZ11: 882.2 | CA11: 1085.106
C12: Proposta ou Factura | BZ12: 0 | CA12: 0
B13: Pisc Mun SJLoure | C13: Previsão ANQIP | D13: =33*1.1 -> 36.3 | E13: 15 | L13: =6.6*1.1 -> 7.26 | M13: 1 | V13: =12.5*1.1 -> 13.75 | W13: 11 | BZ13: 703.01 | CA13: 864.7023
C14: Proposta ou Factura | BZ14: 0 | CA14: 0
A15: AVR | B15: CCC | C15: Previsão ANQIP | L15: 9.9 | M15: 36 | V15: 45.6 | W15: 20 | BJ15: 37.95 | BK15: 20 | BL15: 36.3 | BM15: 4 | BN15: 1750 | BO15: 1 | BZ15: 3922.6 | CA15: 4824.798
C16: Proposta ou Factura | L16: 18.5 | M16: 36 | V16: 81 | W16: 20 | BJ16: 89 | BK16: 20 | BL16: 59 | BM16: 4 | BN16: 1750 | BO16: 1 | BZ16: 6052 | CA16: 7443.96
B17: Esc Sant | C17: Previsão ANQIP | D17: =33*1.1 -> 36.3 | E17: 14 | P17: =9*1.1 -> 9.9 | Q17: 3 | V17: =12.5*1.1 -> 13.75 | W17: 12 | AP17: =15*1.1 -> 16.5 | AQ17: 7 | BZ17: 818.4 | CA17: 1006.632
C18: Proposta ou Factura | BZ18: 0 | CA18: 0
B19: Merc MF | C19: Previsão ANQIP | L19: =6.6*1.1 -> 7.26 | M19: 8 | V19: =12.5*1.1 -> 13.75 | W19: 17 | BZ19: 291.83 | CA19: 358.9509
C20: Proposta ou Factura | BZ20: 0 | CA20: 0
A21: EST | B21: Cine-Teatro | C21: Previsão ANQIP | L21: 9.9 | M21: 20 | V21: 45.6 | W21: 14 | BR21: 8.5 | BS21: 1 | BZ21: 844.9 | CA21: 1039.227
C22: Proposta ou Factura | BZ22: 0 | CA22: 0
B23: Pavilhão | C23: Previsão ANQIP | D23: =33*1.1 -> 36.3 | E23: 6 | L23: =6.6*1.1 -> 7.26 | M23: 2 | V23: =12.5*1.1 -> 13.75 | W23: 6 | AP23: =15*1.1 -> 16.5 | AQ23: 1 | BZ23: 331.32 | CA23: 407.5236
C24: Proposta ou Factura | BZ24: 0 | CA24: 0
B25: Pisc Mun | C25: Previsão ANQIP | L25: =6.6*1.1 -> 7.26 | M25: 32 | AP25: =9*1.1 -> 9.9 | AQ25: 46 | BZ25: 687.72 | CA25: 845.8956
C26: Proposta ou Factura | BZ26: 0 | CA26: 0
A27: ILH | B27: Pisc Mun | C27: Previsão ANQIP | D27: 81.4 | E27: 24 | AB27: 46.2 | AC27: 16 | BN27: 1750 | BO27: 1 | BZ27: 4442.8 | CA27: 5464.644
C28: Proposta ou Factura | D28: 115 | E28: 24 | AB28: 60 | AC28: 16 | BN28: 1750 | BO28: 1 | BX28: 680 | BY28: 1 | BZ28: 6150 | CA28: 7564.5
B29: MM | C29: Previsão ANQIP | D29: =33*1.1 -> 36.3 | E29: 6 | AL29: =7.5*1.2 -> 9 | AM29: 16 | BZ29: 361.8 | CA29: 445.014
C30: Proposta ou Factura | BZ30: 0 | CA30: 0
B31: Paços Conc | C31: Previsão ANQIP | L31: =6.6*1.1 -> 7.26 | M31: 26 | V31: =12.5*1.1 -> 13.75 | W31: 12 | BZ31: 353.76 | CA31: 435.1248
C32: Proposta ou Factura | BZ32: 0 | CA32: 0
A33: MTS | B33: Pisc Mun | C33: Previsão ANQIP | L33: 9.9 | M33: 47 | BV33: 6 | BW33: 21 | BX33: 6 | BY33: 21 | BZ33: 717.3 | CA33: 882.279
C34: Proposta ou Factura | L34: 6.45 | M34: 47 | BZ34: 303.15 | CA34: 372.8745
B35: CE Murtosa | C35: Previsão ANQIP | D35: =33*1.1 -> 36.3 | E35: 39 | L35: =6.6*1.1 -> 7.26 | M35: 12 | N35: =42*1.1 -> 46.2 | O35: 3 | P35: =9*1.1 -> 9.9 | Q35: 5 | AN35: =15*1.1 -> 16.5 | AO35: 2 | BZ35: =(D35*E35)+(F35*G35)+(L35*M35)+(AX35*AY35)+(H35*I35)+(J35*K35)+(N35*O35)+(P35*Q35)+(R35*S35)+(T35*U35)+(V35*W35)+(X35*Y35)+(Z35*AA35)+(AB35*AC35)+(AD35*AE35)+(AF35*AG35)+(AH35*AI35)+(AJ35*AK35)+(AL35*AM35)+(AN35*AO35)+(AP35*AQ35)+(AR35*AS35)+(AV35*AW35)+(AZ35*BA35)+(BB35*BC35)+(BD35*BE35)+(BF35*BG35)+(AT35*AU35)+(BH35*BI35)+(BJ35*BK35)+(BL35*BM35)+(BN35*BO35)+(BP35*BQ35)+(BR35*BS35)+(BT35*BU35)+(BV35*BW35)+(BX35*BY35) -> 1723.92 | CA35: 2120.4216
C36: Proposta ou Factura | BZ36: 0 | CA36: 0
B37: Paços Conc | C37: Previsão ANQIP | D37: =33*1.1 -> 36.3 | E37: 20 | V37: =12.5*1.1 -> 13.75 | W37: 9 | BZ37: 849.75 | CA37: 1045.1925
C38: Proposta ou Factura | BZ38: 0 | CA38: 0
A39: OLB | B39: Pisc Mun | C39: Previsão ANQIP | D39: 81.4 | E39: 27 | AB39: 46.2 | AC39: 9 | AD39: 45.6 | AE39: 5 | AT39: 82.5 | AU39: 32 | BZ39: 5481.6 | CA39: 6742.368
C40: Proposta ou Factura | D40: 115 | E40: 27 | AB40: 60 | AC40: 9 | AD40: 60 | AE40: 5 | AT40: 115 | AU40: 32 | BZ40: 7625 | CA40: 9378.75
B41: Pavilhão | C41: Previsão ANQIP | D41: =33*1.1 -> 36.3 | E41: 2 | L41: =6.6*1.1 -> 7.26 | M41: 20 | P41: =9*1.1 -> 9.9 | Q41: 2 | V41: =12.5*1.1 -> 13.75 | W41: 10 | AP41: =15*1.1 -> 16.5 | AQ41: 4 | BZ41: 441.1 | CA41: 542.553
C42: Proposta ou Factura | BZ42: 0 | CA42: 0
B43: EB Troviscal | C43: Previsão ANQIP | BZ43: 0 | CA43: 0
C44: Proposta ou Factura | BZ44: 0 | CA44: 0
A45: OVR | B45: Pisc Mun | C45: Previsão ANQIP | D45: 81.4 | E45: 23 | X45: 77 | Y45: 4 | Z45: 46.2 | AA45: 3 | AF45: 84 | AG45: 20 | AN45: 18 | AO45: 32 | AV45: 82.5 | AW45: 8 | AZ45: 66 | BA45: 6 | BH45: 38.5 | BI45: 3 | BT45: 8.5 | BU45: 5 | BZ45: 5788.8 | CA45: 7120.224
C46: Proposta ou Factura | D46: 57.8 | E46: 23 | X46: 50.6 | Y46: 4 | Z46: 50.6 | AA46: 3 | AF46: 79.01 | AG46: 20 | AN46: 25.5 | AO46: 32 | AV46: 90.52 | AW46: 8 | AZ46: 85.8 | BA46: 6 | BH46: 44.28 | BI46: 3 | BT46: 20.7 | BU46: 5 | BZ46: 5555.1 | CA46: 6832.773
B47: Paços Conc | C47: Previsão ANQIP | D47: =33*1.1 -> 36.3 | E47: 12 | L47: =6.6*1.1 -> 7.26 | M47: 9 | BZ47: 500.94 | CA47: 616.1562
C48: Proposta ou Factura | BZ48: 0 | CA48: 0
B49: CE Combatentes | C49: Previsão ANQIP | BZ49: 0 | CA49: 0
C50: Proposta ou Factura | BZ50: 0 | CA50: 0
A51: SVG | B51: Pisc Mun | C51: Previsão ANQIP | D51: 81.4 | E51: 6 | BN51: 1350 | BO51: 1 | BZ51: 1838.4 | CA51: 2261.232
C52: Proposta ou Factura | D52: 115 | E52: 6 | BN52: 1750 | BO52: 1 | BZ52: 2440 | CA52: 3001.2
B53: CAE | C53: Previsão ANQIP | L53: =6.6*1.1 -> 7.26 | M53: 23 | V53: =12.5*1.1 -> 13.75 | W53: 9 | BZ53: 290.73 | CA53: 357.5979
C54: Proposta ou Factura | BZ54: 0 | CA54: 0
B55: VougaPark | C55: Previsão ANQIP | BZ55: 0 | CA55: 0
C56: Proposta ou Factura | BZ56: 0 | CA56: 0
A57: VGS | B57: Pisc Mun | C57: Previsão ANQIP | D57: =(65+9)*1.1 -> 81.4 | L57: 9.9 | M57: 8 | V57: =38*1.2 -> 45.6 | W57: 9 | AH57: 5 | AI57: 12 | AX57: 82.5 | AY57: 17 | BZ57: 1952.1 | CA57: 2401.083
C58: Proposta ou Factura | D58: 54.71 | E58: 18 | H58: 51.6 | I58: 11 | J58: 59.07 | K58: 8 | V58: 10 | W58: 20 | Z58: 47.6 | AA58: 1 | BB58: 30.91 | BC58: 19 | BD58: 29.06 | BE58: 19 | BF58: 38.44 | BG58: 19 | BZ58: 4142.33 | CA58: 5095.0659
B59: Pavilhão | C59: Previsão ANQIP | R59: =4.5*1.1 -> 4.95 | S59: 36 | T59: =2.08*1.2 -> 2.496 | U59: 51 | BL59: =30.3*1.2 -> 36.36 | BM59: 57 | BZ59: 2378.016 | CA59: 2924.95968
C60: Proposta ou Factura | BZ60: 0 | CA60: 0
B61: CE Vagos | C61: Previsão ANQIP | BZ61: 0 | CA61: 0
C62: Proposta ou Factura | BZ62: 0 | CA62: 0
A63: UA | B63: Reitoria | C63: Previsão ANQIP | L63: 9.9 | M63: 40 | V63: 45.6 | W63: 9 | AJ63: 2.5 | AK63: 29 | BZ63: 878.9 | CA63: 1081.047
C64: Proposta ou Factura | BZ64: 0 | CA64: 0
C66: Valor Médio só ANQIP | D66: =(D3+D5+D7+D9+D11+D13+D15+D17+D19+D21+D23+D25+D27+D29+D31+D33+D35+D37+D39+D41+D43+D45+D47+D49+D51+D53+D55+D57+D59+D61+D63)/COUNT(D3,D5,D7,D9,D11,D13,D15,D17,D19,D21,D23,D25,D27,D29,D31,D33,D35,D37,D39,D41,D43,D45,D47,D49,D51,D53,D55,D57,D59,D61,D63) -> 54.87058824 | E66: =(E3+E5+E7+E9+E11+E13+E15+E17+E19+E21+E23+E25+E27+E29+E31+E33+E35+E37+E39+E41+E43+E45+E47+E49+E51+E53+E55+E57+E59+E61+E63)/COUNT(E3,E5,E7,E9,E11,E13,E15,E17,E19,E21,E23,E25,E27,E29,E31,E33,E35,E37,E39,E41,E43,E45,E47,E49,E51,E53,E55,E57,E59,E61,E63) -> 16.1875 | H66: =(H3+H5+H7+H9+H11+H13+H15+H17+H19+H21+H23+H25+H27+H29+H31+H33+H35+H37+H39+H41+H43+H45+H47+H49+H51+H53+H55+H57+H59+H61+H63)/COUNT(H3,H5,H7,H9,H11,H13,H15,H17,H19,H21,H23,H25,H27,H29,H31,H33,H35,H37,H39,H41,H43,H45,H47,H49,H51,H53,H55,H57,H59,H61,H63) ->  | L66: 8.14 | M66: 24.13333333 | N66: 46.2 | O66: 3 | P66: 9.9 | Q66: 3.5 | R66: 4.95 | S66: 36 | T66: 2.496 | U66: 51 | V66: 25.69375 | W66: 11.25 | X66: 77 | Y66: 4 | Z66: 46.2 | AA66: 3 | AB66: 46.2 | AC66: 12.5 | AD66: 45.6 | AE66: 5 | AF66: 84 | AG66: 20 | AH66: 5 | AI66: 12 | AJ66: 2.5 | AK66: 29 | AL66: 9 | AM66: 16 | AN66: 17.5 | AO66: 18.33333333 | AP66: 14.85 | AQ66: 14.5 | AR66: =(AR3+AR5+AR7+AR9+AR11+AR13+AR15+AR17+AR19+AR21+AR23+AR25+AR27+AR29+AR31+AR33+AR35+AR37+AR39+AR41+AR43+AR45+AR47+AR49+AR51+AR53+AR55+AR57+AR59+AR61+AR63)/COUNT(AR3,AR5,AR7,AR9,AR11,AR13,AR15,AR17,AR19,AR21,AR23,AR25,AR27,AR29,AR31,AR33,AR35,AR37,AR39,AR41,AR43,AR45,AR47,AR49,AR51,AR53,AR55,AR57,AR59,AR61,AR63) -> 96 | AS66: 2 | AT66: 82.5 | AU66: 32 | AV66: 82.5 | AW66: 8 | AX66: =(AX3+AX5+AX7+AX9+AX11+AX13+AX15+AX17+AX19+AX21+AX23+AX25+AX27+AX29+AX31+AX33+AX35+AX37+AX39+AX41+AX43+AX45+AX47+AX49+AX51+AX53+AX55+AX57+AX59+AX61+AX63)/COUNT(AX3,AX5,AX7,AX9,AX11,AX13,AX15,AX17,AX19,AX21,AX23,AX25,AX27,AX29,AX31,AX33,AX35,AX37,AX39,AX41,AX43,AX45,AX47,AX49,AX51,AX53,AX55,AX57,AX59,AX61,AX63) -> 82.5 | AY66: =(AY3+AY5+AY7+AY9+AY11+AY13+AY15+AY17+AY19+AY21+AY23+AY25+AY27+AY29+AY31+AY33+AY35+AY37+AY39+AY41+AY43+AY45+AY47+AY49+AY51+AY53+AY55+AY57+AY59+AY61+AY63)/COUNT(AY3,AY5,AY7,AY9,AY11,AY13,AY15,AY17,AY19,AY21,AY23,AY25,AY27,AY29,AY31,AY33,AY35,AY37,AY39,AY41,AY43,AY45,AY47,AY49,AY51,AY53,AY55,AY57,AY59,AY61,AY63) -> 17 | AZ66: 66 | BA66: 6 | BH66: 38.5 | BI66: 3 | BJ66: 37.95 | BK66: 20 | BL66: 36.33 | BM66: 30.5 | BN66: 1616.666667 | BO66: 1 | BP66: 1166.01 | BQ66: =(BQ3+BQ5+BQ7+BQ9+BQ11+BQ13+BQ15+BQ17+BQ19+BQ21+BQ23+BQ25+BQ27+BQ29+BQ31+BQ33+BQ35+BQ37+BQ39+BQ41+BQ43+BQ45+BQ47+BQ49+BQ51+BQ53+BQ55+BQ57+BQ59+BQ61+BQ63)/COUNT(BQ3,BQ5,BQ7,BQ9,BQ11,BQ13,BQ15,BQ17,BQ19,BQ21,BQ23,BQ25,BQ27,BQ29,BQ31,BQ33,BQ35,BQ37,BQ39,BQ41,BQ43,BQ45,BQ47,BQ49,BQ51,BQ53,BQ55,BQ57,BQ59,BQ61,BQ63) -> 1 | BR66: 8.5 | BS66: 1 | BT66: 8.5 | BU66: 5 | BV66: 6 | BW66: 21 | BX66: 6 | BY66: 21 | BZ66: =(BZ3+BZ9+BZ15+BZ21+BZ27+BZ33+BZ39+BZ45+BZ51+BZ57+BZ63)/COUNT(BZ3,BZ9,BZ15,BZ21,BZ27,BZ33,BZ39,BZ45,BZ51,BZ57,BZ63) -> 2830.891818 | CA66: 3481.996936
C67: Valor Médio só Empresas | D67: =(D4+D6+D8+D10+D12+D14+D16+D18+D20+D22+D24+D26+D28+D30+D32+D34+D36+D38+D40+D42+D44+D46+D48+D50+D52+D54+D56+D58+D60+D62+D64)/COUNT(D4,D6,D8,D10,D12,D14,D16,D18,D20,D22,D24,D26,D28,D30,D32,D34,D36,D38,D40,D42,D44,D46,D48,D50,D52,D54,D56,D58,D60,D62,D64) -> 85.94166667 | E67: =(E4+E6+E8+E10+E12+E14+E16+E18+E20+E22+E24+E26+E28+E30+E32+E34+E36+E38+E40+E42+E44+E46+E48+E50+E52+E54+E56+E58+E60+E62+E64)/COUNT(E4,E6,E8,E10,E12,E14,E16,E18,E20,E22,E24,E26,E28,E30,E32,E34,E36,E38,E40,E42,E44,E46,E48,E50,E52,E54,E56,E58,E60,E62,E64) -> 19.33333333 | F67: 30.996 | G67: 12 | H67: 51.6 | I67: 11 | J67: 59.07 | K67: 8 | L67: 12.24033333 | M67: 31.66666667 | V67: 42.08725 | W67: 16 | X67: 50.6 | Y67: 4 | Z67: 49.1 | AA67: 2 | AB67: 60 | AC67: 12.5 | AD67: 60 | AE67: 5 | AF67: 79.01 | AG67: 20 | AN67: 35.25 | AO67: 26.5 | AR67: 40 | AS67: 2 | AT67: 115 | AU67: 32 | AV67: 90.52 | AW67: 8 | AX67: =(AX4+AX6+AX8+AX10+AX12+AX14+AX16+AX18+AX20+AX22+AX24+AX26+AX28+AX30+AX32+AX34+AX36+AX38+AX40+AX42+AX44+AX46+AX48+AX50+AX52+AX54+AX56+AX58+AX60+AX62+AX64)/COUNT(AX4,AX6,AX8,AX10,AX12,AX14,AX16,AX18,AX20,AX22,AX24,AX26,AX28,AX30,AX32,AX34,AX36,AX38,AX40,AX42,AX44,AX46,AX48,AX50,AX52,AX54,AX56,AX58,AX60,AX62,AX64) ->  | AY67: =(AY4+AY6+AY8+AY10+AY12+AY14+AY16+AY18+AY20+AY22+AY24+AY26+AY28+AY30+AY32+AY34+AY36+AY38+AY40+AY42+AY44+AY46+AY48+AY50+AY52+AY54+AY56+AY58+AY60+AY62+AY64)/COUNT(AY4,AY6,AY8,AY10,AY12,AY14,AY16,AY18,AY20,AY22,AY24,AY26,AY28,AY30,AY32,AY34,AY36,AY38,AY40,AY42,AY44,AY46,AY48,AY50,AY52,AY54,AY56,AY58,AY60,AY62,AY64) ->  | AZ67: 85.8 | BA67: 6 | BB67: 30.91 | BC67: 19 | BD67: 29.06 | BE67: 19 | BF67: 38.44 | BG67: 19 | BH67: 44.28 | BI67: 3 | BJ67: 89 | BK67: 20 | BL67: 59 | BM67: 4 | BN67: 1750 | BO67: 1 | BP67: 3485 | BQ67: =(BQ4+BQ6+BQ8+BQ10+BQ12+BQ14+BQ16+BQ18+BQ20+BQ22+BQ24+BQ26+BQ28+BQ30+BQ32+BQ34+BQ36+BQ38+BQ40+BQ42+BQ44+BQ46+BQ48+BQ50+BQ52+BQ54+BQ56+BQ58+BQ60+BQ62+BQ64)/COUNT(BQ4,BQ6,BQ8,BQ10,BQ12,BQ14,BQ16,BQ18,BQ20,BQ22,BQ24,BQ26,BQ28,BQ30,BQ32,BQ34,BQ36,BQ38,BQ40,BQ42,BQ44,BQ46,BQ48,BQ50,BQ52,BQ54,BQ56,BQ58,BQ60,BQ62,BQ64) -> 1 | BT67: 20.7 | BU67: 5 | BX67: 680 | BY67: 1 | BZ67: =(BZ4+BZ10+BZ16+BZ22+BZ28+BZ34+BZ40+BZ46+BZ52+BZ58+BZ64)/COUNT(BZ4,BZ10,BZ16,BZ22,BZ28,BZ34,BZ40,BZ46,BZ52,BZ58,BZ64) -> 3567.585909 | CA67: 4388.130668
C68: Valor Médio ANQIP+Empresas | D68: =SUM(D3:D64)/COUNT(D3:D64) -> 62.97608696 | E68: =SUM(E3:E64)/COUNT(E3:E64) -> 17.04545455 | F68: 30.996 | G68: 12 | H68: =SUM(H3:H64)/COUNT(H3:H64) -> 51.6 | I68: =SUM(I3:I64)/COUNT(I3:I64) -> 11 | J68: =SUM(J3:J64)/COUNT(J3:J64) -> 59.07 | K68: =SUM(K3:K64)/COUNT(K3:K64) -> 8 | L68: 8.823388889 | M68: 25.38888889 | N68: 46.2 | O68: 3 | P68: 9.9 | Q68: 3.5 | R68: 4.95 | S68: 36 | T68: 2.496 | U68: 51 | V68: 28.97245 | W68: 12.2 | X68: 63.8 | Y68: 4 | Z68: 48.13333333 | AA68: 2.333333333 | AB68: 53.1 | AC68: 12.5 | AD68: 52.8 | AE68: 5 | AF68: 81.505 | AG68: 20 | AH68: 5 | AI68: 12 | AJ68: 2.5 | AK68: 29 | AL68: 9 | AM68: 16 | AN68: 24.6 | AO68: 21.6 | AP68: 14.85 | AQ68: 14.5 | AR68: =SUM(AR3:AR64)/COUNT(AR3:AR64) -> 68 | AS68: =SUM(AS3:AS64)/COUNT(AS3:AS64) -> 2 | AT68: =SUM(AT3:AT64)/COUNT(AT3:AT64) -> 98.75 | AU68: =SUM(AU3:AU64)/COUNT(AU3:AU64) -> 32 | AV68: =SUM(AV3:AV64)/COUNT(AV3:AV64) -> 86.51 | AW68: 8 | AX68: =SUM(AX3:AX64)/COUNT(AX3:AX64) -> 82.5 | AY68: =SUM(AY3:AY64)/COUNT(AY3:AY64) -> 17 | AZ68: 75.9 | BA68: 6 | BB68: 30.91 | BC68: 19 | BD68: 29.06 | BE68: 19 | BF68: 38.44 | BG68: 19 | BH68: 41.39 | BI68: 3 | BJ68: 63.475 | BK68: 20 | BL68: 43.88666667 | BM68: 21.66666667 | BN68: 1683.333333 | BO68: 1 | BP68: 2325.505 | BQ68: =SUM(BQ3:BQ64)/COUNT(BQ3:BQ64) -> 1 | BR68: 8.5 | BS68: 1 | BT68: 14.6 | BU68: 5 | BV68: 6 | BW68: 21 | BX68: 343 | BY68: 11 | BZ68: =(BZ3+BZ4+BZ9+BZ10+BZ15+BZ16+BZ21+BZ22+BZ27+BZ28+BZ33+BZ34+BZ39+BZ40+BZ45+BZ46+BZ51+BZ52+BZ57+BZ58+BZ63+BZ64)/COUNT(BZ3:BZ64) -> 1135.21379 | CA68: 1396.312962
D70: =SUM(D68,F68,H68,J68)/4 -> 51.16052174 | L70: =L68 -> 8.823388889 | N70: =N68 -> 46.2 | P70: =P68 -> 9.9 | V70: =V68 -> 28.97245 | X70: =(X68+Z68+AB68+AD68)/4 -> 54.45833333 | AN70: =(AN68+AP68)/2 -> 19.725 | AR70: =(AR68+AT68+AV68+AX68)/4 -> 83.94 | BH70: =(BH68+BJ68)/2 -> 52.4325
C72: Regulação do Mictório | D72: 20

Sheet Apoio (hidden)
A1: Local | B1: Onde Gasta? | C1: Questões | E1: Valores de Referência | G1: Variáveis | H1: Valores
A2: ='Quarto-de-Banho'!G6 -> Quarto de Banho / Balneário | B2: ='Quarto-de-Banho'!H6 -> Autoclismo | C2: Qual a capacidade/quantidade de água por descarga (em litros)? | E2: 4.5 | G2: Variável Semanas por Mês | H2: =H3/7 -> 4.345238095
B3: ='Quarto-de-Banho'!H12 -> Fluxómetro / Mictório | C3: Qual a quantidade de água por descarga (em litros)? | E3: 2 | G3: Variável Dias por Mês | H3: =365/12 -> 30.41666667
B4: ='Quarto-de-Banho'!H16 -> Chuveiro / Duche | C4: Qual o caudal médio do chuveiro (litros por minuto)? | E4: 7.2 | G4: Mictório | H4: 2
C5: Fecha a água enquanto se ensaboa? | E5: 0.75 | G5: Fecha Água no Duche/Barba/Mãos/Dentes | H5: 0.5
G6: Outras Utilizações Lavatório | H6: 2
B7: ='Quarto-de-Banho'!H24 -> Banho de Imersão | C7: Qual o volume aproximado da sua banheira? | E7: 200 | G7: Tempo Lavar Mãos (min) | H7: 0.3
B8: ='Quarto-de-Banho'!H32 -> Lavatório | C8: Qual o caudal médio da torneira (litros por minuto)? | E8: 2 | G8: Taxa de Evaporação ((l*m2)/média dias do ano)) | H8: 3.5
C9: Se sim, como? | E9: 2 | G9: Taxa de Evaporação ((l*m2)/dias só do Verão)) | H9: 7
G10: Taxa de Poupança por Uso de Coberturas Isotérmicas | H10: 0.8
G11: Pisc Ñ Aquec Ext S/ Cobertura gasta (litros/m2/dia) | H11: 3
B12: ='Quarto-de-Banho'!H56 -> Bidés | C12: Qual o caudal médio da torneira que usa (litros por minuto)? | E12: 2 | G12: Pisc Ñ Aquec Ext C/ Cobertura gasta (litros/m2/dia) | H12: =(((H11-(H11*H10)))) -> 0.6
A13: =Cozinha!G6 -> Cozinha | B13: =Cozinha!H6 -> Lava-louça | C13: Qual o caudal médio da torneira que usa (litros por minuto)? | E13: 4 | G13: Pisc Aquec Int S/ Cobertura gasta (litros/m2/dia) | H13: =((H11+(H11/2))/2) -> 2.25
A14: =Equipamento!G6 -> Equipamento | B14: =Equipamento!H6 -> Máquina Lavar Roupa | C14: Qual o consumo de Água? (Litros por ciclo de lavagem) (ver Ficha Técnica) | E14: 6 | G14: Pisc Aquec Int C/ Cobertura gasta (litros/m2/dia) | H14: =H13-(H13*H10) -> 0.45
B15: =Equipamento!H11 -> Máquina Lavar Loiça | C15: Qual o consumo de água (Litros por Ciclo de Lavagem)? (ver Ficha Técnica) | E15: 12 | G15: Tempo Ideal de Duche (min) | H15: 7
C16: =Limpeza!I6 -> Qual o volume de água que se gasta por semana para lavar a sua casa (em litros)? | E16: 10 | G16: Tempo Ideal de Banho de Imersão (litros) | H16: 0
A17: =Limpeza!G6 -> Limpeza | B17: =Limpeza!H7 -> Carro | C17: Qual o caudal médio da mangueira que usa (litros por minuto)? | E17: 15 | H17: litros/pessoa/dia | J17: Eficiência
A18: ='Espaços Verdes'!G6 -> Jardins / Espaços Verdes | B18: ='Espaços Verdes'!H6 -> Rega | C18: Caso, regue o seu jardim com Mangueira, qual o caudal médio da mangueira que usa (litros por minuto)? | E18: 15 | G18: Um Consumo Mensal por Pessoa maior do que | H18: 201 | I18: é | J18: Muito Ineficiente
C19: Caso, regue o jardim através da Rega Automática,qual o caudal médio (litros por minuto)? | E19: 1 | G19: Um Consumo Mensal por Pessoa entre 161 e | H19: 200 | I19: é | J19: Ineficiente
A20: =Piscina!G6 -> Piscina | B20: =Piscina!H6 -> Tanque | C20: Quantas vezes muda a água da piscina por ano? | E20: 7.2 | G20: Um Consumo Mensal por Pessoa entre 121 e | H20: 160 | I20: é | J20: Normal
C21: Se é Pública, qual a taxa de renovação diária? (em percentagem) | E21: 2 | G21: Um Consumo Mensal por Pessoa entre 81 e | H21: 120 | I21: é | J21: Eficiente
C22: Qual o consumo minimo? m3 | G22: Um Consumo Mensal por Pessoa menor do que | H22: 80 | I22: é | J22: Muito Eficiente
A23: =Outros!G6 -> Outros | B23: =Outros!H6 -> Lago | C23: =Outros!I10 ->  | E23: 0.25
B24: AVAC | C24: =Outros!I16 ->  | E24: 0.5
C25: Qual a percentagem da água gasta na Limpeza da Casa (%)? | E25: 0.02

Sheet ApoioAdRA (hidden)
B1: Aveiro | E1: Águeda | H1: Albergaria-a-Velha | K1: Estarreja | N1: Ílhavo | Q1: Murtosa | T1: OLB | W1: OVR | Z1: SVG | AC1: VGS
A3: Abastecimento de Água (Tarifa Variável) (Utilizador do Tipo Doméstico) | B3: Valores (€) | D3: Valor Máximo por Escalão (€) | E3: Valores (€) | G3: Valor Máximo por Escalão (€) | H3: Valores (€) | J3: Valor Máximo por Escalão (€) | K3: Valores (€) | M3: Valor Máximo por Escalão (€) | N3: Valores (€) | P3: Valor Máximo por Escalão (€) | Q3: Valores (€) | S3: Valor Máximo por Escalão (€) | T3: Valores (€) | V3: Valor Máximo por Escalão (€) | W3: Valores (€) | Y3: Valor Máximo por Escalão (€) | Z3: Valores (€) | AB3: Valor Máximo por Escalão (€) | AC3: Valores (€) | AE3: Valor Máximo por Escalão (€)
A4: Valor do m3 do 1ºEscalão (<5 m3) | B4: 0.5714 | D4: =B4*5 -> 2.857 | E4: =B4 -> 0.5714 | G4: =E4*5 -> 2.857 | H4: =E4 -> 0.5714 | J4: =H4*5 -> 2.857 | K4: =H4 -> 0.5714 | M4: =K4*5 -> 2.857 | N4: =K4 -> 0.5714 | P4: =N4*5 -> 2.857 | Q4: =N4 -> 0.5714 | S4: =Q4*5 -> 2.857 | T4: =Q4 -> 0.5714 | V4: =T4*5 -> 2.857 | W4: 0.5714 | Y4: =W4*5 -> 2.857 | Z4: =W4 -> 0.5714 | AB4: =Z4*5 -> 2.857 | AC4: =Z4 -> 0.5714 | AE4: =AC4*5 -> 2.857
A5: Valor do m3 do 2ºEscalão (5-15 m3) | B5: 0.8916 | D5: =B5*10 -> 8.916 | E5: 0.8916 | G5: =E5*10 -> 8.916 | H5: 0.8916 | J5: =H5*10 -> 8.916 | K5: 0.8916 | M5: =K5*10 -> 8.916 | N5: 0.8916 | P5: =N5*10 -> 8.916 | Q5: 0.8916 | S5: =Q5*10 -> 8.916 | T5: 0.8916 | V5: =T5*10 -> 8.916 | W5: 0.8916 | Y5: =W5*10 -> 8.916 | Z5: 0.8916 | AB5: =Z5*10 -> 8.916 | AC5: 0.8916 | AE5: =AC5*10 -> 8.916
A6: Valor do m3 do 3ºEscalão (15-25 m3) | B6: 1.5301 | D6: =B6*10 -> 15.301 | E6: 1.5301 | G6: =E6*10 -> 15.301 | H6: 1.5301 | J6: =H6*10 -> 15.301 | K6: 1.5301 | M6: =K6*10 -> 15.301 | N6: 1.5301 | P6: =N6*10 -> 15.301 | Q6: 1.5301 | S6: =Q6*10 -> 15.301 | T6: 1.5301 | V6: =T6*10 -> 15.301 | W6: 1.5301 | Y6: =W6*10 -> 15.301 | Z6: 1.5301 | AB6: =Z6*10 -> 15.301 | AC6: 1.5301 | AE6: =AC6*10 -> 15.301
A7: Valor do m3 do 4ºEscalão (>25 m3) | B7: 1.8579 | E7: 1.8579 | H7: 1.8579 | K7: 1.8579 | N7: 1.8579 | Q7: 1.8579 | T7: 1.8579 | W7: 1.8579 | Z7: 1.8579 | AC7: 1.8579
A8: Utilizadores do Tipo Não Doméstico | B8: 1.7049 | E8: 1.7049 | H8: 1.7049 | K8: 1.7049 | N8: 1.7049 | Q8: 1.7049 | T8: 1.7049 | W8: 1.7049 | Z8: 1.7049 | AC8: 1.7049
A9: Instituições particulares sens fins lucrativos (ISFL) | B9: 0.8743 | E9: 0.8743 | H9: 0.8743 | K9: 0.8743 | N9: 0.8743 | Q9: 0.8743 | T9: 0.8743 | W9: 0.8743 | Z9: 0.8743 | AC9: 0.8743
A10: Autarquias Locais | B10: 0.8743 | E10: 0.8743 | H10: 0.8743 | K10: 0.8743 | N10: 0.8743 | Q10: 0.8743 | T10: 0.8743 | W10: 0.8743 | Z10: 0.8743 | AC10: 0.8743
A12: Abastecimento de Água (Tarifa Fixa) (Utilizador do Tipo Doméstico) | B12: Valores (€/mês) | C12: Valores (€/dia) | E12: Valores (€/mês) | F12: Valores (€/dia) | H12: Valores (€/mês) | I12: Valores (€/dia) | K12: Valores (€/mês) | L12: Valores (€/dia) | N12: Valores (€/mês) | O12: Valores (€/dia) | Q12: Valores (€/mês) | R12: Valores (€/dia) | T12: Valores (€/mês) | U12: Valores (€/dia) | W12: Valores (€/mês) | X12: Valores (€/dia) | Z12: Valores (€/mês) | AA12: Valores (€/dia) | AC12: Valores (€/mês) | AD12: Valores (€/dia)
A13: Calibre 1 (<25 mm) | B13: 5.38 | C13: =B13/$B$44 -> 0.1767411301 | E13: =B13 -> 5.38 | F13: =E13/$B$44 -> 0.1767411301 | H13: =E13 -> 5.38 | I13: =H13/$B$44 -> 0.1767411301 | K13: =H13 -> 5.38 | L13: =K13/$B$44 -> 0.1767411301 | N13: =K13 -> 5.38 | O13: =N13/$B$44 -> 0.1767411301 | Q13: =N13 -> 5.38 | R13: =Q13/$B$44 -> 0.1767411301 | T13: =Q13 -> 5.38 | U13: =T13/$B$44 -> 0.1767411301 | W13: =T13 -> 5.38 | X13: =W13/$B$44 -> 0.1767411301 | Z13: =W13 -> 5.38 | AA13: =Z13/$B$44 -> 0.1767411301 | AC13: =Z13 -> 5.38 | AD13: =AC13/$B$44 -> 0.1767411301
A14: Calibre 2 (>25 <30 mm) | B14: 23.91 | C14: 0.7854796321 | E14: 23.91 | F14: 0.7854796321 | H14: 23.91 | I14: 0.7854796321 | K14: 23.91 | L14: 0.7854796321 | N14: 23.91 | O14: 0.7854796321 | Q14: 23.91 | R14: 0.7854796321 | T14: 23.91 | U14: 0.7854796321 | W14: 23.91 | X14: 0.7854796321 | Z14: 23.91 | AA14: 0.7854796321 | AC14: 23.91 | AD14: 0.7854796321
A15: Calibre 3 (>30 <50 mm) | B15: 56.78 | C15: 1.865308804 | E15: 56.78 | F15: 1.865308804 | H15: 56.78 | I15: 1.865308804 | K15: 56.78 | L15: 1.865308804 | N15: 56.78 | O15: 1.865308804 | Q15: 56.78 | R15: 1.865308804 | T15: 56.78 | U15: 1.865308804 | W15: 56.78 | X15: 1.865308804 | Z15: 56.78 | AA15: 1.865308804 | AC15: 56.78 | AD15: 1.865308804
A16: Calibre 4 (>50 <100 mm) | B16: 83.67 | C16: 2.74868594 | E16: 83.67 | F16: 2.74868594 | H16: 83.67 | I16: 2.74868594 | K16: 83.67 | L16: 2.74868594 | N16: 83.67 | O16: 2.74868594 | Q16: 83.67 | R16: 2.74868594 | T16: 83.67 | U16: 2.74868594 | W16: 83.67 | X16: 2.74868594 | Z16: 83.67 | AA16: 2.74868594 | AC16: 83.67 | AD16: 2.74868594
A17: Calibre 5 (>100 <300 mm) | B17: 125.51 | C17: 4.123193167 | E17: 125.51 | F17: 4.123193167 | H17: 125.51 | I17: 4.123193167 | K17: 125.51 | L17: 4.123193167 | N17: 125.51 | O17: 4.123193167 | Q17: 125.51 | R17: 4.123193167 | T17: 125.51 | U17: 4.123193167 | W17: 125.51 | X17: 4.123193167 | Z17: 125.51 | AA17: 4.123193167 | AC17: 125.51 | AD17: 4.123193167
A18: Calibre 6 (>300 mm) | B18: 298.83 | C18: 9.817017083 | E18: 298.83 | F18: 9.817017083 | H18: 298.83 | I18: 9.817017083 | K18: 298.83 | L18: 9.817017083 | N18: 298.83 | O18: 9.817017083 | Q18: 298.83 | R18: 9.817017083 | T18: 298.83 | U18: 9.817017083 | W18: 298.83 | X18: 9.817017083 | Z18: 298.83 | AA18: 9.817017083 | AC18: 298.83 | AD18: 9.817017083
A20: Utilizador do Tipo Doméstico | B20: Valores (€/mês) | C20: Valores (€/dia) | E20: Valores (€/mês) | F20: Valores (€/dia) | H20: Valores (€/mês) | I20: Valores (€/dia) | K20: Valores (€/mês) | L20: Valores (€/dia) | N20: Valores (€/mês) | O20: Valores (€/dia) | Q20: Valores (€/mês) | R20: Valores (€/dia) | T20: Valores (€/mês) | U20: Valores (€/dia) | W20: Valores (€/mês) | X20: Valores (€/dia) | Z20: Valores (€/mês) | AA20: Valores (€/dia) | AC20: Valores (€/mês) | AD20: Valores (€/dia)
A21: Saneamento - Tx. Rec. Hídricos (Água) (Tarifa Fixa) | B21: =C21*B44 -> 5.954064 | C21: 0.1956 | E21: =B21 -> 5.954064 | F21: =C21 -> 0.1956 | H21: =E21 -> 5.954064 | I21: =F21 -> 0.1956 | K21: =H21 -> 5.954064 | L21: =I21 -> 0.1956 | N21: =K21 -> 5.954064 | O21: =L21 -> 0.1956 | Q21: =N21 -> 5.954064 | R21: =O21 -> 0.1956 | T21: =Q21 -> 5.954064 | U21: =R21 -> 0.1956 | W21: =T21 -> 5.954064 | X21: =U21 -> 0.1956 | Z21: =W21 -> 5.954064 | AA21: =X21 -> 0.1956 | AC21: 4.92 | AD21: =AC21/B44 -> 0.161629435
A22: Cobrança Outras Entidades - Tx. Rec. Hídricos (Água) | B22: =C22*B44 -> 0 | C22: 0 | E22: =F22*30.44 -> 1.01974 | F22: =0.0335 -> 0.0335 | H22: =I22*30.42 -> 1.01907 | I22: =0.0335 -> 0.0335 | K22: =L22*30.44 -> 1.01974 | L22: =0.0335 -> 0.0335 | N22: =O22*30.44 -> 1.01974 | O22: =0.0335 -> 0.0335 | Q22: =R22*30.44 -> 1.01974 | R22: =0.0335 -> 0.0335 | T22: =U22*30.44 -> 1.044092 | U22: =0.0343 -> 0.0343 | W22: =X22*30.44 -> 1.01974 | X22: =0.0335 -> 0.0335 | Z22: =AA22*30.44 -> 1.01974 | AA22: =0.0335 -> 0.0335 | AC22: =AD22*30.44 -> 1.01974 | AD22: =0.0335 -> 0.0335
A23: Cobrança Outras Entidades - Tx. Rec. Hídricos (SAN) | B23: =C23*B44 -> 0 | C23: 0 | E23: =F23*30.44 -> 0.465732 | F23: 0.0153 | H23: =I23*30.42 -> 0.465426 | I23: 0.0153 | K23: =L23*30.44 -> 0.465732 | L23: 0.0153 | N23: =O23*30.44 -> 0.465732 | O23: 0.0153 | Q23: =R23*30.44 -> 0.465732 | R23: 0.0153 | T23: =U23*30.44 -> 0.520524 | U23: 0.0171 | W23: =X23*30.44 -> 0.465732 | X23: 0.0153 | Z23: =AA23*30.44 -> 0.465732 | AA23: 0.0153 | AC23: =AD23*30.44 -> 0.465732 | AD23: 0.0153
A24: Cobrança Outras Entidades - RSU Fixo | B24: =C24*B44 -> 10.459184 | C24: 0.3436 | E24: =F24*30.44 -> 3.503644 | F24: 0.1151 | H24: =I24*30.42 -> 3.501342 | I24: 0.1151 | K24: =L24*30.44 -> 3.503644 | L24: 0.1151 | N24: =O24*30.44 -> 3.503644 | O24: 0.1151 | Q24: =R24*30.44 -> 3.503644 | R24: 0.1151 | T24: =U24*30.44 -> 3.71368 | U24: 0.122 | W24: =X24*30.44 -> 3.503644 | X24: 0.1151 | Z24: =AA24*30.44 -> 3.503644 | AA24: 0.1151 | AC24: =AD24*30.44 -> 3.503644 | AD24: 0.1151
A25: Saneamento (Tarifa Variável) | B25: 0.9 | E25: 0.9 | H25: 0.9 | K25: 0.9 | N25: 0.9 | Q25: 0.9 | T25: 0.9 | W25: 0.9 | Z25: 0.9 | AC25: 0.9
A26: Cobrança Outras Entidades - RSU Variável (Valor por m3 consumido) | B26: 0.9 | E26: 0.45 | H26: 0.45 | K26: 0.45 | N26: 0.45 | Q26: 0.45 | T26: 0.45 | W26: 0.45 | Z26: 0.45 | AC26: 0.45
A28: =IF(Síntese!$D$128=D35,D35,"") -> 
A29: =IF(Síntese!$D$128=D36,D36,"") -> 
A30: =IF(Síntese!$D$128=D37,D37,"") -> 
A31: =IF(Síntese!$D$128=D38,D38,"") -> 
A32: =IF(Síntese!$D$128=D39,D39,"") -> 
B34: litros/pessoa/dia | D34: Eficiência
A35: Um Consumo Mensal por Pessoa maior do que | B35: 201 | C35: é | D35: Muito Ineficiente
A36: Um Consumo Mensal por Pessoa entre 161 e | B36: 200 | C36: é | D36: Ineficiente
A37: Um Consumo Mensal por Pessoa entre 121 e | B37: 160 | C37: é | D37: Normal
A38: Um Consumo Mensal por Pessoa entre 81 e | B38: 120 | C38: é | D38: Eficiente
A39: Um Consumo Mensal por Pessoa menor do que | B39: 80 | C39: é | D39: Muito Eficiente
A41: N.º de Meses | B41: =Início!T14/D44 -> 1
A42: N.º de Meses Inteiros | B42: =INT(B41) -> 1 | C42: =IF(B42=1,"mês e",IF(B42>1,"meses e","")) -> mês e
A43: N.º de Dias | B43: =ROUNDDOWN((B41-B42)*D44,4) -> 0 | C43: dias
A44: Dias por Mês | B44: 30.44 | D44: 30
A46: IVA | B46: 0.06
A48: Consumo m3/em cada um dos dias do mês | B48: ='Real vs Simulado'!E24/D44 -> 0
A49: m3/por todos os dias | B49: ='Real vs Simulado'!E24/ApoioAdRA!D44 -> 0 | C49: =ROUNDUP($B$43*$B$49,1) -> 0
E54: 1Escalão | F54: 2Escalão | G54: 3Escalão | H54: 4Escalão | I54: =A21 -> Saneamento - Tx. Rec. Hídricos (Água) (Tarifa Fixa) | J54: =A22 -> Cobrança Outras Entidades - Tx. Rec. Hídricos (Água) | K54: =A23 -> Cobrança Outras Entidades - Tx. Rec. Hídricos (SAN) | L54: =A24 -> Cobrança Outras Entidades - RSU Fixo | M54: =A26 -> Cobrança Outras Entidades - RSU Variável (Valor por m3 consumido)
C56: 1
C57: 2 | D57: AGD | E57: =E59 -> 0.5714 | F57: =F59 -> 0.8916 | G57: =G59 -> 1.5301 | H57: =H59 -> 1.8579 | I57: =F21 -> 0.1956 | J57: =F22 -> 0.0335 | K57: =F23 -> 0.0153 | L57: =F24 -> 0.1151 | M57: =E26 -> 0.45
C58: 3 | D58: ALB | E58: =E59 -> 0.5714 | F58: =F59 -> 0.8916 | G58: =G59 -> 1.5301 | H58: =H59 -> 1.8579 | I58: =I21 -> 0.1956 | J58: =I22 -> 0.0335 | K58: =I23 -> 0.0153 | L58: =I24 -> 0.1151 | M58: =H26 -> 0.45
C59: 4 | D59: AVR | E59: =B4 -> 0.5714 | F59: =B5 -> 0.8916 | G59: =B6 -> 1.5301 | H59: =B7 -> 1.8579 | I59: =C21 -> 0.1956 | J59: =C22 -> 0 | K59: =C23 -> 0 | L59: =C24 -> 0.3436 | M59: =B26 -> 0.9
C60: 5 | D60: EST | E60: =E59 -> 0.5714 | F60: =F59 -> 0.8916 | G60: =G59 -> 1.5301 | H60: =H59 -> 1.8579 | I60: =L21 -> 0.1956 | J60: =L22 -> 0.0335 | K60: =L23 -> 0.0153 | L60: =L24 -> 0.1151 | M60: =K26 -> 0.45
C61: 6 | D61: ILH | E61: =E59 -> 0.5714 | F61: =F59 -> 0.8916 | G61: =G59 -> 1.5301 | H61: =H59 -> 1.8579 | I61: =O21 -> 0.1956 | J61: =O22 -> 0.0335 | K61: =O23 -> 0.0153 | L61: =O24 -> 0.1151 | M61: =N26 -> 0.45
C62: 7 | D62: MTS | E62: =E59 -> 0.5714 | F62: =F59 -> 0.8916 | G62: =G59 -> 1.5301 | H62: =H59 -> 1.8579 | I62: =R21 -> 0.1956 | J62: =R22 -> 0.0335 | K62: =R23 -> 0.0153 | L62: =R24 -> 0.1151 | M62: =Q26 -> 0.45
C63: 8 | D63: OLB | E63: =E59 -> 0.5714 | F63: =F59 -> 0.8916 | G63: =G59 -> 1.5301 | H63: =H59 -> 1.8579 | I63: =U21 -> 0.1956 | J63: =U22 -> 0.0343 | K63: =U23 -> 0.0171 | L63: =U24 -> 0.122 | M63: =T26 -> 0.45
C64: 9 | D64: OVR | E64: =E59 -> 0.5714 | F64: =F59 -> 0.8916 | G64: =G59 -> 1.5301 | H64: =H59 -> 1.8579 | I64: =X21 -> 0.1956 | J64: =X22 -> 0.0335 | K64: =X23 -> 0.0153 | L64: =X24 -> 0.1151 | M64: =W26 -> 0.45
C65: 10 | D65: SVG | E65: =E59 -> 0.5714 | F65: =F59 -> 0.8916 | G65: =G59 -> 1.5301 | H65: =H59 -> 1.8579 | I65: =AA21 -> 0.1956 | J65: =AA22 -> 0.0335 | K65: =AA23 -> 0.0153 | L65: =AA24 -> 0.1151 | M65: =Z26 -> 0.45
C66: 11 | D66: VGS | E66: =E59 -> 0.5714 | F66: =F59 -> 0.8916 | G66: =G59 -> 1.5301 | H66: =H59 -> 1.8579 | I66: =AD21 -> 0.161629435 | J66: =AD22 -> 0.0335 | K66: =AD23 -> 0.0153 | L66: =AD24 -> 0.1151 | M66: =AC26 -> 0.45
